{"text_format":"1","workbook":"xlsx","n_sheets":1,"sheets":["Прайс-лист SCR "],"not_rendered":{"charts":0,"images":1,"macros":1,"external_links":0,"defined_names":0,"comments":0,"pivot_tables":0},"unopened":[],"bounds":{"document_bytes":16777216,"sheet_cells":100000,"rows_first":2000,"rows_last":500,"rows_between":2000,"halvings":0,"cell_chars":16384,"cell_head_chars":4096},"cells_cut":0,"cells_raw":0,"read":"whole","date_system":"1900"}

{"sheet":"Прайс-лист SCR ","index":0,"n_rows":1191,"n_cols":5,"rows_kept":1191,"cut":false,"hidden":false,"merged":[[0,0,2,4],[7,0,8,4],[3,0,4,4],[5,0,6,0],[5,1,6,2],[5,3,6,4],[9,0,9,4],[10,0,11,0],[10,1,11,1],[10,2,11,2],[10,3,10,4]]}
["Прайс-лист 2016 / 2017\nдействителен с 01.12.2016"]
[]
[]
["Для рассчета рекомендуемой розничной цены после двойного клика введите в ячейку курс ЦБ РФ Рубль/Евро \nна интересующую Вас дату: "]
[]
[">>>>>>>>>>",68.7,null,"<<<<<<<<<<"]
[]
["Рекомендуемая розничная цена в рублях по курсу ЦБ РФ + 2%"]
[]
["Артикулы, не указанные в прайс-листе, следует запрашивать отдельно"]
["Артикульный номер","Наименование","Ед.","Рекомендуемая розничная цена за Ед."]
[null,null,null,"Евро","Рубли (ЦБ РФ + 2%)"]
["100-0051-02","Кабель-мультикор микрофонный (балансный)  SC-PLANET FMC02, конструкция: 2 х 2 х 0,19 мм², оболочка: S-PVC 7,0 мм, цвет:  черный","м",2.72,{"$f":"IF(D13=\"По запросу\",D13,D13*$B$6*(1+0.02))","v":190.60128000000003}]
["100-0051-04","Кабель-мультикор микрофонный (балансный)  SC-PLANET FMC04, конструкция: 4 х 2 х 0,19 мм², оболочка: S-PVC 8,0 мм, цвет:  черный","м",4.07,285.20118000000002]
["100-0051-12+2","Кабель-мультикор микрофонный (балансный)  SC-PLANET FMC12+2, конструкция: 14 х 2 х 0,19 мм², оболочка: S-PVC 12,4 мм, цвет:  черный","м",11.96,838.08504000000005]
["100-0051-34+2","Кабель-мультикор микрофонный (балансный)  SC-PLANET FMC34+2, конструкция: 36 х 2 х 0,19 мм², оболочка: S-PVC 18,6 мм, цвет:  черный","м",28.78,2016.7297200000003]
["100-0051-48+2","Кабель-мультикор микрофонный (балансный)  SC-PLANET FMC48+2, конструкция: 50 x 2 х 0,19 мм², оболочка: S-PVC 23,7 мм, цвет:  черный","м",38.93,2727.9808200000002]
["100-0101-02","Кабель-мультикор микрофонный (балансный)  SC-MISTRAL MCF02 AES/EBU 110 Ом, конструкция: 2 х 2 х 0,22 мм², оболочка: S-PVC 9,0 мм, цвет:  черный","м",4.04,283.09896000000003]
["100-0101-04","Кабель-мультикор микрофонный (балансный)  SC-MISTRAL MCF04 AES/EBU 110 Ом, конструкция: 4 х 2 х 0,22 мм², оболочка: S-PVC 11,0 мм, цвет:  черный","м",5.7,399.42180000000002]
["100-0101-04F","Кабель-мультикор микрофонный (балансный)  SC-MISTRAL MCF04 FRNC негорючий AES/EBU 110 Ом, конструкция: 4 х 2 х 0,22 мм², оболочка: FRNC 11,0 мм, цвет:  черный","м",7.07,495.42318000000006]
["100-0101-08","Кабель-мультикор микрофонный (балансный)  SC-MISTRAL MCF08 AES/EBU 110 Ом, конструкция: 8 x 2 х 0,22 мм², оболочка: S-PVC 14,8 мм, цвет:  черный","м",11.09,777.12066000000004]
["100-0101-08F","Кабель-мультикор микрофонный (балансный)  SC-MISTRAL MCF08 FRNC негорючий AES/EBU 110 Ом, конструкция: 8 x 2 х 0,22 мм², оболочка: FRNC 15,0 мм, цвет:  черный","м",12,840.88800000000015]
["100-0101-12","Кабель-мультикор микрофонный (балансный)  SC-MISTRAL MCF12 AES/EBU 110 Ом, конструкция: 12 x 2  х 0,22 мм², оболочка: S-PVC 17,6 мм, цвет:  черный","м",14.57,1020.9781800000001]
["100-0101-12F","Кабель-мультикор микрофонный (балансный)  SC-MISTRAL MCF12 FRNC негорючий AES/EBU 110 Ом, конструкция: 12 x 2  х 0,22 мм², оболочка: FRNC 16,9 мм, цвет:  черный","м",16.829999999999998,1179.3454200000001]
["100-0101-16","Кабель-мультикор микрофонный (балансный)  SC-MISTRAL MCF16 AES/EBU 110 Ом, конструкция: 16 x 2 х 0,22 мм², оболочка: S-PVC 19,4 мм, цвет:  черный","м",19.170000000000002,1343.3185800000003]
["100-0101-24","Кабель-мультикор микрофонный (балансный)  SC-MISTRAL MCF24 AES/EBU 110 Ом, конструкция: 24 x 2 х 0,22 мм², оболочка: S-PVC 24,5 мм, цвет:  черный","м",28.63,2006.2186200000001]
["100-0101-32","Кабель-мультикор микрофонный (балансный)  SC-MISTRAL MCF32 AES/EBU 110 Ом, конструкция: 32 х 2 х 0,22 мм², оболочка: S-PVC 26,8 мм, цвет:  черный","м",37.479999999999997,2626.3735199999996]
["100-0302-02","Кабель-мультикор микрофонный (балансный)  SC-MATRIX MMC02 негорючий AES/EBU 110 Ом, конструкция: 2 х 2 х 0,25 мм², оболочка: FRNC 10,0 мм, цвет:  синий","м",6.61,463.18914000000001]
["100-0302-04","Кабель-мультикор микрофонный (балансный)  SC-MATRIX MMC04 негорючий AES/EBU 110 Ом, конструкция: 4 х 2 х 0,25 мм², оболочка: FRNC 11,9 мм, цвет:  синий","м",10.3,721.76220000000012]
["100-0302-08","Кабель-мультикор микрофонный (балансный)  SC-MATRIX MMC08 негорючий AES/EBU 110 Ом, конструкция: 8 x 2 х 0,25 мм², оболочка: FRNC 15,5 мм, цвет:  синий","м",17.61,1234.00314]
["100-0302-12","Кабель-мультикор микрофонный (балансный)  SC-MATRIX MMC12 негорючий AES/EBU 110 Ом, конструкция: 12 x 2  х 0,25 мм², оболочка: FRNC 19,9 мм, цвет:  синий","м",28.09,1968.3786600000001]
["100-0302-16","Кабель-мультикор микрофонный (балансный)  SC-MATRIX MMC16 негорючий AES/EBU 110 Ом, конструкция: 16 x 2 х 0,25 мм², оболочка: FRNC 21,5 мм, цвет:  синий","м",33.020000000000003,2313.84348]
["100-0351-10","Кабель-мультикор микрофонный (балансный)  SC-AURA DMCK10, конструкция: 10 х 2 х 0,15 мм², оболочка: PVC 14,4 мм, цвет:  черный","м",18.39,1288.66086]
["100-0351-10F","Кабель-мультикор микрофонный (балансный)  SC-AURA DMCK10 FRNC негорючий, конструкция: 10 х 2 х 0,15 мм², оболочка: SOFT PUR FRNC 12,0 мм, цвет:  черный","м",19.829999999999998,1389.5674199999999]
["100-0401-08","Кабель-мультикор микрофонный (балансный)  SC-TRANSFER HIGHFLEX AMCK08, конструкция: 8 x 2 х 0,14 мм², оболочка: PUR 9,9 мм, цвет:  черный","м",13.89,973.3278600000001]
["100-0401-10F","Кабель-мультикор микрофонный (балансный)  SC-TRANSFER HIGHFLEX AMCK10 негорючий, конструкция: 10 х 2 х 0,14 мм², оболочка: FRNC 10,8 мм, цвет:  черный","м",16.329999999999998,1144.3084199999998]
["100-0401-12","Кабель-мультикор микрофонный (балансный)  SC-TRANSFER HIGHFLEX AMCK12, конструкция: 12 x 2  х 0,14 мм², оболочка: PUR 11,5 мм, цвет:  черный","м",19.52,1367.8444800000002]
["100-0401-16","Кабель-мультикор микрофонный (балансный)  SC-TRANSFER HIGHFLEX AMCK16, конструкция: 16 x 2 х 0,14 мм², оболочка: PUR 14,5 мм, цвет:  черный","м",23,1611.7020000000002]
["100-0401-32","Кабель-мультикор микрофонный (балансный)  SC-TRANSFER HIGHFLEX AMCK32, конструкция: 32 х 2 х 0,14 мм², оболочка: PUR 18,6 мм, цвет:  черный","м",41.09,2879.3406600000003]
["100-0401-40","Кабель-мультикор микрофонный (балансный)  SC-TRANSFER HIGHFLEX AMCK40, конструкция: 40 х 2 х 0,14 мм², оболочка: PUR 20,5 мм, цвет:  черный","м",49.74,3485.4807600000004]
["100-0401-48","Кабель-мультикор микрофонный (балансный)  SC-TRANSFER HIGHFLEX AMCK48, конструкция: 48 х 2 х 0,14 мм², оболочка: PUR 21,8 мм, цвет:  черный","м",60.46,4236.6740399999999]
["100-0451-02","Кабель-мультикор микрофонный (балансный)  SC-QUANTUM HIGHFLEX QMC02 AES/EBU 110 Ом, конструкция: 2 х 2 х 0,14 мм², оболочка: S-PVC 8,5 мм, цвет:  черный","м",3.93,275.39082000000008]
["100-0451-04","Кабель-мультикор микрофонный (балансный)  SC-QUANTUM HIGHFLEX QMC04 AES/EBU 110 Ом, конструкция: 4 х 2 х 0,14 мм², оболочка: S-PVC 10,2 мм, цвет:  черный","м",6,420.44400000000007]
["100-0451-08","Кабель-мультикор микрофонный (балансный)  SC-QUANTUM HIGHFLEX QMC08 AES/EBU 110 Ом, конструкция: 8 x 2 х 0,14 мм², оболочка: S-PVC 13,8 мм, цвет:  черный","м",11.17,782.72658000000001]
["100-0451-12","Кабель-мультикор микрофонный (балансный)  SC-QUANTUM HIGHFLEX QMC12 AES/EBU 110 Ом, конструкция: 12 x 2  х 0,14 мм², оболочка: S-PVC 16,0 мм, цвет:  черный","м",16.93,1186.3528200000001]
["100-0451-16","Кабель-мультикор микрофонный (балансный)  SC-QUANTUM HIGHFLEX QMC16 AES/EBU 110 Ом, конструкция: 16 x 2 х 0,14 мм², оболочка: S-PVC 17,5 мм, цвет:  черный","м",20.59,1442.8236600000002]
["100-0451-20","Кабель-мультикор микрофонный (балансный)  SC-QUANTUM HIGHFLEX QMC20 AES/EBU 110 Ом, конструкция: 20 х 2 х 0,14 мм², оболочка: S-PVC 19,5 мм, цвет:  черный","м",26.46,1854.1580400000003]
["100-0451-24","Кабель-мультикор микрофонный (балансный)  SC-QUANTUM HIGHFLEX QMC24 AES/EBU 110 Ом, конструкция: 24 x 2 х 0,14 мм², оболочка: S-PVC 21,5 мм, цвет:  черный","м",30.5,2137.2570000000001]
["100-0451-32","Кабель-мультикор микрофонный (балансный)  SC-QUANTUM HIGHFLEX QMC32 AES/EBU 110 Ом, конструкция: 32 х 2 х 0,14 мм², оболочка: S-PVC 24,0 мм, цвет:  черный","м",40.11,2810.6681400000002]
["100-0451-48","Кабель-мультикор микрофонный (балансный)  SC-QUANTUM HIGHFLEX QMC48 AES/EBU 110 Ом, конструкция: 48 х 2 х 0,14 мм², оболочка: S-PVC 29,0 мм, цвет:  черный","м",59.07,4139.2711800000006]
["100-0501-02","Кабель-мультикор микрофонный (балансный)  SC-PEGASUS CMCK02 AES/EBU 110 Ом, конструкция: 2 х 4 х 0,20 мм², оболочка: S-PVC 13,5 мм, цвет:  черный","м",13.15,921.47310000000016]
["100-0501-04","Кабель-мультикор микрофонный (балансный)  SC-PEGASUS CMCK04 AES/EBU 110 Ом, конструкция: 4 х 4 х 0,20 мм², оболочка: S-PVC 15,4 мм, цвет:  черный","м",20.87,1462.4443800000004]
["100-0501-08","Кабель-мультикор микрофонный (балансный)  SC-PEGASUS CMCK08 AES/EBU 110 Ом, конструкция: 8 x 4 х 0,20 мм², оболочка: S-PVC 21,0 мм, цвет:  черный","м",37.72,2643.19128]
["100-0616-02","Кабель связи (балансный) SC-LOGICABLE LG MOD6LG02 негорючий, конструкция: 2 х 2 х 0,60 мм, оболочка: FRNC 4,9 мм, цвет:  серый","м",0.84,58.862160000000003]
["100-0616-03","Кабель связи (балансный) SC-LOGICABLE LG MOD6LG03 негорючий, конструкция: 3 х 2 х 0,60 мм, оболочка: FRNC 6,2 мм, цвет:  серый","м",1.27,88.993980000000008]
["100-0616-04","Кабель связи (балансный) SC-LOGICABLE LG MOD6LG04 негорючий, конструкция: 4 х 2 х 0,60 мм, оболочка: FRNC 6,6 мм, цвет:  серый","м",1.47,103.00878]
["100-0616-05","Кабель связи (балансный) SC-LOGICABLE LG MOD6LG05 негорючий, конструкция: 5 х 2 х 0,60 мм, оболочка: FRNC 7,1 мм, цвет:  серый","м",1.82,127.53468000000001]
["100-0616-06","Кабель связи (балансный) SC-LOGICABLE LG MOD6LG06 негорючий, конструкция: 6 x 2 х 0,60 мм, оболочка: FRNC 7,6 мм, цвет:  серый","м",1.87,131.03838000000002]
["100-0616-08","Кабель связи (балансный) SC-LOGICABLE LG MOD6LG08 негорючий, конструкция: 8 x 2 х 0,60 мм, оболочка: FRNC 8,1 мм, цвет:  серый","м",2.58,180.79092]
["100-0616-10","Кабель связи (балансный) SC-LOGICABLE LG MOD6LG10 негорючий, конструкция: 10 х 2 х 0,60 мм, оболочка: FRNC 9,3 мм, цвет:  серый","м",3.06,214.42644000000001]
["100-0616-100","Кабель связи (балансный) SC-LOGICABLE LG MOD6LG100 негорючий, конструкция: 10 х 2 х 0,60 мм, оболочка: FRNC 22,1 мм, цвет:  серый","м",25.94,1817.7195600000002]
["100-0616-20","Кабель связи (балансный) SC-LOGICABLE LG MOD6LG20 негорючий, конструкция: 20 х 2 х 0,60 мм, оболочка: FRNC 10,9 мм, цвет:  серый","м",5.66,396.61884000000003]
["100-0616-30","Кабель связи (балансный) SC-LOGICABLE LG MOD6LG30 негорючий, конструкция: 20 х 2 х 0,60 мм, оболочка: FRNC 13,7 мм, цвет:  серый","м",8.6300000000000008,604.73862000000008]
["100-0616-40","Кабель связи (балансный) SC-LOGICABLE LG MOD6LG40 негорючий, конструкция: 40 х 2 х 0,60 мм, оболочка: FRNC 14,5 мм, цвет:  серый","м",11.08,776.41992000000005]
["100-0616-50","Кабель связи (балансный) SC-LOGICABLE LG MOD6LG50 негорючий, конструкция: 50 x 2 х 0,60 мм, оболочка: FRNC 16,5 мм, цвет:  серый","м",13.32,933.38568000000009]
["100-0806-02","Кабель связи (балансный) SC-LOGICABLE LG MOD8LG02 негорючий, конструкция: 2 х 2 х 0,80 мм, оболочка: FRNC 6,1 мм, цвет:  серый","м",1.31,91.796940000000021]
["100-0806-03","Кабель связи (балансный) SC-LOGICABLE LG MOD8LG03 негорючий, конструкция: 3 х 2 х 0,80 мм, оболочка: FRNC 8,0 мм, цвет:  серый","м",1.98,138.74652]
["100-0806-04","Кабель связи (балансный) SC-LOGICABLE LG MOD8LG04 негорючий, конструкция: 4 х 2 х 0,80 мм, оболочка: FRNC 8,7 мм, цвет:  серый","м",2.35,164.67390000000003]
["100-0806-06","Кабель связи (балансный) SC-LOGICABLE LG MOD8LG06 негорючий, конструкция: 6 x 2 х 0,80 мм, оболочка: FRNC 10,1 мм, цвет:  серый","м",3.39,237.55086000000003]
["100-0806-08","Кабель связи (балансный) SC-LOGICABLE LG MOD8LG08 негорючий, конструкция: 8 x 2 х 0,80 мм, оболочка: FRNC 10,2 мм, цвет:  серый","м",4.24,297.11376000000001]
["100-0806-10","Кабель связи (балансный) SC-LOGICABLE LG MOD8LG10 негорючий, конструкция: 10 х 2 х 0,80 мм, оболочка: FRNC 13,1 мм, цвет:  серый","м",5.32,372.79368000000005]
["100-0806-20","Кабель связи (балансный) SC-LOGICABLE LG MOD8LG20 негорючий, конструкция: 20 х 2 х 0,80 мм, оболочка: FRNC 15,6 мм, цвет:  серый","м",9.76,683.9222400000001]
["100-0806-30","Кабель связи (балансный) SC-LOGICABLE LG MOD8LG30 негорючий, конструкция: 30 х 2 х 0,80 мм, оболочка: FRNC 19,4 мм, цвет:  серый","м",14.56,1020.2774400000001]
["100-0806-40","Кабель связи (балансный) SC-LOGICABLE LG MOD8LG40 негорючий, конструкция: 40 х 2 х 0,80 мм, оболочка: FRNC 20,9 мм, цвет:  серый","м",19.05,1334.9097000000002]
["100-0806-50","Кабель связи (балансный) SC-LOGICABLE LG MOD8LG50 негорючий, конструкция: 50 x 2 х 0,80 мм, оболочка: FRNC 23,7 мм, цвет:  серый","м",23.65,1657.2501]
["100-1156-01","Кабель-мультикор микрофонный (балансный)  SC-LOGICABLE MP MODF01 негорючий AES/EBU 110 Ом, конструкция: 1 х 2 х 0,57 мм, оболочка: FRNC 5,5 мм, цвет:  серый","м",2.65,185.6961]
["100-1156-02","Кабель-мультикор микрофонный (балансный)  SC-LOGICABLE MP MODF02 негорючий AES/EBU 110 Ом, конструкция: 2 х 2 х 0,57 мм, оболочка: FRNC 9,0 мм, цвет:  серый","м",5.43,{"$f":"IF(D77=\"По запросу\",D77,D77*$B$6*(1+0.02))","v":380.50182000000001}]
["100-1156-03","Кабель-мультикор микрофонный (балансный)  SC-LOGICABLE MP MODF03 негорючий AES/EBU 110 Ом, конструкция: 3 х 2 х 0,57 мм, оболочка: FRNC 9,2 мм, цвет:  серый","м",6.33,443.56842000000006]
["100-1156-04","Кабель-мультикор микрофонный (балансный)  SC-LOGICABLE MP MODF04 негорючий AES/EBU 110 Ом, конструкция: 4 х 2 х 0,57 мм, оболочка: FRNC 11,1 мм, цвет:  серый","м",7.76,543.77423999999996]
["100-1156-06","Кабель-мультикор микрофонный (балансный)  SC-LOGICABLE MP MODF06 негорючий AES/EBU 110 Ом, конструкция: 6 x 2 х 0,57 мм, оболочка: FRNC 12,4 мм, цвет:  серый","м",10.85,760.30290000000002]
["100-1156-08","Кабель-мультикор микрофонный (балансный)  SC-LOGICABLE MP MODF08 негорючий AES/EBU 110 Ом, конструкция: 8 x 2 х 0,57 мм, оболочка: FRNC 14,0 мм, цвет:  серый","м",13.39,938.29086000000007]
["100-1156-10","Кабель-мультикор микрофонный (балансный)  SC-LOGICABLE MP MODF10 негорючий AES/EBU 110 Ом, конструкция: 10 х 2 х 0,57 мм, оболочка: FRNC 15,3 мм, цвет:  серый","м",17.09,1197.56466]
["100-1156-12","Кабель-мультикор микрофонный (балансный)  SC-LOGICABLE MP MODF12 негорючий AES/EBU 110 Ом, конструкция: 12 x 2  х 0,57 мм, оболочка: FRNC 17,2 мм, цвет:  серый","м",21.02,1472.9554800000001]
["100-1156-20","Кабель-мультикор микрофонный (балансный)  SC-LOGICABLE MP MODF20 негорючий AES/EBU 110 Ом, конструкция: 20 х 2 х 0,57 мм, оболочка: FRNC 22,6 мм, цвет:  серый","м",30.72,2152.67328]
["100-1156-24","Кабель-мультикор микрофонный (балансный)  SC-LOGICABLE MP MODF24 негорючий AES/EBU 110 Ом, конструкция: 24 x 2 х 0,57 мм, оболочка: FRNC 23,6 мм, цвет:  серый","м",36.65,2568.2121000000002]
["100-1156-32","Кабель-мультикор микрофонный (балансный)  SC-LOGICABLE MP MODF32 негорючий AES/EBU 110 Ом, конструкция: 32 х 2 х 0,57 мм, оболочка: FRNC 27,0 мм, цвет:  серый","м",46.59,3264.7476600000005]
["100-1173-02","Кабель пожарной сигнализации (балансный) LOGICABLE SAFETY BD MODFS02 негорючий FE180/E90, конструкция: 2 х 2 х 0,80 мм, оболочка: HM2 7,7 мм, цвет:  красный","м",5.39,377.69886000000002]
["100-1173-04","Кабель пожарной сигнализации (балансный) LOGICABLE SAFETY BD MODFS04 негорючий FE180/E90, конструкция: 4 х 2 х 0,80 мм, оболочка: HM2 11,6 мм, цвет:  красный","м",8.83,618.75342000000001]
["100-1173-08","Кабель пожарной сигнализации (балансный) LOGICABLE SAFETY BD MODFS08 негорючий FE180/E90, конструкция: 8 x 2 х 0,80 мм, оболочка: HM2 17,9 мм, цвет:  красный","м",16.329999999999998,1144.3084199999998]
["100-1173-12","Кабель пожарной сигнализации (балансный) LOGICABLE SAFETY BD MODFS12 негорючий FE180/E90, конструкция: 12 x 2  х 0,80 мм, оболочка: HM2 18,7 мм, цвет:  красный","м",24.22,1697.19228]
["200-0001","Кабель микрофонный (балансный) SC-STAGE 22 HIGHFLEX, конструкция: 2 х 0,22 мм², оболочка: PVC 6,4 мм, цвет:  черный","м",1.67,117.02358]
["200-0001NE","Кабель микрофонный (балансный) SC-STAGE 22 HIGHFLEX без маркировки на оболочке, конструкция: 2 х 0,22 мм², оболочка: PVC 6,4 мм, цвет:  черный","м",1.67,117.02358]
["200-0002","Кабель микрофонный (балансный) SC-STAGE 22 HIGHFLEX, конструкция: 2 х 0,22 мм², оболочка: PVC 6,4 мм, цвет:  синий","м",1.67,117.02358]
["200-0003","Кабель микрофонный (балансный) SC-STAGE 22 HIGHFLEX, конструкция: 2 х 0,22 мм², оболочка: PVC 6,4 мм, цвет:  красный","м",1.67,117.02358]
["200-0004","Кабель микрофонный (балансный) SC-STAGE 22 HIGHFLEX, конструкция: 2 х 0,22 мм², оболочка: PVC 6,4 мм, цвет:  зеленый","м",1.67,117.02358]
["200-0006","Кабель микрофонный (балансный) SC-STAGE 22 HIGHFLEX, конструкция: 2 х 0,22 мм², оболочка: PVC 6,4 мм, цвет:  серый","м",1.67,117.02358]
["200-0007","Кабель микрофонный (балансный) SC-STAGE 22 HIGHFLEX, конструкция: 2 х 0,22 мм², оболочка: PVC 6,4 мм, цвет:  желтый","м",1.67,117.02358]
["200-0008","Кабель микрофонный (балансный) SC-STAGE 22 HIGHFLEX, конструкция: 2 х 0,22 мм², оболочка: PVC 6,4 мм, цвет:  фиолетовый","м",1.67,117.02358]
["200-0051","Кабель микрофонный (балансный) SC-CLUB SERIES MKII, конструкция: 2 х 0,34 мм², оболочка: PVC 6,5 мм, цвет:  черный","м",1.91,133.84134]
["200-0051F","Кабель микрофонный (балансный) SC-CLUB SERIES MKII негорючий, конструкция: 2 х 0,34 мм², оболочка: FRNC 6,5 мм, цвет:  черный","м",2.54,177.98796000000002]
["200-0051NE","Кабель микрофонный (балансный) SC-CLUB SERIES MKII без маркировки на оболочке, конструкция: 2 х 0,34 мм², оболочка: PVC 6,5 мм, цвет:  черный","м",1.91,133.84134]
["200-0051T","Кабель микрофонный (балансный) SC-TEMPOFLEX MICROPHONE негорючий жаростойкий (до 130° C), конструкция: 2 х 0,34 мм², оболочка: TPE 7,3 мм, цвет:  черный","м",5.41,379.10034000000002]
["200-0052","Кабель микрофонный (балансный) SC-CLUB SERIES MKII, конструкция: 2 х 0,34 мм², оболочка: PVC 6,5 мм, цвет:  синий","м",1.91,133.84134]
["200-0053","Кабель микрофонный (балансный) SC-CLUB SERIES MKII, конструкция: 2 х 0,34 мм², оболочка: PVC 6,5 мм, цвет:  красный","м",1.91,133.84134]
["200-0057V","Кабель микрофонный (балансный) SC-CLUB SERIES MKII винтажный, конструкция: 2 х 0,34 мм², оболочка: PVC + текстильная оплетка 6,5 мм, цвет:  желтый / коричневый","м",3,210.22200000000004]
["200-008M","Кабель микрофонный (балансный) SC-CAPTAIN FLEXIBLE, конструкция: 2 х 0,22 мм², оболочка: PVC 6,5 мм, цвет:  темно-оливковый","м",1.98,138.74652]
["200-0101","Кабель микрофонный (балансный) SC-SOURCE MKII HIGHFLEX, конструкция: 2 х 0,25 мм², оболочка: PVC 6,5 мм, цвет:  черный","м",2.52,176.58647999999999]
["200-0101F","Кабель микрофонный (балансный) SC-SOURCE MKII HIGHFLEX негорючий, конструкция: 2 х 0,25 мм², оболочка: FRNC 6,5 мм, цвет:  черный","м",3.22,225.63828000000004]
["200-0102","Кабель микрофонный (балансный) SC-SOURCE MKII HIGHFLEX, конструкция: 2 х 0,25 мм², оболочка: PVC 6,5 мм, цвет:  синий","м",2.52,176.58647999999999]
["200-0103","Кабель микрофонный (балансный) SC-SOURCE MKII HIGHFLEX, конструкция: 2 х 0,25 мм², оболочка: PVC 6,5 мм, цвет:  красный","м",2.52,176.58647999999999]
["200-0140AQ","Кабель микрофонный (балансный) SC-AQUA MARINEX MIKRO AES/EBU 110 Ом водонепроницаемый, конструкция: 2 х 0,14 мм², оболочка: PUR-SR 4,6 мм, цвет:  белый","м",4.1100000000000003,288.00414000000001]
["200-0141AQ","Кабель микрофонный (балансный) SC-AQUA MARINEX MIKRO AES/EBU 110 Ом водонепроницаемый, конструкция: 2 х 0,14 мм², оболочка: PUR-SR 4,6 мм, цвет:  черный","м",4.1100000000000003,288.00414000000001]
["200-0151","Кабель микрофонный (балансный) SC-PRIMUS, конструкция: 2 х 0,50 мм², оболочка: PVC 6,7 мм, цвет:  черный","м",2.7,189.19980000000001]
["200-0151F","Кабель микрофонный (балансный) SC-PRIMUS FRNC негорючий, конструкция: 2 х 0,50 мм², оболочка: FRNC 6,5 мм, цвет:  черный","м",3.04,213.02496000000002]
["200-0152","Кабель микрофонный (балансный) SC-PRIMUS, конструкция: 2 х 0,50 мм², оболочка: PVC 6,7 мм, цвет:  синий","м",2.7,189.19980000000001]
["200-0186","Кабель микрофонный (балансный) SC-OCTAVE TUBE 7-и жильный для ламповых микрофонов, конструкция: 5x0,14 мм²(Аудио)+2x0,50 мм²(Управление), оболочка: PVC 6,5 мм, цвет:  серый","м",5.2,364.38480000000004]
["200-0241AQ","Кабель микрофонный (балансный) SC-AQUA MARINEX MIKRO 25 AES/EBU 110 Ом водонепроницаемый, конструкция: 2 х 0,25 мм², оболочка: PUR-SR 7,2 мм, цвет:  черный","м",9.74,682.52076]
["200-0251","Кабель микрофонный (балансный) SC-GALILEO 238, конструкция: 2 х 0,38 мм², оболочка: PVC 7,0 мм, цвет:  черный","м",3.54,248.06196]
["200-0271","Кабель микрофонный (балансный) SC-GALILEO 238 Plus, конструкция: 2 х 0,38 мм², оболочка: PVC 7,0 мм, цвет:  черный","м",3.78,264.87971999999996]
["200-0281","Кабель микрофонный (балансный) SC-CARBOKAB 225, конструкция: 2 х 0,25 мм², оболочка: S-PVC 7,6 мм, цвет:  черный","м",8.33,583.71642000000008]
["200-0301","Кабель микрофонный (балансный) SC-SQUARE 4-CORE MKII HIGHFLEX перекрестный, конструкция: 4 х 0,20 мм², оболочка: PVC 6,5 мм, цвет:  черный","м",2.91,203.91534000000004]
["200-0301NE","Кабель микрофонный (балансный) SC-SQUARE 4-CORE MKII HIGHFLEX перекрестный без маркировки на оболочке, конструкция: 4 х 0,20 мм², оболочка: PVC 6,5 мм, цвет:  черный","м",2.91,203.91534000000004]
["200-0311","Кабель микрофонный (балансный) патч-корд SC-SCUBA 14 HIGHFLEX, конструкция: 2 х 0,14 мм², оболочка: PVC 3,8 мм, цвет:  черный","м",1.41,98.80434000000001]
["200-0313","Кабель микрофонный (балансный) патч-корд SC-SCUBA 14 HIGHFLEX, конструкция: 2 х 0,14 мм², оболочка: PVC 3,8 мм, цвет:  красный","м",1.41,98.80434000000001]
["200-0314","Кабель микрофонный (балансный) патч-корд SC-SCUBA 14 HIGHFLEX, конструкция: 2 х 0,14 мм², оболочка: PVC 3,8 мм, цвет:  зеленый","м",1.41,98.80434000000001]
["200-0316","Кабель микрофонный (балансный) патч-корд SC-SCUBA 14 HIGHFLEX, конструкция: 2 х 0,14 мм², оболочка: PVC 3,8 мм, цвет:  серый","м",1.41,98.80434000000001]
["200-0317","Кабель микрофонный (балансный) патч-корд SC-SCUBA 14 HIGHFLEX, конструкция: 2 х 0,14 мм², оболочка: PVC 3,8 мм, цвет:  желтый","м",1.41,98.80434000000001]
["200-0350","Кабель микрофонный (балансный) патч-корд SC-GOBLIN, конструкция: 2 х 0,14 мм², оболочка: PVC 4,6 мм, цвет:  белый","м",1.63,114.22062]
["200-0351","Кабель микрофонный (балансный) патч-корд SC-GOBLIN, конструкция: 2 х 0,14 мм², оболочка: PVC 4,6 мм, цвет:  черный","м",1.63,114.22062]
["200-0352","Кабель микрофонный (балансный) патч-корд SC-GOBLIN, конструкция: 2 х 0,14 мм², оболочка: PVC 4,6 мм, цвет:  синий","м",1.63,114.22062]
["200-0353","Кабель микрофонный (балансный) патч-корд SC-GOBLIN, конструкция: 2 х 0,14 мм², оболочка: PVC 4,6 мм, цвет:  красный","м",1.63,114.22062]
["200-0356","Кабель микрофонный (балансный) патч-корд SC-GOBLIN, конструкция: 2 х 0,14 мм², оболочка: PVC 4,6 мм, цвет:  серый","м",1.63,114.22062]
["200-0371","Кабель микрофонный (балансный) SC-MICRO-STAGE AES/EBU 110 Ом, конструкция: 2 х 0,14 мм², оболочка: PVC 5,8 мм, цвет:  черный","м",1.72,120.52728]
["200-0400","Кабель микрофонный (балансный) патч-корд SC-ISOPOD SO-F22, конструкция: 2 х 0,22 мм², оболочка: PVC 3,3 мм, цвет:  белый","м",1.02,71.475480000000005]
["200-0401","Кабель микрофонный (балансный) патч-корд SC-ISOPOD SO-F22, конструкция: 2 х 0,22 мм², оболочка: PVC 3,3 мм, цвет:  черный","м",1.02,71.475480000000005]
["200-0401F","Кабель микрофонный (балансный) патч-корд SC-ISOPOD SO-F22F негорючий, конструкция: 2 х 0,22 мм², оболочка: FRNC 3,3 мм, цвет:  черный","м",1.35,94.599900000000005]
["200-0402","Кабель микрофонный (балансный) патч-корд SC-ISOPOD SO-F22, конструкция: 2 х 0,22 мм², оболочка: PVC 3,3 мм, цвет:  синий","м",1.02,71.475480000000005]
["200-0403","Кабель микрофонный (балансный) патч-корд SC-ISOPOD SO-F22, конструкция: 2 х 0,22 мм², оболочка: PVC 3,3 мм, цвет:  красный","м",1.02,71.475480000000005]
["200-0404","Кабель микрофонный (балансный) патч-корд SC-ISOPOD SO-F22, конструкция: 2 х 0,22 мм², оболочка: PVC 3,3 мм, цвет:  зеленый","м",1.02,71.475480000000005]
["200-0405","Кабель микрофонный (балансный) патч-корд SC-ISOPOD SO-F22, конструкция: 2 х 0,22 мм², оболочка: PVC 3,3 мм, цвет:  оранжевый","м",1.02,71.475480000000005]
["200-0406","Кабель микрофонный (балансный) патч-корд SC-ISOPOD SO-F22, конструкция: 2 х 0,22 мм², оболочка: PVC 3,3 мм, цвет:  серый","м",1.02,{"$f":"IF(D141=\"По запросу\",D141,D141*$B$6*(1+0.02))","v":71.475480000000005}]
["200-0407","Кабель микрофонный (балансный) патч-корд SC-ISOPOD SO-F22, конструкция: 2 х 0,22 мм², оболочка: PVC 3,3 мм, цвет:  желтый","м",1.02,71.475480000000005]
["200-0408","Кабель микрофонный (балансный) патч-корд SC-ISOPOD SO-F22, конструкция: 2 х 0,22 мм², оболочка: PVC 3,3 мм, цвет:  фиолетовый","м",1.02,71.475480000000005]
["200-0451","Кабель микрофонный (балансный) патч-корд SC-CICADA SO-D14, конструкция: 2 х 0,14 мм², оболочка: PUR 2,6 мм, цвет:  черный","м",1.41,98.80434000000001]
["200-0551","Кабель микрофонный (балансный) SC-PEACOCK MKII двупарный AES/EBU 110 Ом, конструкция: 2 х 2 х 0,22 мм², оболочка: S-PVC 4,5 x 9,2 мм, цвет:  черный","м",3.72,260.67528000000004]
["200-0552","Кабель микрофонный (балансный) SC-PEACOCK MKII двупарный AES/EBU 110 Ом, конструкция: 2 х 2 х 0,22 мм², оболочка: S-PVC 4,5 x 9,2 мм, цвет:  синий","м",3.72,260.67528000000004]
["200-0601","Кабель микрофонный (балансный) SC-SYMBIOTIC, конструкция: 2 х 0,20 мм², оболочка: PVC 5,2 мм, цвет:  черный","м",2.65,185.6961]
["200-0601H3","Кабель микрофонный (балансный) SC-SYMBIOTIC 3 3-х жильный, конструкция: 3 х 0,20 мм², оболочка: TPE 5,2 мм, цвет:  черный","м",3.43,240.35382000000001]
["200-0711","Кабель микрофонный (балансный) SC-CLUB BLACK ZILK AES/EBU 110 Ом, конструкция: 2 х 0,25 мм², оболочка: S-PVC 7,3 мм, цвет:  черный","м",3.26,228.44123999999999]
["200-0713","Кабель микрофонный (балансный) SC-CLUB RED ZILK AES/EBU 110 Ом, конструкция: 2 х 0,25 мм², оболочка: S-PVC 7,3 мм, цвет:  бордовый","м",3.26,228.44123999999999]
["201-0101","Кабель микрофонный (балансный) SC-SOURCE MKII HIGHFLEX, конструкция: 2 х 0,25 мм², оболочка: PUR 6,5 мм, цвет:  черный","м",3.7,259.27380000000005]
["201-0406","Кабель микрофонный (балансный) патч-корд SC-ISOPOD SO-F50, конструкция: 2 х 0,50 мм², оболочка: PVC 4,2 мм, цвет:  серый","м",1.48,103.70952]
["300-0021","Кабель инструментальный (небалансный) SC-TRICONE MKII, конструкция: 1 х 0,22 мм², оболочка: PVC 5,9 мм, цвет:  черный","м",1.61,112.81914000000002]
["300-0021NE","Кабель инструментальный (небалансный) SC-TRICONE MKII без маркировки на оболочке, конструкция: 1 х 0,22 мм², оболочка: PVC 5,9 мм, цвет:  черный","м",1.61,112.81914000000002]
["300-0022","Кабель инструментальный (небалансный) SC-TRICONE MKII, конструкция: 1 х 0,22 мм², оболочка: PVC 5,9 мм, цвет:  синий","м",1.61,112.81914000000002]
["300-0023","Кабель инструментальный (небалансный) SC-TRICONE MKII, конструкция: 1 х 0,22 мм², оболочка: PVC 5,9 мм, цвет:  красный","м",1.61,112.81914000000002]
["300-0024","Кабель инструментальный (небалансный) SC-TRICONE MKII, конструкция: 1 х 0,22 мм², оболочка: PVC 5,9 мм, цвет:  зеленый","м",1.61,112.81914000000002]
["300-0031","Кабель инструментальный (небалансный) патч-корд SC-ONYX TYNEE, конструкция: 1 х 0,22 мм², оболочка: PVC 4,0 мм, цвет:  черный","м",1.02,71.475480000000005]
["300-0051","Кабель инструментальный (небалансный) SC-SPIRIT, конструкция: 1 х 0,50 мм², оболочка: PVC 7,0 мм, цвет:  черный","м",3.3,231.24420000000001]
["300-0071","Кабель инструментальный (небалансный) SC-SPIRIT XXL, конструкция: 1 х 0,75 мм², оболочка: PVC 6,8 мм, цвет:  прозрачный","м",3.52,246.66048000000001]
["300-008M","Кабель инструментальный (небалансный) SC-COLONEL INCREDIBLE 2-х жильный HIGH END, конструкция: 2 х 0,35 мм², оболочка: PVC 7,2 мм, цвет:  темно-оливковый","м",3.96,277.49304000000001]
["300-0091","Кабель инструментальный (небалансный) SC-SPIRIT LLX LOW LOSS, конструкция: 1 х 0,38 мм², оболочка: PVC 7,5 мм, цвет:  черный","м",3.83,268.38342000000006]
["300-0110","Кабель инструментальный (небалансный) SC-CLASSIQUE, конструкция: 1 х 0,50 мм², оболочка: PVC + текстильная оплетка 6,5 мм, цвет:  черный/белый","м",3.83,268.38342000000006]
["300-0112","Кабель инструментальный (небалансный) SC-CLASSIQUE, конструкция: 1 х 0,50 мм², оболочка: PVC + текстильная оплетка 6,5 мм, цвет:  черный/синий","м",3.83,268.38342000000006]
["300-0117","Кабель инструментальный (небалансный) SC-CLASSIQUE, конструкция: 1 х 0,50 мм², оболочка: PVC + текстильная оплетка 6,5 мм, цвет:  желтый / коричневый","м",3.83,268.38342000000006]
["300-0270","Кабель инструментальный (небалансный) SC-TRICONE XXL, конструкция: 1 х 0,50 мм², оболочка: LLC (Long Life Compound) 5,9 мм, цвет:  белый","м",2.2799999999999998,159.76872]
["300-0271","Кабель инструментальный (небалансный) SC-TRICONE XXL, конструкция: 1 х 0,50 мм², оболочка: LLC (Long Life Compound) 5,9 мм, цвет:  черный","м",2.2799999999999998,159.76872]
["300-0272","Кабель инструментальный (небалансный) SC-TRICONE XXL, конструкция: 1 х 0,50 мм², оболочка: LLC (Long Life Compound) 5,9 мм, цвет:  синий","м",2.2799999999999998,159.76872]
["300-0273","Кабель инструментальный (небалансный) SC-TRICONE XXL, конструкция: 1 х 0,50 мм², оболочка: LLC (Long Life Compound) 5,9 мм, цвет:  красный","м",2.2799999999999998,159.76872]
["300-0351","Кабель инструментальный (небалансный) SC-SPIRIT BLACK ZILK, конструкция: 1 х 0,25 мм², оболочка: PVC 7,2 мм, цвет:  черный полупрозрачный","м",3.33,233.34642000000002]
["301-1101","Кабель комбинированный SC-TRICONE SYMASYM, конструкция: 1х(1х0,22 мм²)(Инстр.) + 1х(2х0,14 мм²) (Микроф.), оболочка: PVC 11,5 мм, цвет:  черный","м",8.52,597.03048000000001]
["301-2413","Кабель комбинированный SC-TRICONE 241P, конструкция: 4х(1х0,22мм²) (Инстр.) + 2х(2х0,14мм²) (Аудио) + 1х(4х2х0,14мм²) (CAT.5e) + 1х(3х0,75мм²) (Питание), оболочка: PVC 21,8 мм, цвет:  черный","м",30.35,2126.7458999999999]
["320-0061","Кабель инструментальный (небалансный) патч-корд SC-ONYX 2008 2-х жильный, конструкция: 2 x 1 х 0,08 мм², оболочка: PVC 2,6 x 5,9 мм, цвет:  черный","м",1.52,106.51248000000001]
["320-0101","Кабель инструментальный (небалансный) патч-корд SC-ONYX 2025 2-х жильный, конструкция: 2 x 1 х 0,25 мм², оболочка: PVC 3,8 x 8,3 мм, цвет:  черный","м",2.52,176.58647999999999]
["320-0102","Кабель инструментальный (небалансный) патч-корд SC-ONYX 2025 2-х жильный, конструкция: 2 x 1 х 0,08 мм², оболочка: PVC 3,8 x 8,3 мм, цвет:  синий","м",2.65,185.6961]
["320-0252","Кабель инструментальный (небалансный) SC-SINUS CONTROL с дополнительным проводом управления, конструкция: 2х1х0,35 мм² (Инстр. коакс.) + 1х0,35 мм² (Управл.), оболочка: S-PVC 4,5 x 9,2 мм, цвет:  синий","м",3.98,278.89452]
["380-0056-02014","Кабель управления SC-CONTROL FLEX негорючий, конструкция: 2 х 0,14 мм², оболочка: PVC 3,8 мм, цвет:  серый","м",0.89,62.365860000000005]
["380-0056-02025","Кабель управления SC-CONTROL FLEX негорючий, конструкция: 2 х 0,25 мм², оболочка: PVC 4,2 мм, цвет:  серый","м",1,70.073999999999998]
["380-0056-02034","Кабель управления SC-CONTROL FLEX негорючий, конструкция: 2 х 0,34 мм², оболочка: PVC 4,6 мм, цвет:  серый","м",1.1499999999999999,80.585099999999997]
["380-0056-02050","Кабель управления SC-CONTROL FLEX негорючий, конструкция: 2 х 0,50 мм², оболочка: PVC 5,5 мм, цвет:  серый","м",1.52,106.51248000000001]
["380-0056-02075","Кабель управления SC-CONTROL FLEX негорючий, конструкция: 2 х 0,75 мм², оболочка: PVC 6,1 мм, цвет:  серый","м",1.95,136.64430000000002]
["380-0056-03014","Кабель управления SC-CONTROL FLEX негорючий, конструкция: 3 х 0,14 мм², оболочка: PVC 4,0 мм, цвет:  серый","м",1,70.073999999999998]
["380-0056-03025","Кабель управления SC-CONTROL FLEX негорючий, конструкция: 3 х 0,25 мм², оболочка: PVC 4,4 мм, цвет:  серый","м",1.23,86.191020000000009]
["380-0056-03034","Кабель управления SC-CONTROL FLEX негорючий, конструкция: 3 х 0,34 мм², оболочка: PVC 4,9 мм, цвет:  серый","м",1.44,100.90656]
["380-0056-03050","Кабель управления SC-CONTROL FLEX негорючий, конструкция: 3 х 0,50 мм², оболочка: PVC 5,8 мм, цвет:  серый","м",1.81,126.83394000000001]
["380-0056-03075","Кабель управления SC-CONTROL FLEX негорючий, конструкция: 3 х 0,75 мм², оболочка: PVC 6,5 мм, цвет:  серый","м",2.4,168.17760000000001]
["380-0056-04014","Кабель управления SC-CONTROL FLEX негорючий, конструкция: 4 х 0,14 мм², оболочка: PVC 4,2 мм, цвет:  серый","м",1.21,84.789540000000002]
["380-0056-04025","Кабель управления SC-CONTROL FLEX негорючий, конструкция: 4 х 0,25 мм², оболочка: PVC 4,7 мм, цвет:  серый","м",1.39,97.40285999999999]
["380-0056-04034","Кабель управления SC-CONTROL FLEX негорючий, конструкция: 4 х 0,34 мм², оболочка: PVC 5,5 мм, цвет:  серый","м",1.68,117.72432000000001]
["380-0056-04050","Кабель управления SC-CONTROL FLEX негорючий, конструкция: 4 х 0,50 мм², оболочка: PVC 6,3 мм, цвет:  серый","м",2.2599999999999998,158.36724000000001]
["380-0056-04075","Кабель управления SC-CONTROL FLEX негорючий, конструкция: 4 х 0,75 мм², оболочка: PVC 7,0 мм, цвет:  серый","м",3.05,213.72569999999999]
["380-0056-05014","Кабель управления SC-CONTROL FLEX негорючий, конструкция: 5 х 0,14 мм², оболочка: PVC 4,5 мм, цвет:  серый","м",1.26,88.293239999999997]
["380-0056-05025","Кабель управления SC-CONTROL FLEX негорючий, конструкция: 5 х 0,25 мм², оболочка: PVC 5,4 мм, цвет:  серый","м",1.58,110.71692]
["380-0056-05034","Кабель управления SC-CONTROL FLEX негорючий, конструкция: 5 х 0,34 мм², оболочка: PVC 5,9 мм, цвет:  серый","м",1.98,138.74652]
["380-0056-05050","Кабель управления SC-CONTROL FLEX негорючий, конструкция: 5 х 0,50 мм², оболочка: PVC 6,7 мм, цвет:  серый","м",2.81,196.90794000000002]
["380-0056-05075","Кабель управления SC-CONTROL FLEX негорючий, конструкция: 5 х 0,75 мм², оболочка: PVC 7,5 мм, цвет:  серый","м",3.63,254.36861999999999]
["380-0056-06014","Кабель управления SC-CONTROL FLEX негорючий, конструкция: 6 х 0,14 мм², оболочка: PVC 4,8 мм, цвет:  серый","м",1.44,100.90656]
["380-0056-06025","Кабель управления SC-CONTROL FLEX негорючий, конструкция: 6 х 0,25 мм², оболочка: PVC 5,7 мм, цвет:  серый","м",1.9,133.14060000000001]
["380-0056-06034","Кабель управления SC-CONTROL FLEX негорючий, конструкция: 6 х 0,34 мм², оболочка: PVC 6,3 мм, цвет:  серый","м",2.35,164.67390000000003]
["380-0056-06050","Кабель управления SC-CONTROL FLEX негорючий, конструкция: 6 х 0,50 мм², оболочка: PVC 7,2 мм, цвет:  серый","м",3.23,226.33902]
["380-0056-06075","Кабель управления SC-CONTROL FLEX негорючий, конструкция: 6 х 0,75 мм², оболочка: PVC 8,1 мм, цвет:  серый","м",4.45,311.82930000000005]
["380-0056-07014","Кабель управления SC-CONTROL FLEX негорючий, конструкция: 7 х 0,14 мм², оболочка: PVC 4,8 мм, цвет:  серый","м",1.53,107.21322000000001]
["380-0056-07025","Кабель управления SC-CONTROL FLEX негорючий, конструкция: 7 х 0,25 мм², оболочка: PVC 5,7 мм, цвет:  серый","м",2.0299999999999998,142.25021999999998]
["380-0056-07034","Кабель управления SC-CONTROL FLEX негорючий, конструкция: 7 х 0,34 мм², оболочка: PVC 6,3 мм, цвет:  серый","м",2.66,186.39684000000003]
["380-0056-07050","Кабель управления SC-CONTROL FLEX негорючий, конструкция: 7 х 0,50 мм², оболочка: PVC 7,2 мм, цвет:  серый","м",3.77,{"$f":"IF(D205=\"По запросу\",D205,D205*$B$6*(1+0.02))","v":264.17898000000002}]
["380-0056-07075","Кабель управления SC-CONTROL FLEX негорючий, конструкция: 7 х 0,75 мм², оболочка: PVC 8,1 мм, цвет:  серый","м",4.79,335.65446000000003]
["380-0056-08014","Кабель управления SC-CONTROL FLEX негорючий, конструкция: 8 х 0,14 мм², оболочка: PVC 5,5 мм, цвет:  серый","м",1.77,124.03098]
["380-0056-08025","Кабель управления SC-CONTROL FLEX негорючий, конструкция: 8 х 0,25 мм², оболочка: PVC 6,3 мм, цвет:  серый","м",2.1800000000000002,152.76132000000001]
["380-0056-08034","Кабель управления SC-CONTROL FLEX негорючий, конструкция: 8 х 0,34 мм², оболочка: PVC 7,0 мм, цвет:  серый","м",2.79,195.50646]
["380-0056-08050","Кабель управления SC-CONTROL FLEX негорючий, конструкция: 8 х 0,50 мм², оболочка: PVC 8,0 мм, цвет:  серый","м",4.18,292.90931999999998]
["380-0056-08075","Кабель управления SC-CONTROL FLEX негорючий, конструкция: 8 х 0,75 мм², оболочка: PVC 9,2 мм, цвет:  серый","м",5.42,379.80108000000001]
["380-0056-10014","Кабель управления SC-CONTROL FLEX негорючий, конструкция: 10 х 0,14 мм², оболочка: PVC 6,1 мм, цвет:  серый","м",2.1,147.15540000000001]
["380-0056-10025","Кабель управления SC-CONTROL FLEX негорючий, конструкция: 10 х 0,25 мм², оболочка: PVC 6,9 мм, цвет:  серый","м",2.71,189.90054000000001]
["380-0056-10034","Кабель управления SC-CONTROL FLEX негорючий, конструкция: 10 х 0,34 мм², оболочка: PVC 7,7 мм, цвет:  серый","м",3.42,239.65308000000002]
["380-0056-10050","Кабель управления SC-CONTROL FLEX негорючий, конструкция: 10 х 0,50 мм², оболочка: PVC 9,1 мм, цвет:  серый","м",5.68,398.02032000000003]
["380-0056-10075","Кабель управления SC-CONTROL FLEX негорючий, конструкция: 10 х 0,75 мм², оболочка: PVC 10,4 мм, цвет:  серый","м",6.11,428.15214000000009]
["380-0056-12014","Кабель управления SC-CONTROL FLEX негорючий, конструкция: 12 х 0,14 мм², оболочка: PVC 6,3 мм, цвет:  серый","м",2.29,160.46946]
["380-0056-12025","Кабель управления SC-CONTROL FLEX негорючий, конструкция: 12 х 0,25 мм², оболочка: PVC 7,1 мм, цвет:  серый","м",3.27,229.14198000000002]
["380-0056-12034","Кабель управления SC-CONTROL FLEX негорючий, конструкция: 12 х 0,34 мм², оболочка: PVC 7,9 мм, цвет:  серый","м",3.94,276.09156000000002]
["380-0056-12050","Кабель управления SC-CONTROL FLEX негорючий, конструкция: 12 х 0,50 мм², оболочка: PVC 9,4 мм, цвет:  серый","м",5.44,381.20256000000006]
["380-0056-12075","Кабель управления SC-CONTROL FLEX негорючий, конструкция: 12 х 0,75 мм², оболочка: PVC 10,8 мм, цвет:  серый","м",7.08,496.12392]
["380-0056-14014","Кабель управления SC-CONTROL FLEX негорючий, конструкция: 14 х 0,14 мм², оболочка: PVC 6,5 мм, цвет:  серый","м",2.56,179.38944000000001]
["380-0056-14025","Кабель управления SC-CONTROL FLEX негорючий, конструкция: 14 х 0,25 мм², оболочка: PVC 7,4 мм, цвет:  серый","м",3.74,262.07676000000004]
["380-0056-16014","Кабель управления SC-CONTROL FLEX негорючий, конструкция: 16 х 0,14 мм², оболочка: PVC 6,8 мм, цвет:  серый","м",3.1,217.22940000000003]
["380-0056-16025","Кабель управления SC-CONTROL FLEX негорючий, конструкция: 16 х 0,25 мм², оболочка: PVC 7,8 мм, цвет:  серый","м",4.03,282.39822000000004]
["380-0056-16050","Кабель управления SC-CONTROL FLEX негорючий, конструкция: 16 х 0,50 мм², оболочка: PVC 10,4 мм, цвет:  серый","м",8.0299999999999994,562.69421999999997]
["380-0056-18014","Кабель управления SC-CONTROL FLEX негорючий, конструкция: 18 х 0,14 мм², оболочка: PVC 7,1 мм, цвет:  серый","м",11.27,789.73398000000009]
["380-0056-18034","Кабель управления SC-CONTROL FLEX негорючий, конструкция: 18 х 0,34 мм², оболочка: PVC 9,3 мм, цвет:  серый","м",6.4,448.47360000000009]
["380-0056-18075","Кабель управления SC-CONTROL FLEX негорючий, конструкция: 18 х 0,75 мм², оболочка: PVC 12,5 мм, цвет:  серый","м",10.98,769.41252000000009]
["380-0056-25014","Кабель управления SC-CONTROL FLEX негорючий, конструкция: 25 х 0,14 мм², оболочка: PVC 8,1 мм, цвет:  серый","м",5.5,385.40700000000004]
["380-0056-25025","Кабель управления SC-CONTROL FLEX негорючий, конструкция: 25 х 0,25 мм², оболочка: PVC 9,6 мм, цвет:  серый","м",7.24,507.33576000000005]
["380-0241-05034AQ","Кабель управления SC-AQUA MARINEX LED CONTROL RGBW водонепроницаемый, конструкция: 5 х 0,34 мм², оболочка: PUR-SR 5,1 мм, цвет:  черный","м","По запросу","По запросу"]
["400-0075","Кабель акустический плоский (параллельный) SC-TWINCORD, конструкция: 2 х 0,75 мм², оболочка: PVC 4,5 x 2,8 мм, цвет:  прозрачный","м",0.81,56.759940000000007]
["400-0150","Кабель акустический плоский (параллельный) SC-TWINCORD, конструкция: 2 х 1,5 мм², оболочка: PVC 6,5 x 2,8 мм, цвет:  прозрачный","м",1.63,114.22062]
["400-0250","Кабель акустический плоский (параллельный) SC-TWINCORD, конструкция: 2 х 2,5 мм², оболочка: PVC 7,5 x 3,5 мм, цвет:  прозрачный","м",2.42,169.57908]
["400-0400","Кабель акустический плоский (параллельный) SC-TWINCORD, конструкция: 2 х 4,0 мм², оболочка: PVC 8,6 x 4,2 мм, цвет:  прозрачный","м",3.97,278.19378000000006]
["400-0600","Кабель акустический плоский (параллельный) SC-TWINCORD, конструкция: 2 х 6,0 мм², оболочка: PVC 11,2 x 5,5 мм мм, цвет:  прозрачный","м",6.32,442.86768000000001]
["401-0150-WS","Кабель акустический плоский (параллельный) SC-PRISMA 215, конструкция: 2 х 1,5 мм², оболочка: PVC 8,0 х 3,3 мм, цвет:  белый","м",1.94,135.94355999999999]
["401-0250-WS","Кабель акустический плоский (параллельный) SC-PRISMA 225, конструкция: 2 х 2,5 мм², оболочка: PVC 9,7 х 4,0 мм, цвет:  белый","м",2.83,198.30942000000002]
["401-0400-WS","Кабель акустический плоский (параллельный) SC-PRISMA 240, конструкция: 2 х 4,0 мм², оболочка: PVC 9,8 х 4,8 мм, цвет:  белый","м",4.43,310.42782]
["415-0050NE","Кабель акустический круглый для мобильного применения SC-MERIDIAN MOBILE SP215 без маркировки на оболочке, конструкция: 2 х 1,5 мм², оболочка: PVC 6,8 мм, цвет:  черный","м",2.0499999999999998,143.65169999999998]
["415-0051","Кабель акустический круглый для мобильного применения SC-MERIDIAN MOBILE SP215, конструкция: 2 х 1,5 мм², оболочка: PVC 6,8 мм, цвет:  черный","м",2.0499999999999998,143.65169999999998]
["415-0051F","Кабель акустический круглый инсталляционный SC-MERIDIAN INSTALL SP215 FRNC негорючий, конструкция: 2 х 1,5 мм², оболочка: FRNC 6,8 мм, цвет:  черный","м",2.66,186.39684000000003]
["415-0055E30","Кабель акустический круглый инсталляционный SC-MERIDIAN INSTALL SP215 E30 негорючий Е30, конструкция: 2 х 1,5 мм², оболочка: FRNC 9,0 мм, цвет:  оранжевый","м",4.9000000000000004,343.36260000000004]
["415-0056","Кабель акустический круглый для мобильного применения SC-MERIDIAN MOBILE SP215, конструкция: 2 х 1,5 мм², оболочка: PVC 6,8 мм, цвет:  темно-серый","м",2.0499999999999998,143.65169999999998]
["415-0056FG","Кабель акустический круглый инсталляционный SC-MERIDIAN INSTALL SP215 FG негорючий экранированный, конструкция: 2 х 1,5 мм², оболочка: FRNC 8,0 мм, цвет:  темно-серый","м",4.1100000000000003,288.00414000000001]
["415-0310","Кабель акустический плоский (параллельный) SC-TRIBUN, конструкция: 2 х 1,5 мм², оболочка: PVC 12,8 х 2,4 мм, цвет:  белый","м",2.35,164.67390000000003]
["420-0075-SW","Кабель акустический плоский (параллельный) SC-NYFAZ, конструкция: 2 х 0,75 мм², оболочка: PVC 4,5 x 2,3 мм, цвет:  черный","м",0.76,53.256240000000005]
["420-0075-WS","Кабель акустический плоский (параллельный) SC-NYFAZ, конструкция: 2 х 0,75 мм², оболочка: PVC 4,5 x 2,3 мм, цвет:  белый","м",0.76,53.256240000000005]
["420-0150-SW","Кабель акустический плоский (параллельный) SC-NYFAZ, конструкция: 2 х 1,5 мм², оболочка: PVC 6,5 x 2,8 мм, цвет:  черный","м",1.5,105.11100000000002]
["420-0150-WS","Кабель акустический плоский (параллельный) SC-NYFAZ, конструкция: 2 х 1,5 мм², оболочка: PVC 6,5 x 2,8 мм, цвет:  белый","м",1.5,105.11100000000002]
["420-0250-SW","Кабель акустический плоский (параллельный) SC-NYFAZ, конструкция: 2 х 2,5 мм², оболочка: PVC 7,5 x 3,5 мм, цвет:  черный","м",2.29,160.46946]
["420-0400-SW","Кабель акустический плоский (параллельный) SC-NYFAZ, конструкция: 2 х 4,0 мм², оболочка: PVC 10,2 x 4,4 мм, цвет:  черный","м",3.66,256.47084000000001]
["425-0050","Кабель акустический круглый для мобильного применения SC-MERIDIAN MOBILE SP225, конструкция: 2 х 2,5 мм², оболочка: PVC 7,8 мм, цвет:  белый","м",2.87,201.11238]
["425-0051","Кабель акустический круглый для мобильного применения SC-MERIDIAN MOBILE SP225, конструкция: 2 х 2,5 мм², оболочка: PVC 7,8 мм, цвет:  черный","м",2.87,201.11238]
["425-0051F","Кабель акустический круглый инсталляционный SC-MERIDIAN INSTALL SP225 FRNC негорючий, конструкция: 2 х 2,5 мм², оболочка: FRNC 7,8 мм, цвет:  черный","м",3.53,247.36122]
["425-0051P","Кабель акустический круглый для мобильного применения SC-MERIDIAN MOBILE SP225, конструкция: 2 х 2,5 мм², оболочка: PUR 7,8 мм, цвет:  черный","м",3.68,257.87232000000006]
["425-0055E30","Кабель акустический круглый инсталляционный SC-MERIDIAN INSTALL SP225 E30 негорючий Е30, конструкция: 2 х 2,5 мм², оболочка: FRNC 9,8 мм, цвет:  оранжевый","м",5.97,418.34178000000003]
["425-0056","Кабель акустический круглый для мобильного применения SC-MERIDIAN MOBILE SP225, конструкция: 2 х 2,5 мм², оболочка: PVC 7,8 мм, цвет:  темно-серый","м",2.87,201.11238]
["425-0056FG","Кабель акустический круглый инсталляционный SC-MERIDIAN INSTALL SP225 FG негорючий экранированный, конструкция: 2 х 2,5 мм², оболочка: FRNC 8,3 мм, цвет:  темно-серый","м",5.34,374.19515999999999]
["425-008M","Кабель акустический круглый для мобильного применения SC-MAJOR INVISIBLE, конструкция: 2 х 2,5 мм², оболочка: PVC 7,8 мм, цвет:  темно-оливковый","м",2.97,208.11978000000002]
["425-0151","Кабель акустический плоский (параллельный) SC-ORBIT 225 MKII, конструкция: 2 х 2,5 мм², оболочка: PVC 10,2 x 4,8 мм, цвет:  черный прозрачный","м",3.52,246.66048000000001]
["425-0201","Кабель акустический коаксиальный SC-MAGELLAN SPK225, конструкция: 2 х 2,5 мм², оболочка: PVC 6,0 мм, цвет:  черный","м",3.35,234.74790000000002]
["425-0201F","Кабель акустический коаксиальный SC-MAGELLAN SPK225 FRNC негорючий, конструкция: 2 х 2,5 мм², оболочка: FRNC 6,0 мм, цвет:  черный","м",3.63,254.36861999999999]
["425-0241AQ","Кабель акустический круглый водонепроницаемый SC-AQUA MARINEX SPEAKER 225 без галогенов экранированный, конструкция: 2 х 2,5 мм², оболочка: PUR-SR 8,2 мм, цвет:  черный","м",9.15,641.1771]
["425-0310","Кабель акустический плоский (параллельный) SC-TRIBUN, конструкция: 2 х 2,5 мм², оболочка: PVC 14,6 x 2,6 мм, цвет:  белый","м",3.29,230.54346000000004]
[43240,"HICON инструмент для демонтажа контактов в 8 - 85-контактных LK разъемах HICON","шт",156.76,10984.80024]
["440-0051","Кабель акустический круглый для мобильного применения SC-MERIDIAN MOBILE SP240, конструкция: 2 х 4,0 мм², оболочка: PVC 9,5 мм, цвет:  черный","м",4.71,330.04854]
["440-0051F","Кабель акустический круглый инсталляционный SC-MERIDIAN INSTALL SP240 FRNC негорючий, конструкция: 2 х 4,0 мм², оболочка: FRNC 9,5 мм, цвет:  черный","м",5.63,{"$f":"IF(D269=\"По запросу\",D269,D269*$B$6*(1+0.02))","v":394.51661999999999}]
["440-0055E30","Кабель акустический круглый инсталляционный SC-MERIDIAN INSTALL SP240 E30 негорючий Е30, конструкция: 2 х 4,0 мм², оболочка: FRNC 11,0 мм, цвет:  оранжевый","м",8.84,619.45416]
["440-0056","Кабель акустический круглый для мобильного применения SC-MERIDIAN MOBILE SP240, конструкция: 2 х 4,0 мм², оболочка: PVC 9,5 мм, цвет:  темно-серый","м",4.71,330.04854]
["440-0056FG","Кабель акустический круглый инсталляционный SC-MERIDIAN INSTALL SP240 FG негорючий экранированный, конструкция: 2 х 4,0 мм², оболочка: FRNC 10,1 мм, цвет:  темно-серый","м",7.68,538.16831999999999]
["440-0151","Кабель акустический плоский (параллельный) SC-ORBIT 240 MKII, конструкция: 2 х 4,0 мм², оболочка: PVC 12 x 5,9 мм, цвет:  черный прозрачный","м",4.84,339.15816000000001]
["440-0201","Кабель акустический коаксиальный SC-MAGELLAN SPK240, конструкция: 2 х 4,0 мм², оболочка: PVC 8,0 мм, цвет:  черный","м",5.34,374.19515999999999]
["440-0201F","Кабель акустический коаксиальный SC-MAGELLAN SPK240 FRNC негорючий, конструкция: 2 х 4,0 мм², оболочка: FRNC 8,0 мм, цвет:  черный","м",5.47,383.30477999999999]
["440-0241AQ","Кабель акустический круглый водонепроницаемый SC-AQUA MARINEX SPEAKER 240 без галогенов экранированный, конструкция: 2 х 4,0 мм², оболочка: PUR-SR 11,2 мм, цвет:  черный","м",13,910.96199999999999]
["440-0256","Кабель акустический круглый с дополнительной жилой управления SC-ECLIPSE SPQ240 MKII, конструкция: 2х4,0 мм² (Аудио)+1х0,50 мм² (Управление), оболочка: PVC 9,5 мм, цвет:  серый","м",5.71,400.12254000000001]
["440-0310","Кабель акустический плоский (параллельный) SC-TRIBUN, конструкция: 2 х 4,0 мм², оболочка: PVC 17,5 х 3,0 мм, цвет:  белый","м",4.6500000000000004,325.84410000000003]
["460-0056","Кабель акустический круглый для мобильного применения SC-MERIDIAN MOBILE SP260, конструкция: 2 х 6,0 мм², оболочка: PVC 10,0 мм, цвет:  темно-серый","м",6.48,454.07952000000006]
["460-0056F","Кабель акустический круглый инсталляционный SC-MERIDIAN INSTALL SP260 FRNC негорючий, конструкция: 2 х 6,0 мм², оболочка: FRNC 11,2 мм, цвет:  темно-серый","м",9,630.66600000000005]
["460-0201F","Кабель акустический коаксиальный SC-MAGELLAN SPK260 FRNC негорючий, конструкция: 2 х 6,0 мм², оболочка: FRNC 11,2 мм, цвет:  черный","м",7.39,517.84685999999999]
["462-0100-205","Кабель акустический плоский (параллельный) SC-FLUKOS SF, конструкция: 2 х 0,50 мм², оболочка: PVC 8,6 x 1,3 мм, цвет:  белый","м",2.92,204.61608000000001]
["462-0100-225","Кабель акустический плоский (параллельный) SC-FLUKOS SF, конструкция: 2 х 2,5 мм², оболочка: PVC 15,9 х 2,2 мм, цвет:  белый","м",5.66,396.61884000000003]
["485-0052-240","Кабель-мультикор акустический класса HIGH END SC-DUAL BLUE, конструкция: 2 х 4,0 мм², оболочка: S-PVC 15,8 мм, цвет:  синий прозрачный","м",23.7,1660.7538000000002]
["485-0052-440","Кабель-мультикор акустический класса HIGH END SC-QUADRA BLUE, конструкция: 4 х 4,0 мм², оболочка: PVC 14,5 мм, цвет:  синий прозрачный","м",27.84,1950.8601600000002]
["490-0051-1640","Кабель-мультикор акустический SC-ELEPHANT ROBUST SPM1640, конструкция: 16 х 4,0 мм², оболочка: PVC 20,5 мм, цвет:  черный","м",39.29,2753.2074600000001]
["490-0051-4025","Кабель-мультикор акустический SC-ELEPHANT SPM4025, конструкция: 4x4,0 мм² + 2x2,5 мм², оболочка: PVC 14,8 мм, цвет:  черный","м",11.98,839.48652000000004]
["490-0051-415","Кабель-мультикор акустический SC-ELEPHANT SPM415, конструкция: 4 х 1,5 мм², оболочка: PVC 8,6 мм, цвет:  черный","м",3.95,276.79230000000001]
["490-0051-415F","Кабель-мультикор акустический SC-ELEPHANT SPM415 FRNC негорючий, конструкция: 4 х 1,5 мм², оболочка: FRNC 8,6 мм, цвет:  черный","м",4.58,320.93892]
["490-0051-425","Кабель-мультикор акустический SC-ELEPHANT SPM425, конструкция: 4 х 2,5 мм², оболочка: PVC 10,2 мм, цвет:  черный","м",5.45,381.9033]
["490-0051-425F","Кабель-мультикор акустический SC-ELEPHANT SPM425 FRNC негорючий, конструкция: 4 х 0,25 мм², оболочка: FRNC 9,0 мм, цвет:  черный","м",6.13,429.55362000000002]
["490-0051-440","Кабель-мультикор акустический SC-ELEPHANT ROBUST SPM440, конструкция: 4 х 4,0 мм², оболочка: PVC 11,0 мм, цвет:  черный","м",8.19,573.90606000000002]
["490-0051-440F","Кабель-мультикор акустический SC-ELEPHANT ROBUST SPM440 FRNC негорючий, конструкция: 4 х 4,0 мм², оболочка: FRNC 11,0 мм, цвет:  черный","м",10.11,708.44814000000008]
["490-0051-460F","Кабель-мультикор акустический SC-ELEPHANT ROBUST SPM460 FRNC негорючий, конструкция: 4 х 6,0 мм², оболочка: FRNC 13,2 мм, цвет:  черный","м",13.52,947.40048000000002]
["490-0051-525","Кабель-мультикор акустический SC-ELEPHANT SPM525, конструкция: 5 х 2,5 мм², оболочка: PVC 11,5 мм, цвет:  черный","м",7.16,501.72984000000008]
["490-0051-540","Кабель-мультикор акустический SC-ELEPHANT ROBUST SPM540, конструкция: 5 х 4,0 мм², оболочка: PVC 12,5 мм, цвет:  черный","м",10.77,754.69698000000005]
["490-0051-825F","Кабель-мультикор акустический SC-ELEPHANT SPM825 FRNC негорючий, конструкция: 8 х 2,5 мм², оболочка: FRNC 12,5 мм, цвет:  черный","м",10.79,756.09846000000005]
["490-0051-840F","Кабель-мультикор акустический SC-ELEPHANT SPM840 FRNC негорючий, конструкция: 8 х 4,0 мм², оболочка: FRNC 15,6 мм, цвет:  черный","м",16.87,1182.1483800000001]
["490-0155-440E30","Кабель-мультикор акустический SC-ELEPHANT ROBUST SPM440 E30 негорючий, конструкция: 4 х 4,0 мм², оболочка: FRNC 12,8 мм, цвет:  черный","м",12.31,862.61094000000014]
["490-0251-440","Кабель-мультикор акустический SC-ELEPHANT ROBUST SPM440 PUR, конструкция: 4 х 4,0 мм², оболочка: PUR 11,0 мм, цвет:  черный","м",10.29,721.06146000000001]
["490-0351-825","Кабель-мультикор акустический SC-ELEPHANT SPM825, конструкция: 8 х 2,5 мм², оболочка: PVC 15,3 мм, цвет:  черный","м",11.92,835.28208000000006]
["490-0351-840","Кабель-мультикор акустический SC-ELEPHANT ROBUST SPM840, конструкция: 8 х 4,0 мм², оболочка: PVC 18,5 мм, цвет:  черный","м",18.05,1264.8357000000001]
["500-0051-1","Кабель комбинированный SC-MONOLITH POWER DMX 1, конструкция: 1x(2x0,25 мм²) (AES/EBU, DMX) + 1х(3x1,5 мм²) (Питание), оболочка: PVC 12,4 мм, цвет:  черный","м",9.57,670.60818000000006]
["500-0051-2","Кабель комбинированный SC-MONOLITH POWER DMX 2, конструкция: 2х(2х0,14 мм²) (AES&EBU, DMX) + 1х(3 х1,5 мм²) (Питание), оболочка: PVC 12,3 мм, цвет:  черный","м",11.33,793.93841999999995]
["500-0051-4","Кабель комбинированный SC-MONOLITH POWER DMX 4, конструкция: 4x(2x0,14 мм²) (AES/EBU, DMX) + 1х(3x1,5 мм²) (Питание), оболочка: PVC 13,2 мм, цвет:  черный","м",14.7,1030.0878]
["500-0101-1","Кабель комбинированный SC-KOLORITH 1, конструкция: 1х(2х0,35 мм²) (Аудио) + 2х2,0 мм² (Питание), оболочка: PVC 7,4 мм, цвет:  черный","м",6,420.44400000000007]
["500-0101-1F","Кабель комбинированный SC-KOLORITH 1 FRNC негорючий, конструкция: 1х(2х0,35 мм²) (Аудио) + 2х2,0 мм² (Питание), оболочка: FRNC 7,4 мм, цвет:  черный","м",7.24,507.33576000000005]
["500-0111-1","Кабель комбинированный SC-KOLORITH MINI, конструкция: 2х0,25 мм² (Аудио) + 2х1,0 мм² (Питание), оболочка: PVC 6,5 мм, цвет:  черный","м",4.24,297.11376000000001]
["500-0111-1F","Кабель комбинированный SC-KOLORITH MINI FRNC негорючий, конструкция: 2х0,25 мм² (Аудио) + 2х1,0 мм² (Питание), оболочка: FRNC 6,5 мм, цвет:  черный","м",4.6500000000000004,325.84410000000003]
["500-0121-1","Кабель управления SC-BUS Control cable для BUS-систем AES/EBU 110 Ом, конструкция: 2х1,00 мм² + 2х0,35 мм², оболочка: PVC 9,3 мм, цвет:  черный","м","По запросу","По запросу"]
["500-0141-1","Кабель комбинированный SC-MONOCAT 111C, конструкция: 1х(4x2x0,14 мм²) (CAT) + 1х(2х0,22 мм²) (DMX) + 3x2,5 мм² (Питание), оболочка: PVC 16,0 мм, цвет:  черный","м",13.68,958.61232000000007]
["500-0151-1","Кабель комбинированный SC-MONOCAT 110C, конструкция: 1х(4x2x0,14 мм²) (CAT) + 3 x2,5 мм² (Питание), оболочка: PVC 13,8 мм, цвет:  черный","м",9.52,667.10447999999997]
["500-0161-2","Кабель комбинированный SC-MONOCAT 202, конструкция: 2x(4x2x0,14 мм²) (CAT) + 2x(2x0,25 мм²) (DMX), оболочка: PVC 15,6 мм, цвет:  черный","м",24.11,1689.48414]
["500-0191-2","Кабель комбинированный SC-MONOCAT POWER 212, конструкция: 2x(4x2x0,57 мм) (CAT) + 2x(2x0,25 мм²) (DMX) + 1х(3х2,5 мм²) (Питание), оболочка: PVC 21,8 мм, цвет:  черный","м",29.48,2065.78152]
["500-0191-4","Кабель комбинированный SC-MONOCAT POWER 414, конструкция: 4x(4x2x0,51 мм) (CAT) + 4x(2x0,25 мм²) (DMX) + 1х(3х2,5 мм²) (Питание), оболочка: PVC 27,0 мм, цвет:  черный","м",50.78,3558.3577200000004]
["500-0240AQ","Кабель комбинированный SC-AQUA MARINEX POWER+DMX водонепроницаемый, конструкция: 1x(2x0,14 мм²) (AES/EBU, DMX) + 3x1,5 мм² (Питание), оболочка: PUR-SR 9,4 мм, цвет:  белый","м",10.93,765.90881999999999]
["500-0241AQ","Кабель комбинированный SC-AQUA MARINEX POWER+DMX водонепроницаемый, конструкция: 1x(2x0,14 мм²) (AES/EBU, DMX) + 3x1,5 мм² (Питание), оболочка: PUR-SR 9,4 мм, цвет:  черный","м",10.93,765.90881999999999]
["500-0281-2","Кабель комбинированный SC-MONOLITH POWER DMX 2 HV, конструкция: 2x(2x0,25 мм²) (AES/EBU, DMX) + 1х(3x2,5 мм²) (Питание), оболочка: PVC 16,0 мм, цвет:  черный","м",15.04,1053.9129600000001]
["500-0281-4","Кабель комбинированный SC-MONOLITH POWER DMX 4 HV, конструкция: 4x(2x0,25 мм²) (AES/EBU, DMX) + 1х(3x2,5 мм²) (Питание), оболочка: PVC 18,0 мм, цвет:  черный","м",21.11,1479.26214]
["500-0281-8","Кабель комбинированный SC-MONOLITH POWER DMX 8 HV, конструкция: 8x(2x0,14 мм²) (AES/EBU, DMX) + 1х(3x2,5 мм²) (Питание), оболочка: PVC 17,4 мм, цвет:  черный","м",21.15,1482.0650999999998]
["500-0406","Кабель микрофонный (балансный) патч-корд SC-ISOPOD SO-F22D AES/EBU 110 Ом, конструкция: 2 х 0,22 мм², оболочка: PVC 3,3 мм, цвет:  серый","м",1.17,81.986580000000004]
["501-0171-8","Кабель комбинированный SC-MONOCAT POWER 810, конструкция: 8x(4x2x0,14 мм²) (CAT) + 1х(3 x2,5 мм²) (Питание), оболочка: PUR 26,4 мм, цвет:  черный","м",50.8,3559.7592]
["501-0191-2","Кабель комбинированный SC-MONOCAT POWER 212, конструкция: 1х(2x4x0,57 мм) (CAT) + 1х(2х0,25 мм²) (DMX) + 1х(3x2,5 мм²) (Питание), оболочка: PUR 21,8 мм, цвет:  черный","м",33.67,2359.3915800000004]
["502-0051-1","Кабель комбинированный SC-MONOLITH POWER DMX 1 COMPACT, конструкция: 1x(2x0,14 мм²) (AES/EBU, DMX) + 3x1,5 мм² (Питание), оболочка: PVC 9,5 мм, цвет:  черный","м",7.52,526.95648000000006]
["520-0051","Кабель цифровой AES/EBU & DMX SC-BINARY 234 AES/EBU MKII, конструкция: 2 х 0,34 мм², оболочка: PVC 6,2 мм, цвет:  черный","м",2.57,180.09018]
["520-0051F","Кабель цифровой AES/EBU & DMX SC-BINARY 234 AES/EBU MKII негорючий, конструкция: 2 х 0,34 мм², оболочка: FRNC 5,6 мм, цвет:  черный","м",3.02,211.62348000000003]
["520-0052","Кабель цифровой AES/EBU & DMX SC-BINARY 234 AES/EBU MKII, конструкция: 2 х 0,34 мм², оболочка: PVC 6,2 мм, цвет:  синий","м",2.57,180.09018]
["520-0056","Кабель цифровой AES/EBU & DMX SC-BINARY 234 AES/EBU MKII, конструкция: 2 х 0,34 мм², оболочка: PVC 6,2 мм, цвет:  серый","м",2.57,180.09018]
["520-0101","Кабель цифровой AES/EBU & DMX (патч-корд) SC-SEMICOLON 2 AES/EBU PATCH, конструкция: 2 х 0,22 мм², оболочка: PVC 5,0 мм, цвет:  черный","м",1.87,131.03838000000002]
["520-0102","Кабель цифровой AES/EBU & DMX (патч-корд) SC-SEMICOLON 2 AES/EBU PATCH, конструкция: 2 х 0,22 мм², оболочка: PVC 5,0 мм, цвет:  синий","м",1.87,131.03838000000002]
["520-0102F","Кабель цифровой AES/EBU & DMX (патч-корд) SC-SEMICOLON 2 AES/EBU PATCH негорючий, конструкция: 2 х 0,22 мм², оболочка: FRNC 5,0 мм, цвет:  синий","м",2.4300000000000002,170.27982000000003]
["520-0140","Кабель цифровой AES/EBU & DMX (патч-корд) SC-SEMICOLON 4 AES/EBU PATCH 4-х жильный, конструкция: 4 х 0,14 мм², оболочка: PVC 5,2 мм, цвет:  белый","м",2.91,203.91534000000004]
["521-0051","Кабель цифровой AES/EBU & DMX SC-BINARY 234 AES/EBU MKII, конструкция: 2 х 0,34 мм², оболочка: PUR-BLEND 6,2 мм, цвет:  черный","м",2.98,{"$f":"IF(D333=\"По запросу\",D333,D333*$B$6*(1+0.02))","v":208.82052000000002}]
["521-0141","Кабель цифровой AES/EBU & DMX (патч-корд) SC-SEMICOLON 4 AES/EBU PATCH негорючий 4-х жильный, конструкция: 4 х 0,14 мм², оболочка: SOFT PUR FRNC 5,2 мм, цвет:  черный","м",3.52,246.66048000000001]
["540-0051","Кабель цифровой AES/EBU & DMX двупарный SC-BINARY 434 DMX512 двупарный, конструкция: 4 х 0,34 мм², оболочка: PVC 7,0 мм, цвет:  черный","м",3.3,231.24420000000001]
["540-0051F","Кабель цифровой AES/EBU & DMX двупарный SC-BINARY 434 DMX512 FRNC негорючий, конструкция: 4 х 0,34 мм², оболочка: FRNC 7,0 мм, цвет:  черный","м",4,280.29599999999999]
["540-0051PE","Кабель цифровой AES/EBU & DMX двупарный SC-BINARY 434 DMX512, конструкция: 4 х 0,34 мм², оболочка: PE 7,0 мм, цвет:  черный","м",4.22,295.71227999999996]
["540-0056","Кабель цифровой AES/EBU & DMX двупарный SC-BINARY 434 DMX512, конструкция: 4 х 0,34 мм², оболочка: PVC 7,0 мм, цвет:  серый","м",3.3,231.24420000000001]
["541-0051","Кабель цифровой AES/EBU & DMX двупарный SC-BINARY 434 DMX512, конструкция: 4 х 0,34 мм², оболочка: PUR-BLEND 7,0 мм, цвет:  черный","м",3.83,268.38342000000006]
["542-0051","Кабель цифровой AES/EBU & DMX двупарный SC-BINARY 422 TP DMX512, конструкция: 4 х 0,22 мм², оболочка: S-PVC 8,0 мм, цвет:  черный","м",4.0199999999999996,281.69747999999998]
["542-0052","Кабель цифровой AES/EBU & DMX двупарный SC-BINARY 422 TP DMX512, конструкция: 4 х 0,22 мм², оболочка: S-PVC 8,0 мм, цвет:  синий","м",4.0199999999999996,281.69747999999998]
["580-0056","Кабель \"Витая пара\" 5-ой категории SC-MERCATOR CAT.5E INSTALL SF/UTP, конструкция: 4 х 2 х 0,51 мм, оболочка: PVC 6,1 мм, цвет:  серый","м",1.45,101.6073]
["580-0056F","Кабель \"Витая пара\" 5-ой категории SC-MERCATOR CAT.5E INSTALL F/UTP негорючий, конструкция: 4 х 2 х 0,51 мм, оболочка: FRNC 6,4 мм, цвет:  серый","м",1.48,103.70952]
["580-0076F","Кабель \"Витая пара\" 5-ой категории SC-MERCATOR CAT.5E INSTALL SF/UTP негорючий, конструкция: 4 х 2 х 0,51 мм, оболочка: FRNC 6,4 мм, цвет:  серый","м",1.89,132.43985999999998]
["580-0106","Кабель \"Витая пара\" 5-ой категории SC-MERCATOR CAT.5E PATCH F/UTP, конструкция: 4 х 2 х 0,14 мм², оболочка: PVC 5,7 мм, цвет:  серый","м",1.29,90.39546]
["580-0201","Кабель \"Витая пара\" 6-ой категории SC-MERCATOR CAT.6 PUR SUPERFLEX S/UTP негорючий, конструкция: 4 х 2 х 0,57 мм, оболочка: PUR 8,0 мм, цвет:  черный","м",3.98,278.89452]
["580-0241AQ","Кабель \"Витая пара\" 6-ой категории SC-AQUA MARINEX CAT.6 PUR-SR SF/UTP водонепроницаемый, конструкция: 4 х 2 х 0,51 мм, оболочка: PUR-SR 8,3 мм, цвет:  черный","м",15.43,1081.24182]
["580-0255F","Кабель \"Витая пара\" 7-ой категории SC-MERCATOR CAT.7 INSTALL S/FTP негорючий, конструкция: 4 х 2 х 0,57 мм, оболочка: FRNC 7,6 мм, цвет:  оранжевый","м",2.29,160.46946]
["580-0295F","Кабель \"Витая пара\" 7-ой категории SC-MERCATOR CAT.7 INSTALL DUPLEX S/FTP негорючий, конструкция: 2х(4х2х0,57 мм), оболочка: FRNC 2,0 x 8,5 мм, цвет:  оранжевый","м",5.32,372.79368000000005]
["580-0306F","Кабель \"Витая пара\" 7-ой категории SC-MERCATOR CAT.7 PATCH S/FTP негорючий, конструкция: 4 х 2 х 0,14 мм², оболочка: FRNC 6,5 мм, цвет:  серый","м",1.98,138.74652]
["580-0311-04","Кабель \"Витая пара\" 7-ой категории SC-MERCATOR CAT.7 QUAD S/FTP, конструкция: 4 x (4x2x0,51 мм), оболочка: PVC 20,8 мм, цвет:  черный","м",20.05,1404.9837000000002]
["580-0417F","Кабель \"Витая пара\" 7-ой категории SC-MERCATOR CAT.7a INSTALL S/FTP негорючий, конструкция: 4 х 2 х 0,64 мм, оболочка: FRNC 8,4 мм, цвет:  желтый","м",2.94,206.01756]
["580-0465","Кабель \"Витая пара\" 6-ой категории SC-MERCATOR CAT.6 F/UTP негорючий, конструкция: 4 х 2 х 0,57 мм, оболочка: FRNC 7,1 мм, цвет:  оранжевый","м",2.19,153.46206000000001]
["581-0051","Кабель \"Витая пара\" 5-ой категории SC-MERCATOR CAT.5 PUR SF/UTP негорючий, конструкция: 4 х 2 х 0,15 мм², оболочка: PUR-FRNC 6,2 мм, цвет:  черный","м",4.45,311.82930000000005]
["581-0052","Кабель \"Витая пара\" 5-ой категории SC-MERCATOR CAT.5 PUR SF/UTP негорючий, конструкция: 4 х 2 х 0,15 мм², оболочка: PUR-FRNC 6,2 мм, цвет:  синий","м",4.47,313.23077999999998]
["581-0071","Кабель \"Витая пара\" 7-ой категории SC-MERCATOR CAT.7 PUR S/FTP негорючий, конструкция: 4 х 2 х 0,14 мм², оболочка: PUR 6,5 мм, цвет:  черный","м",4.5199999999999996,316.73448000000002]
["581-0076","Кабель \"Витая пара\" 7-ой категории SC-MERCATOR CAT.7 PUR S/FTP негорючий, конструкция: 4 х 2 х 0,14 мм², оболочка: PUR 6,5 мм, цвет:  серый","м",4.5199999999999996,316.73448000000002]
["581-0078","Кабель \"Витая пара\" 7-ой категории SC-MERCATOR CAT.7 PUR S/FTP негорючий, конструкция: 4 х 2 х 0,14 мм², оболочка: PUR 6,5 мм, цвет:  фиолетовый","м",4.5199999999999996,316.73448000000002]
["581-0214","Кабель \"Витая пара\" KVM удлинитель (extender) SC-MERCATOR EXTEND U/UTP, конструкция: 4 х 2 х 0,23 мм², оболочка: PVC 6,6 мм, цвет:  зеленый","м",2.77,194.10498000000001]
["581-0251","Кабель \"Витая пара\" 7-ой категории SC-MERCATOR CAT.7 PUR XL S/FTP негорючий, конструкция: 4 х 2 х 0,26 мм², оболочка: PUR 8,5 мм, цвет:  черный","м",6.47,453.37878000000001]
["590-0092","Кабель оптоволоконный многомодовый / Полимерное оптоволокно POF 980/1000 мкм SC-OCTOPUS simplex, количество волокон: 1, оболочка: S-PVC 6,0 мм, цвет:  синий","м",5.65,395.91810000000004]
["590-0103","Кабель оптоволоконный многомодовый / Полимерное оптоволокно POF 980/1000 мкм SC-OCTOPUS duplex, количество волокон: 2, оболочка: PUR 6,0 мм, цвет:  красный","м",12.5,875.92500000000007]
["590-0111-04-OM3","Кабель оптоволоконный многомодовый 50/125 мкм SC-OCTOPUS MARINEX OM3 водонепроницаемый, количество волокон: 4, оболочка: PUR 8,5 мм, цвет:  черный","м",8.61,603.33713999999998]
["590-0311-04-OM3","Кабель оптоволоконный многомодовый 50/125 мкм SC-OCTOPUS-G OM3 негорючий, количество волокон: 4, оболочка: PUR-FRNC 5,5 мм, цвет:  черный","м",7.5,525.55500000000006]
["590-0311-12-OM3","Кабель оптоволоконный многомодовый 50/125 мкм SC-OCTOPUS-G OM3 негорючий, количество волокон: 12, оболочка: PUR-FRNC 7,4 мм, цвет:  черный","м",10.78,755.39772000000005]
["590-0321-04","Кабель оптоволоконный одномодовый 9/125 мкм SC-OCTOPUS-G OS2 негорючий, количество волокон: 4, оболочка: PUR-FRNC 5,5 мм, цвет:  черный","м",6.91,484.21134000000006]
["590-0321-12","Кабель оптоволоконный одномодовый 9/125 мкм SC-OCTOPUS-G OS2 негорючий, количество волокон: 12, оболочка: PUR-FRNC 7,4 мм, цвет:  черный","м","По запросу","По запросу"]
["590-0411-04","Кабель оптоволоконный многомодовый 50/125 мкм SC-OCTOPUS-G OM2, количество волокон: 4, оболочка: PE 7,0 мм, цвет:  черный","м",2.63,184.29462000000001]
["590-0411-04-OM3","Кабель оптоволоконный многомодовый 50/125 мкм SC-OCTOPUS-G OM3, количество волокон: 4, оболочка: PE 7,0 мм, цвет:  черный","м",3.74,262.07676000000004]
["590-0411-04-OM4","Кабель оптоволоконный многомодовый 50/125 мкм SC-OCTOPUS-G OM4, количество волокон: 4, оболочка: PE 7,0 мм, цвет:  черный","м","По запросу","По запросу"]
["590-0411-08","Кабель оптоволоконный многомодовый 50/125 мкм SC-OCTOPUS-G OM2, количество волокон: 8, оболочка: PE 7,2 мм, цвет:  черный","м",3.43,240.35382000000001]
["590-0411-08-OM3","Кабель оптоволоконный многомодовый 50/125 мкм SC-OCTOPUS-G OM3, количество волокон: 8, оболочка: PE 7,2 мм, цвет:  черный","м",4.33,303.42042000000004]
["590-0411-12","Кабель оптоволоконный многомодовый 50/125 мкм SC-OCTOPUS-G OM2, количество волокон: 12, оболочка: PE 7,2 мм, цвет:  черный","м",3.43,240.35382000000001]
["590-0411-12-OM3","Кабель оптоволоконный многомодовый 50/125 мкм SC-OCTOPUS-G OM3, количество волокон: 12, оболочка: PE 7,2 мм, цвет:  черный","м",5.89,412.73586]
["590-0411-24","Кабель оптоволоконный многомодовый 50/125 мкм SC-OCTOPUS-G OM2, количество волокон: 24, оболочка: PE 7,6 мм, цвет:  черный","м",5.98,419.04252000000002]
["590-0411-24-OM3","Кабель оптоволоконный многомодовый 50/125 мкм SC-OCTOPUS-G OM3, количество волокон: 24, оболочка: PE 7,6 мм, цвет:  черный","м",9.98,699.33852000000013]
["590-0421-04","Кабель оптоволоконный одномодовый 9/125 мкм SC-OCTOPUS-G OS2, количество волокон: 4, оболочка: PE 7,0 мм, цвет:  черный","м",2,140.148]
["590-0421-08","Кабель оптоволоконный одномодовый 9/125 мкм SC-OCTOPUS-G OS2, количество волокон: 8, оболочка: PE 7,0 мм, цвет:  черный","м",2.2599999999999998,158.36724000000001]
["590-0421-12","Кабель оптоволоконный одномодовый 9/125 мкм SC-OCTOPUS-G OS2, количество волокон: 12, оболочка: PE 7,0 мм, цвет:  черный","м",2.48,173.78352000000001]
["590-0421-24","Кабель оптоволоконный одномодовый 9/125 мкм SC-OCTOPUS-G OS2, количество волокон: 24, оболочка: PE 7,6 мм, цвет:  черный","м",3.67,257.17158000000001]
["590-0511-04","Кабель оптоволоконный многомодовый 50/125 мкм SC-OCTOPUS-G OM2 негорючий, количество волокон: 4, оболочка: FRNC / LSZH 7,0 мм, цвет:  черный","м",2.52,176.58647999999999]
["590-0511-04-OM3","Кабель оптоволоконный многомодовый 50/125 мкм SC-OCTOPUS G OM3 негорючий, количество волокон: 4, оболочка: FRNC / LSZH 7,0 мм, цвет:  черный","м",4.07,285.20118000000002]
["590-0511-04-OM4","Кабель оптоволоконный многомодовый 50/125 мкм SC-OCTOPUS-G OM4 негорючий, количество волокон: 4, оболочка: FRNC / LSZH 7,0 мм, цвет:  черный","м",4.54,318.13596000000001]
["590-0511-08","Кабель оптоволоконный многомодовый 50/125 мкм SC-OCTOPUS-G OM2 негорючий, количество волокон: 8, оболочка: FRNC / LSZH 7,0 мм, цвет:  черный","м",3.02,211.62348000000003]
["590-0511-08-OM3","Кабель оптоволоконный многомодовый 50/125 мкм SC-OCTOPUS-G OM3 негорючий, количество волокон: 8, оболочка: FRNC / LSZH 7,0 мм, цвет:  черный","м",5.24,367.18776000000008]
["590-0511-08-OM4","Кабель оптоволоконный многомодовый 50/125 мкм SC-OCTOPUS-G OM4 негорючий, количество волокон: 8, оболочка: FRNC / LSZH 7,0 мм, цвет:  черный","м",7.57,530.46018000000015]
["590-0511-12","Кабель оптоволоконный многомодовый 50/125 мкм SC-OCTOPUS-G OM2 негорючий, количество волокон: 12, оболочка: FRNC / LSZH 7,0 мм, цвет:  черный","м",3.65,255.77010000000001]
["590-0511-12-OM3","Кабель оптоволоконный многомодовый 50/125 мкм SC-OCTOPUS-G OM3 негорючий, количество волокон: 12, оболочка: FRNC / LSZH 7,0 мм, цвет:  черный","м",6.48,454.07952000000006]
["590-0511-12-OM4","Кабель оптоволоконный многомодовый 50/125 мкм SC-OCTOPUS-G OM4 негорючий, количество волокон: 12, оболочка: FRNC / LSZH 7,0 мм, цвет:  черный","м",9.24,647.48376000000007]
["590-0511-24","Кабель оптоволоконный многомодовый 50/125 мкм SC-OCTOPUS-G OM2 негорючий, количество волокон: 24, оболочка: FRNC / LSZH 7,6 мм, цвет:  черный","м",6.17,432.35658000000001]
["590-0511-24-OM3","Кабель оптоволоконный многомодовый 50/125 мкм SC-OCTOPUS-G OM3 негорючий, количество волокон: 24, оболочка: FRNC / LSZH 7,6 мм, цвет:  черный","м",10.33,723.86442000000011]
["590-0511-24-OM4","Кабель оптоволоконный многомодовый 50/125 мкм SC-OCTOPUS-G OM4 негорючий, количество волокон: 24, оболочка: FRNC / LSZH 7,6 мм, цвет:  черный","м",18.350000000000001,1285.8579000000002]
["590-0511-96","Кабель оптоволоконный многомодовый 50/125 мкм SC-OCTOPUS-G OM2 негорючий, количество волокон: 96, оболочка: FRNC / LSZH 12,8 мм, цвет:  черный","м","По запросу","По запросу"]
["590-0511-96-OM3","Кабель оптоволоконный многомодовый 50/125 мкм SC-OCTOPUS-G OM3 негорючий, количество волокон: 96, оболочка: FRNC / LSZH 12,8 мм, цвет:  черный","м","По запросу","По запросу"]
["590-0521-04","Кабель оптоволоконный одномодовый 9/125 мкм SC-OCTOPUS-G OS2 негорючий, количество волокон: 4, оболочка: FRNC / LSZH 7,0 мм, цвет:  черный","м",2.2599999999999998,158.36724000000001]
["590-0521-12","Кабель оптоволоконный одномодовый 9/125 мкм SC-OCTOPUS-G OS2 негорючий, количество волокон: 12, оболочка: FRNC / LSZH 7,0 мм, цвет:  черный","м",2.83,198.30942000000002]
["590-0521-24","Кабель оптоволоконный одномодовый 9/125 мкм SC-OCTOPUS-G OS2 негорючий, количество волокон: 24, оболочка: FRNC / LSZH 7,6 мм, цвет:  черный","м",3.87,{"$f":"IF(D397=\"По запросу\",D397,D397*$B$6*(1+0.02))","v":271.18638000000004}]
["590-0521-48","Кабель оптоволоконный одномодовый 9/125 мкм SC-OCTOPUS-G OS2 негорючий, количество волокон: 48, оболочка: FRNC / LSZH 11,0 мм, цвет:  черный","м",7.15,501.02910000000003]
["590-0521-96","Кабель оптоволоконный одномодовый 9/125 мкм SC-OCTOPUS-G OS2 негорючий, количество волокон: 96, оболочка: FRNC / LSZH 12,8 мм, цвет:  черный","м","По запросу","По запросу"]
["590-0712-02-OM3","Кабель оптоволоконный многомодовый 50/125 мкм SC-OCTOPUS-G OM3 негорючий, количество волокон: 2, оболочка: FRNC / LSZH 5,8 мм, цвет:  голубой (aqua)","шт",2.89,202.51386000000002]
["590-0712-04-OM3","Кабель оптоволоконный многомодовый 50/125 мкм SC-OCTOPUS-G OM3 негорючий, количество волокон: 4, оболочка: FRNC / LSZH 6,8 мм, цвет:  голубой (aqua)","шт",5.46,382.60404000000005]
["590-0712-08-OM3","Кабель оптоволоконный многомодовый 50/125 мкм SC-OCTOPUS-G OM3 негорючий, количество волокон: 8, оболочка: FRNC / LSZH 9,1 мм, цвет:  голубой (aqua)","шт","По запросу","По запросу"]
["590-0712-12-OM3","Кабель оптоволоконный многомодовый 50/125 мкм SC-OCTOPUS-G OM3 негорючий, количество волокон: 12, оболочка: FRNC / LSZH 11,6 мм, цвет:  голубой (aqua)","шт","По запросу","По запросу"]
["590-0715-08","Кабель оптоволоконный многомодовый 50/125 мкм SC-OCTOPUS-G OM2 негорючий, количество волокон: 8, оболочка: FRNC / LSZH 9,1 мм, цвет:  оранжевый","шт","По запросу","По запросу"]
["590-0715-12","Кабель оптоволоконный многомодовый 50/125 мкм SC-OCTOPUS-G OM2 негорючий, количество волокон: 12, оболочка: FRNC / LSZH 11,6 мм, цвет:  оранжевый","шт","По запросу","По запросу"]
["590-0727-02","Кабель оптоволоконный одномодовый 9/125 мкм SC-OCTOPUS-G OS2 негорючий, количество волокон: 2, оболочка: LSZH 3,9 x 6,8 мм, цвет:  желтый","шт",2.59,181.49166]
["590-0727-04","Кабель оптоволоконный одномодовый 9/125 мкм SC-OCTOPUS-G OS2 негорючий, количество волокон: 4, оболочка: LSZH 8,5 мм, цвет:  желтый","шт",4.83,338.45742000000001]
["590-0727-08","Кабель оптоволоконный одномодовый 9/125 мкм SC-OCTOPUS-G OS2 негорючий, количество волокон: 8, оболочка: LSZH 12,1 мм, цвет:  желтый","шт",9,630.66600000000005]
["590-0727-12","Кабель оптоволоконный одномодовый 9/125 мкм SC-OCTOPUS-G OS2 негорючий, количество волокон: 12, оболочка: LSZH 15,8 мм, цвет:  желтый","шт","По запросу","По запросу"]
["590-0812-04-OM3","Кабель оптоволоконный многомодовый 50/125 мкм SC-OCTOPUS-G OM3 негорючий, количество волокон: 4, оболочка: FRNC / LSZH 4,3 мм, цвет:  голубой (aqua)","шт","По запросу","По запросу"]
["590-0812-08-OM3","Кабель оптоволоконный многомодовый 50/125 мкм SC-OCTOPUS-G OM3 негорючий, количество волокон: 8, оболочка: FRNC / LSZH 5,2 мм, цвет:  голубой (aqua)","шт","По запросу","По запросу"]
["590-0815-04","Кабель оптоволоконный многомодовый 50/125 мкм SC-OCTOPUS-G OM2 негорючий, количество волокон: 4, оболочка: FRNC / LSZH 4,3 мм, цвет:  оранжевый","шт","По запросу","По запросу"]
["591-2441","Кабель комбинированный SC-OCTOPUS-HYBRID 244 PUR BROADCAST CAMERA CABLE, конструкция: 2х9/125 мкм (Оптоволокно) + 2х(2х0,22 мм²) (Управление) + 4х0,5 мм² (Питание), оболочка: PUR 9,2 мм, цвет:  черный","м",13.43,941.09381999999994]
["591-4431","Кабель комбинированный SC-OCTOPUS-HYBRID 443 PUR BROADCAST-CABLE, конструкция: 4х50/125 мкм (Оптоволокно) + 2х(2х0,22 мм²) (Аудио/Управление) + 3х2.5 мм² (Питание], оболочка: PUR 13,4 мм, цвет:  черный","м",20.2,1415.4947999999999]
["600-0051L","Кабель коаксиальный видео SC-FOCUSLINE L HIGHFLEX 0.6/3.7 75 Ом, конструкция: 0,60/3,70 (1 х 0,60 мм) AWG23, оболочка: PVC 6,2 мм, цвет:  черный","м",2.0699999999999998,145.05318]
["600-0051M","Кабель коаксиальный видео SC-FOCUSLINE M HIGHFLEX 0.6/3.7 75 Ом, конструкция: 0,60/3,70 (1 х 0,60 мм) AWG23, оболочка: PVC 6,2 мм, цвет:  черный","м",2.0699999999999998,145.05318]
["600-0051MS","Кабель коаксиальный видео SC-FOCUSLINE MS HIGHFLEX 0.6/3.7 75 Ом Broadcast, конструкция: 0,60/3,70 (1 х 0,60 мм) AWG23, оболочка: FR-PVC 6,2 мм, цвет:  черный","м",2.4300000000000002,170.27982000000003]
["600-0054L","Кабель коаксиальный видео SC-FOCUSLINE L HIGHFLEX 0.6/3.7 75 Ом, конструкция: 0,60/3,70 (1 х 0,60 мм) AWG23, оболочка: PVC 6,2 мм, цвет:  зеленый","м",2.0699999999999998,145.05318]
["600-0054MS","Кабель коаксиальный видео SC-FOCUSLINE MS HIGHFLEX 0.6/3.7 75 Ом Broadcast, конструкция: 0,60/3,70 (1 х 0,60 мм) AWG23, оболочка: FR-PVC 6,2 мм, цвет:  зеленый","м",2.4300000000000002,170.27982000000003]
["600-0054MSF","Кабель коаксиальный видео SC-FOCUSLINE MSF HIGHFLEX 0.6/3.7 75 Ом Broadcast негорючий, конструкция: 0,60/3,70 (1 х 0,60 мм) AWG23, оболочка: FRNC 6,2 мм, цвет:  зеленый","м",2.65,185.6961]
["600-0071L","Кабель коаксиальный видео SC-FOCUSLINE PUR 0.75L/3.4 75 Ом, конструкция: 0,67/3,40 (1 х 0,67 мм) AWG22, оболочка: PUR 5,8 мм, цвет:  черный","м",3.22,225.63828000000004]
["600-0144","Кабель коаксиальный видео SC-RG CLASSIC BROADCAST 1.0/4.8 75 Ом HD-SDI, конструкция: 1,00/4,80 (1 х 1,00 мм) AWG18, оболочка: PVC 7,1 мм, цвет:  зеленый","м",3.17,222.13458]
["600-0144F","Кабель коаксиальный видео SC-RG CLASSIC BROADCAST 1.0/4.8 75 Ом HD-SDI негорючий, конструкция: 1,00/4,80 (1 х 1,00 мм) AWG18, оболочка: FRNC 7,1 мм, цвет:  зеленый","м",3.91,273.98934000000003]
["600-0154","Кабель коаксиальный видео SC-VISIONLINE 1.0/6.6 75 Ом, конструкция: 1,00/6,30 (1 х 1,00 мм) AWG18, оболочка: PVC 9,1 мм, цвет:  зеленый","м",4.54,318.13596000000001]
["600-0161","Кабель коаксиальный видео SC-VECTOR (RCB) 0.8/3.7 75 Ом HD-SDI, конструкция: 0,80/3,70 (1 х 0,80 мм) AWG20, оболочка: PVC 6,0 мм, цвет:  черный","м",2,140.148]
["600-0162","Кабель коаксиальный видео SC-VECTOR (RCB) 0.8/3.7 75 Ом HD-SDI, конструкция: 0,80/3,70 (1 х 0,80 мм) AWG20, оболочка: PVC 6,0 мм, цвет:  синий","м",2,140.148]
["600-0162-02","Кабель коаксиальный видео мультикор SC-VECTOR (RCB) 0.8/3.7 75 Ом HD-SDI, конструкция: 0,80/3,70 (2 х 0,80 мм) AWG20, оболочка: PVC 15,0 мм, цвет:  синий","м",7.98,559.19051999999999]
["600-0162-04","Кабель коаксиальный видео мультикор SC-VECTOR (RCB) 75 Ом HD-SDI, конструкция: 0,80/3,70 (4 х 0,80 мм) AWG20, оболочка: PVC 17,0 мм, цвет:  синий","м",14.59,1022.3796600000001]
["600-0162-08","Кабель коаксиальный видео мультикор SC-VECTOR (RCB) 0.8/3.7 75 Ом HD-SDI, конструкция: 0,80/3,70 (8 х 0,80 мм) AWG20, оболочка: PVC 24,0 мм, цвет:  синий","м",23.7,1660.7538000000002]
["600-0162F","Кабель коаксиальный видео SC-VECTOR (RCB) 0.8/3.7 75 Ом HD-SDI негорючий, конструкция: 0,80/3,70 (1 х 0,80 мм) AWG20, оболочка: FRNC 6,0 мм, цвет:  синий","м",2.2200000000000002,155.56428000000002]
["600-0164","Кабель коаксиальный видео SC-VECTOR (RCB) 0.8/3.7 75 Ом HD-SDI, конструкция: 0,80/3,70 (1 х 0,80 мм) AWG20, оболочка: PVC 6,0 мм, цвет:  зеленый","м",2,140.148]
["600-0174","Кабель коаксиальный видео SC-VECTOR PLUS 1.2L/5.0 75 Ом HD-SDI, конструкция: 1,06/5,00 (1 х 1,06 мм) AWG18, оболочка: PVC 6,95 мм, цвет:  зеленый","м",2.89,202.51386000000002]
["600-0174-05","Кабель коаксиальный видео мультикор SC-VECTOR PLUS 1.2L/5.0 75 Ом HD-SDI, конструкция: 1,06/5,00 (5 х 1,06 мм) AWG18, оболочка: PVC 22,1 мм, цвет:  зеленый","м",23.2,1625.7167999999999]
["600-0174-05F","Кабель коаксиальный видео мультикор SC-VECTOR PLUS 1.2L/5.0 75 Ом HD-SDI негорючий, конструкция: 1,06/5,00 (5 х 1,06 мм) AWG18, оболочка: FRNC 22,1 мм, цвет:  зеленый","м",28.54,1999.9119600000001]
["600-0174F","Кабель коаксиальный видео SC-VECTOR PLUS 1.2L/5.0 75 Ом HD-SDI негорючий, конструкция: 1,06/5,00 (1 х 1,06 мм) AWG18, оболочка: FRNC 6,95 мм, цвет:  зеленый","м",3.13,219.33162000000002]
["600-0211","Кабель коаксиальный видео SC-VECTOR PLUS 1.2L/4.8DZ 75 Ом HD-SDI негорючий, конструкция: 1,06/4,80 (1 х 1,06 мм) AWG18, оболочка: SOFT PUR FRNC 7,1 мм, цвет:  черный","м",5.61,393.11514000000005]
["600-0214","Кабель коаксиальный видео SC-VECTOR PLUS 1.2L/4.8DZ 75 Ом HD-SDI негорючий, конструкция: 1,06/4,80 (1 х 1,06 мм) AWG18, оболочка: SOFT PUR FRNC 7,1 мм, цвет:  зеленый","м",5.61,393.11514000000005]
["600-0214-04","Кабель коаксиальный видео мультикор SC-VECTOR PLUS 4 X 1.2/4.8DZ 75 Ом HD-SDI, конструкция: 1,06/4,80 (4 х 1,06 мм) AWG18, оболочка: PMB 21,8 мм, цвет:  зеленый","м",33.93,2377.6108199999999]
["600-0214-07","Кабель коаксиальный видео мультикор SC-VECTOR PLUS 7 X 1.2/4.8DZ 75 Ом HD-SDI, конструкция: 1,06/4,80 (7 х 1,06 мм) AWG18, оболочка: PMB 28,5 мм, цвет:  зеленый","м",55.63,3898.2166200000006]
["600-0221","Кабель коаксиальный видео SC-VECTOR PLUS RCB MOBILE 1.6L/7.3 75 Ом 3G SDI, конструкция: 1,40/7,30 (1 х 1,40 мм) AWG16, оболочка: PVC 10,3 мм, цвет:  черный","м",8.09,566.89866000000006]
["600-0224","Кабель коаксиальный видео SC-VECTOR PLUS RCB MOBILE 1.6L/7.3 75 Ом 3G SDI, конструкция: 1,40/7,30 (1 х 1,40 мм) AWG16, оболочка: PVC 10,3 мм, цвет:  зеленый","м",8.09,566.89866000000006]
["600-0234","Кабель коаксиальный видео SC-VECTOR PLUS RCB INSTALL 1.6/7.0 75 Ом, конструкция: 1,60/7,00 (1 х 1,60 мм) AWG14, оболочка: PVC 10,2 мм, цвет:  зеленый","м",5.04,353.17295999999999]
["600-0234F","Кабель коаксиальный видео SC-VECTOR PLUS RCB INSTALL 1.6/7.0 75 Ом негорючий, конструкция: 1,60/7,00 (1 х 1,60 мм) AWG14, оболочка: FRNC 10,2 мм, цвет:  зеленый","м",5.65,395.91810000000004]
["600-0241AQ","Кабель коаксиальный видео водонепроницаемый SC-AQUA MARINEX VIDEO 0.6L/3.7 75 Ом, конструкция: 0,60/3,30 (1 х 0,60 мм) AWG23, оболочка: PUR-SR 6,4 мм, цвет:  черный","м",4.07,285.20118000000002]
["600-0250-01","Кабель коаксиальный миниатюрный видео SC-MONOMAX 0.3L/1.8 75 Ом, конструкция: 0,32/1,6 (1 х 0,32 мм) AWG28, оболочка: Antistatic-PVC 2,7 мм, цвет:  белый","м",1.1299999999999999,79.183620000000005]
["600-0251-01","Кабель коаксиальный миниатюрный видео SC-MONOMAX 0.3L/1.8 75 Ом, конструкция: 0,32/1,6 (1 х 0,32 мм) AWG28, оболочка: Antistatic-PVC 2,7 мм, цвет:  черный","м",1.1299999999999999,79.183620000000005]
["600-0251-03","Кабель коаксиальный миниатюрный видео мультикор SC-TRANSIT MINI FLEX 0.3L/1.8 75 Ом, конструкция: 0,32/1,6 (3 х 0,32 мм) AWG28, оболочка: Antistatic-PVC 8,2 мм, цвет:  черный","м",6.65,465.99210000000005]
["600-0251-05","Кабель коаксиальный миниатюрный видео мультикор SC-TRANSIT MINI FLEX 0.3L/1.8 75 Ом, конструкция: 0,32/1,6 (5 х 0,32 мм) AWG28, оболочка: Antistatic-PVC 9,6 мм, цвет:  черный","м",8.93,625.76081999999997]
["600-0252-01","Кабель коаксиальный миниатюрный видео SC-MONOMAX 0.3L/1.8 75 Ом, конструкция: 0,32/1,6 (1 х 0,32 мм) AWG28, оболочка: Antistatic-PVC 2,7 мм, цвет:  синий","м",1.1299999999999999,79.183620000000005]
["600-0253-01","Кабель коаксиальный миниатюрный видео SC-MONOMAX 0.3L/1.8 75 Ом, конструкция: 0,32/1,6 (1 х 0,32 мм) AWG28, оболочка: Antistatic-PVC 2,7 мм, цвет:  красный","м",1.1299999999999999,79.183620000000005]
["600-0254-01","Кабель коаксиальный миниатюрный видео SC-MONOMAX 0.3L/1.8 75 Ом, конструкция: 0,32/1,6 (1 х 0,32 мм) AWG28, оболочка: Antistatic-PVC 2,7 мм, цвет:  зеленый","м",1.1299999999999999,79.183620000000005]
["600-0261-0506","Кабель комбинированный SC-TRANSIT MINI CONTROL 506 , конструкция: 5х(1х0,32 мм) (Видео) + 6х0,14 мм² (Управление), оболочка: Antistatic-PVC 10,0 мм, цвет:  черный","м",11.26,789.03323999999998]
["600-0261-0506H","Кабель комбинированный SC-TRANSIT MINI CONTROL 506, конструкция: 5х(1х0,32 мм) (Видео) + 6х0,14 мм² (Управление), оболочка: TPE без галогенов 10,0 мм, цвет:  черный","м",11.57,810.75618000000009]
["600-0313","Кабель триаксиальный 11,0 мм SC-POLARIS MKII HIGHFLEX (L) 75 Ом, конструкция: 1,22/6,5 (1 х 1,22 мм) AWG16, оболочка: PVC HIGHFLEX 11,0 мм, цвет:  красный","м",8.4600000000000009,592.82604000000015]
["600-0353","Кабель триаксиальный 8,5 мм SC-POLARIS 75 Ом, конструкция: 1,00/4,50 (1 х 1,00 мм) AWG18, оболочка: PUR 8,5 мм, цвет:  красный","м",5.46,382.60404000000005]
["600-0401","Кабель коаксиальный высокочастотный SC-CLASSIC SERIES MKII RG58 C/U 0.78/2.95 (RG58C/U) 50 Ом, конструкция: 0,78/2,95 (1 х 0,78 мм) AWG20, оболочка: PVC 4,95 мм, цвет:  черный","м",1.8,126.13320000000002]
["600-0401F","Кабель коаксиальный высокочастотный SC-CLASSIC SERIES MKII RG58C/U 0.78/2.95 (RG58C/U) 50 Ом негорючий, конструкция: 0,78/2,95 (1 х 0,78 мм) AWG20, оболочка: FRNC 4,95 мм, цвет:  черный","м",2.09,146.45465999999999]
["600-0401LL","Кабель коаксиальный высокочастотный SC-CLASSIC SERIES MKII RG58C/LL 50 Ом, конструкция: 1,02/2,95 (1 х 1,02 мм) AWG18, оболочка: PVC 5,0 мм, цвет:  черный","м",2.5,175.185]
["600-0451","Кабель коаксиальный высокочастотный SC-CLASSIC SERIES MKII RG59 B/U 75 Ом, конструкция: 0,60/3,70 (1 х 0,60 мм) AWG23, оболочка: PVC 6,2 мм, цвет:  черный","м",2.13,149.25762]
["600-0471","Кабель коаксиальный высокочастотный SC-CLASSIC SERIES MKII RG11A/U 75 Ом, конструкция: 1,06/7,30 (1 х 1,06 мм) AWG18, оболочка: PVC 10,3 мм, цвет:  черный","м",4.74,332.15076000000005]
["600-0481-2075","Кабель комбинированный SC-CLASSIC CONTROL, конструкция: 1х(1х0,6 мм) (Видео) + 2х0,75 мм² (Управление), оболочка: PVC 10,5 мм, цвет:  черный","м",4.57,{"$f":"IF(D461=\"По запросу\",D461,D461*$B$6*(1+0.02))","v":320.23818000000006}]
["600-0501","Кабель коаксиальный высокочастотный SC-CLASSIC SERIES MKII RG174A/U 50 Ом, конструкция: 0,42/1,5 (1 х 0,42 мм) AWG26, оболочка: PVC 2,8 мм, цвет:  черный","м",1.5,105.11100000000002]
["600-0511","Кабель коаксиальный высокочастотный SC-CLASSIC SERIES MKII RG8/U || RG213/UBX 50 Ом, конструкция: 1,85/6,40 (1 х 1,85 мм) AWG13, оболочка: PVC 9,5 мм, цвет:  черный","м",5.65,395.91810000000004]
["600-0529","Кабель коаксиальный высокочастотный SC-CLASSIC SERIES MKII RG179A/U FEP 75 Ом, конструкция: 0,25/1,6 (1 х 0,25 мм) AWG30, оболочка: FEP 2,5 мм, цвет:  прозрачный","м",4.09,286.60266000000001]
["600-0549","Кабель коаксиальный высокочастотный SC-CLASSIC SERIES MKII RG316/U 50 Ом, конструкция: 0,45/1,52 (1 х 0,45 мм) AWG25, оболочка: PTFE 2,5 мм, цвет:  прозрачный","м",4.8899999999999997,342.66185999999999]
["600-0551","Кабель коаксиальный высокочастотный SC-CLASSIC SERIES MKII RG213/U 50 Ом, конструкция: 1,98/7,30 (1 х 1,98 мм) AWG12, оболочка: PVC 10,3 мм, цвет:  черный","м",6.76,473.70024000000001]
["600-0551LL","Кабель коаксиальный высокочастотный SC-CLASSIC SERIES MKII RG213/LL 50 Ом, конструкция: 2,65/7,25 (1 х 2,65 мм) AWG10, оболочка: PVC 10,2 мм, цвет:  черный","м",9.93,695.83482000000004]
["600-0561","Кабель коаксиальный высокочастотный SC-CLASSIC SERIES MKII RG216/U 75 Ом, конструкция: 1,06/7,24 (1 х 1,06 мм) AWG18, оболочка: PVC 10,8 мм, цвет:  черный","м",7.48,524.15352000000007]
["600-0571","Кабель коаксиальный высокочастотный SC-CLASSIC SERIES MKII RG214/U 50 Ом, конструкция: 1,98/7,25 (1 х 1,98 мм) AWG12, оболочка: PVC 10,8 мм, цвет:  черный","м",12.22,856.30428000000018]
["600-0581","Кабель коаксиальный высокочастотный SC-CLASSIC SERIES MKII RG6A/U 75 Ом, конструкция: 0,72/4,70 (1 х 0,72 мм) AWG21, оболочка: PVC 8,4 мм, цвет:  черный","м",6.39,447.77285999999998]
["600-0601-05F","Кабель комбинированный SC-TRANSIT KOMBI MC5200 негорючий, конструкция: 5х(1х0,6 мм) (Видео) + 2х(2х0,14 мм²) (Аудио), оболочка: FRNC 15,6 мм, цвет:  черный","м",17.39,1218.5868600000001]
["600-0611-05","Кабель комбинированный SC-TRANSIT 5231 HD-0.8, конструкция: 5 x(1х0.8 мм) (Видео) + 2x(2х0.22 мм²) (Аудио) + 3x2,5 мм² (Питание) + 1х(4x2x0,57 мм) (CAT.6), оболочка: PVC 24,8 мм, цвет:  черный","м",40.15,2813.4710999999998]
["600-0621-05","Кабель комбинированный SC-TRANSIT 5231 HD-0.6, конструкция: 5х(1х0,6 мм) (Видео) + 2x(2x0,15 мм²) (Аудио) + 1х(3x2,5 мм²) (Питание) + 1х(4х2х0,53 мм) (CAT.7), оболочка: PVC 22,5 мм, цвет:  черный","м",32.57,2282.3101800000004]
["600-0646-07","Кабель коаксиальный видео мультикор SC-TRANSIT MOBILE PUR 0.75L/3.4 75 Ом, конструкция: 0,66/3,20 (7 х 0,66 мм) AWG22, оболочка: PUR 15,3 мм, цвет:  серый","м",21.41,1500.2843399999999]
["600-0652","Кабель комбинированный SC-TRANSIT MC 2005 HD-SDI, конструкция: 2х(1х1,0 мм) (Видео) + 5х(4х2х0,57 мм) (CAT.5e), оболочка: PVC 22,5 мм, цвет:  черный","м",23.87,1672.6663800000001]
["600-0701","Кабель коаксиальный видео SC-CINEMA-SV 0.3L/1.8 75 Ом S-Video, конструкция: 0,32/1,6 (2 х 0,32 мм) AWG28, оболочка: PVC 7,5 мм, цвет:  черный","м",3.67,257.17158000000001]
["600-0712","Кабель коаксиальный видео SC-ALTERA SPLIT 0.6/3.7 75 Ом RGB, конструкция: 0,66/3,70 (3 х 0,66 мм) AWG22, оболочка: PVC 18,0 x 6,2 мм, цвет:  синий","м",6.78,475.10172000000006]
["600-0781","Кабель комбинированный SC-TRANSIT MC 120 HD, конструкция: 1х(1х0,6 мм) (Видео) + 2х(2х0,14 мм²) (Аудио), оболочка: TPE 9,6 мм, цвет:  черный","м",8.2799999999999994,580.21271999999999]
["600-0851-02","Кабель коаксиальный видео мультикор SC-TRANSIT 2 HD 0.6/2.8 75 Ом HD-SDI, конструкция: 0,60/2,80 (2 х 0,60 мм) AWG23, оболочка: PVC 10,2 мм, цвет:  черный","м",5.78,405.02772000000004]
["600-0851-02F","Кабель коаксиальный видео мультикор SC-TRANSIT 2 HD FRNC 0.6/2.8 75 Ом HD-SDI, конструкция: 0,60/2,80 (2 х 0,60 мм) AWG23, оболочка: FRNC 10,2 мм, цвет:  черный","м",6.11,428.15214000000009]
["600-0851-03","Кабель коаксиальный видео мультикор SC-TRANSIT 3 HD 0.6/2.8 75 Ом HD-SDI, конструкция: 0,60/2,80 (3 х 0,60 мм) AWG23, оболочка: PVC 11,2 мм, цвет:  черный","м",7.65,536.06610000000012]
["600-0851-03F","Кабель коаксиальный видео мультикор SC-TRANSIT 3 HD FRNC 0.6/2.8 75 Ом HD-SDI, конструкция: 0,60/2,80 (3 х 0,60 мм) AWG23, оболочка: FRNC 11,2 мм, цвет:  черный","м",7.78,545.17571999999996]
["600-0851-05","Кабель коаксиальный видео мультикор SC-TRANSIT 5 HD 0.6/2.8 75 Ом HD-SDI, конструкция: 0,60/2,80 (5 х 0,60 мм) AWG23, оболочка: PVC 13,8 мм, цвет:  черный","м",12.02,842.28948000000003]
["600-0851-05F","Кабель коаксиальный видео мультикор SC-TRANSIT 5 HD FRNC 0.6/2.8 75 Ом HD-SDI негорючий, конструкция: 0,60/2,80 (5 х 0,60 мм) AWG23, оболочка: FRNC 13,8 мм, цвет:  черный","м",13.22,926.37828000000002]
["600-0851-07","Кабель коаксиальный видео мультикор SC-TRANSIT 7 HD 0.6/2.8 75 Ом HD-SDI, конструкция: 0,60/2,80 (7 х 0,60 мм) AWG23, оболочка: PVC 15,0 мм, цвет:  черный","м",15.74,1102.9647600000001]
["600-0851-08","Кабель коаксиальный видео мультикор SC-TRANSIT 8 HD 0.6/2.8 75 Ом HD-SDI, конструкция: 0,60/2,80 (8 х 0,60 мм) AWG23, оболочка: PVC 17,0 мм, цвет:  черный","м",19.98,1400.07852]
["600-0851F","Кабель коаксиальный видео SC-SLIMLINE (RCB) FRNC 0.6/2.8 75 Ом HD-SDI негорючий, конструкция: 0,60/2,80 (1 х 0,60 мм) AWG23, оболочка: FRNC 4,2 мм, цвет:  черный","м",1.72,120.52728]
["600-0854","Кабель коаксиальный видео SC-SLIMLINE (RCB) 0.6/2.8 75 Ом HD-SDI, конструкция: 0,60/2,80 (1 х 0,60 мм) AWG23, оболочка: PVC 4,2 мм, цвет:  зеленый","м",1.52,106.51248000000001]
["600-0854F","Кабель коаксиальный видео SC-SLIMLINE (RCB) FRNC 0.6/2.8 75 Ом HD-SDI негорючий, конструкция: 0,60/2,80 (1 х 0,60 мм) AWG23, оболочка: FRNC 4,2 мм, цвет:  зеленый","м",1.72,120.52728]
["600-0855","Кабель коаксиальный видео SC-SLIMLINE (RCB) 0.6/2.8 75 Ом HD-SDI, конструкция: 0,60/2,80 (1 х 0,60 мм) AWG23, оболочка: PVC 4,2 мм, цвет:  оранжевый","м",1.52,106.51248000000001]
["600-0857F","Кабель коаксиальный видео SC-SLIMLINE (RCB) FRNC 0.6/2.8 75 Ом HD-SDI негорючий, конструкция: 0,60/2,80 (1 х 0,60 мм) AWG23, оболочка: FRNC 4,2 мм, цвет:  желтый","м",1.72,120.52728]
["600-0858","Кабель коаксиальный видео SC-SLIMLINE (RCB) 0.6/2.8 75 Ом HD-SDI, конструкция: 0,60/2,80 (1 х 0,60 мм) AWG23, оболочка: PVC 4,2 мм, цвет:  фиолетовый","м",1.52,106.51248000000001]
["600-0920","Кабель коаксиальный высокочастотный SAT SC-ASTRAL 75 Ом, конструкция: 0,50/2,0 (1 х 0,50 мм) AWG24, оболочка: PVC 3,6 мм, цвет:  белый","м",0.91,63.767340000000004]
["600-0960LLX","Кабель коаксиальный высокочастотный SAT SC-ASTRAL-LLX 120 DB 75 Ом, конструкция: 1,13/5,00 (1 х 1,13 мм) AWG17, оболочка: PVC 6,8 мм, цвет:  белый","м",3.09,216.52866]
["600-0960LLX-DH","Кабель комбинированный ASTRAL-LLX 120 DB DH, конструкция: 1х(1х1,13/5,0) (SAT) + 1х(4x2x0,51 мм) (CAT.5e), оболочка: PVC 14,3 x 9,7 мм, цвет:  белый","м",7.11,498.22614000000004]
["600-0960LLXF","Кабель коаксиальный высокочастотный SAT 600-0960LLXF 75 Ом негорючий, конструкция: 1,13/5,00 (1 х 1,13 мм) AWG17, оболочка: FRNC 6,8 мм, цвет:  белый","м",3.43,240.35382000000001]
["600-0970","Кабель коаксиальный высокочастотный SAT SC-ASTRAL 75 Ом, конструкция: 0,65/3,00 (1 х 0,65 мм) AWG22, оболочка: PVC 4,5 мм, цвет:  белый","м",1.76,123.33024]
["600-1031","Кабель комбинированный TRANSIT MC 1031 HD, конструкция: 1х(1х0,6 мм) (Видео) + 3х2,5 мм² (Питание) + 1х(4х2х0,57 мм) (CAT.7), оболочка: FR-PVC 19,9 мм, цвет:  черный","м",25.07,1756.7551800000003]
["600-1211","Кабель комбинированный SC-TRANSIT MC 73251, конструкция: 7x(1х0,70 мм) (Видео) + 3x(2x0,14 мм²) (Аудио) + 2x1,50 мм² (Питание) + 5x0,14 мм² (Управление) + 1х0,14 мм² (Управление, экран.), оболочка: PVC 12,5 мм, цвет:  черный","м",21.83,1529.71542]
["600-1441","Кабель комбинированный SC-TRANSIT KOMBI MC4400 HD-SDI, конструкция: 4х(0.60/2.80) (HD-SDI) + 4х(2х0,14 мм²) (Аудио), оболочка: PUR 15,6 мм, цвет:  черный","м",18.72,1311.7852800000001]
["600-1451","Кабель комбинированный SC-TRANSIT KOMBI MC5400 HD-SDI, конструкция: 5х(1х0,6 мм) (Видео) + 4х(2х0,14 мм²) (Аудио), оболочка: PVC 17,4 мм, цвет:  черный","м",19.02,1332.8074799999999]
["600-1831-05","Кабель комбинированный TRANSIT MINI KOMBI 52231, конструкция: 5x(1х0,40 мм) (Видео) + 2x(2x0,08 мм²) (Аудио) + 2x0,14 мм² (Управление) + 1х(3x0,75 мм²) (Питание) + 1х(4х2х0,15 мм²) (CAT.6), оболочка: PVC 14,2 мм, цвет:  черный","м",18.260000000000002,1279.5512400000002]
["600-1841-05","Кабель комбинированный TRANSIT MINI KOMBI 522, конструкция: 5x(1х0,40 мм) (Видео) + 2x(2x0,08 мм²) (Аудио) + 2x0,14 мм² (Управление), оболочка: PVC 10,0 мм, цвет:  черный","м",9.59,672.00965999999994]
["600-1901","Кабель цифровой DVI SC-IMPULSE DVI SINGLE LINK, конструкция: 4х(2x0,10 мм²) + 2х0,10 мм² + 3х0,10 мм², оболочка: PUR 8,7 мм, цвет:  черный","м",9.8699999999999992,691.63037999999995]
["600-1921","Кабель цифровой DVI SC-IMPULSE DVI DUAL LINK, конструкция: 7х(2х0,20 мм²) + 5х0,20 мм², оболочка: PVC 11,5 мм, цвет:  черный","м",8.7100000000000009,610.34454000000005]
["600-2031","Кабель комбинированный TRANSIT MC 2030 HD, конструкция: 1х(1х1,06 мм) (Видео) + 1x(3х1,5 мм²) (Питание), оболочка: PMB 18,8 мм, цвет:  черный","м",34.5,2417.5530000000003]
["600-2101","Кабель комбинированный SC-OBSERVER 1 HD, конструкция: 1х(1х0,6 мм) (Видео) + 3х0,75 мм² (Питание), оболочка: S-PVC 9,0 мм, цвет:  черный","м",6,420.44400000000007]
["600-2231","Кабель комбинированный SC-TRANSIT MC 2235 HD, конструкция: 2x(1х0,80 мм) (Видео) + 2x(2x0,14 мм²) (Аудио) + 3x1,50 мм² (Питание) + 5x0,34 мм² (Управление), оболочка: S-PVC 15,5 мм, цвет:  черный","м",15.46,1083.3440400000002]
["600-2771","Кабель комбинированный SC-TRANSIT MC 3031 HD, конструкция: 3х(1х1,06 мм) (Видео) + 1х(3х2,5 мм²) (Питание) + 1х(4х2х0,14 мм²) (CAT) , оболочка: S-PVC 24,0 мм, цвет:  черный","м",33.15,2322.9531000000002]
["600-2791","Кабель комбинированный SC-TRANSIT MC 3231 HD, конструкция: 3х(1х1,06 мм) (Видео) + 2х(2х0,15 мм²) (Аудио) + 1х(3х2,5 мм²) (Питание) + 1х(4х2х0,14 мм²) (CAT), оболочка: S-PVC 24,0 мм, цвет:  черный","м",35.630000000000003,2496.7366200000006]
["600-3202","Кабель комбинированный TRANSIT MC 3202 HD, конструкция: 1х(1х0,6 мм) (Видео) + 2х(2х0,14 мм²) (Аудио) + 2х0,75 мм²) (Управление), оболочка: PVC 20,9 мм, цвет:  черный","м",21.59,1512.8976599999999]
["601-0303","Кабель триаксиальный 11,0 мм SC-POLARIS MKII HIGHFLEX (M) 75 Ом, конструкция: 1,40/6,5/8,5 (1 х 1,40 мм) AWG15, оболочка: PUR 11,0 мм, цвет:  красный","м",10.199999999999999,714.75480000000005]
["601-0353","Кабель триаксиальный 8,5 мм SC-POLARIS MKII HIGHFLEX (M) 75 Ом, конструкция: 1,00/4,5/6,5 (1 х 1,00 мм) AWG18, оболочка: PUR 8,5 мм, цвет:  красный","м",6.74,472.29876000000002]
["601-0930","Кабель коаксиальный высокочастотный SAT SC-ASTRAL 0.7/2.9 HD 75 Ом, конструкция: 0.70/2,90 (1 х 0.70 мм) AWG22, оболочка: PVC 4,6 мм, цвет:  белый","м",1.61,112.81914000000002]
["601-0940","Кабель коаксиальный высокочастотный SAT SC-ASTRAL 2X0.7/2.9 HD 75 Ом двойной, конструкция: 0.70/2,90 (2 х 0.70 мм) AWG22, оболочка: PVC 9,0 x 4,6 mm мм, цвет:  белый","м",2.89,202.51386000000002]
["601-0950","Кабель коаксиальный высокочастотный SAT SC-ASTRAL 0.8/3.7 HD (RG59) 75 Ом, конструкция: 0,80/3,70 (1 х 0,80 мм) AWG20, оболочка: PVC 5,6 мм, цвет:  белый","м",1.78,124.73172000000001]
["601-0960","Кабель коаксиальный высокочастотный SAT SC-ASTRAL 2X0.8/3.7 HD (RG59) 75 Ом двойной, конструкция: 0,80/3,70 (2 х 0,80 мм) AWG20, оболочка: PVC 13,0 х 5,6 мм, цвет:  белый","м",4.37,306.22338000000002]
["601-0970","Кабель коаксиальный высокочастотный SAT SC-ASTRAL 1.0/4.6 HD (RG6) 75 Ом, конструкция: 1.00/4.60 (1 х 1.00 мм) AWG18, оболочка: PVC 6,8 мм, цвет:  белый","м",2.04,142.95096000000001]
["601-0991P","Кабель коаксиальный высокочастотный SAT SC-ASTRAL 1.6/7.3 HD 75 Ом, конструкция: 1.60/7,30 (1 х 1.60 мм) AWG14, оболочка: PE 10,3 мм, цвет:  черный","м",4.28,299.91672]
["605-0241AQ","Кабель коаксиальный видео водонепроницаемый SC-AQUA MARINEX VIDEO HD-SDI 1.2L/4.8 75 Ом, конструкция: 1,06/4,80 (1 х 1,06 мм) AWG18, оболочка: PUR-SR 7,4 мм, цвет:  черный","м",6.93,485.61282]
["605-0751","Кабель комбинированный TRANSIT MC123 HD, конструкция: 1х(1х0,6 мм) (Видео) + 2х(2х0,14 мм²) (Аудио) + 1х(3х1,5 мм²) (Питание), оболочка: PVC 13,1 мм, цвет:  черный","м",11.85,830.37690000000009]
["612-0251","Кабель цифровой HDMI SC-TRANSIT HIGH SPEED HDMI WITH ETHERNET, конструкция: 5х(2х0,50 мм²) + 1х(2х0,14 мм²) + 2х0,14 мм², оболочка: PVC 9,6 мм, цвет:  черный","м",14.02,982.43748000000005]
["700-0051-1315","Кабель силовой мультикор SC-ATRIUM FLEX, конструкция: 13 х 1,5 мм², оболочка: PVC 13,8 мм, цвет:  черный","м",10.45,732.27329999999995]
["700-0051-1325","Кабель силовой мультикор SC-ATRIUM FLEX, конструкция: 13 х 2,5 мм², оболочка: PVC 16,1 мм, цвет:  черный","м",16.77,1175.1409799999999]
["700-0051-1815","Кабель силовой мультикор SC-ATRIUM FLEX, конструкция: 18 х 1,5 мм², оболочка: PVC 14,7 мм, цвет:  черный","м",13.39,{"$f":"IF(D525=\"По запросу\",D525,D525*$B$6*(1+0.02))","v":938.29086000000007}]
["700-0051-1825","Кабель силовой мультикор SC-ATRIUM FLEX, конструкция: 18 х 2,5 мм², оболочка: PVC 18,1 мм, цвет:  черный","м",21.84,1530.4161600000002]
["700-0056-0325","Кабель силовой мультикор SC-ATRIUM FLEX, конструкция: 3 х 2,5 мм², оболочка: PVC 8,3 мм, цвет:  серый","м",3.85,269.78489999999999]
["700-0056-0425","Кабель силовой мультикор SC-ATRIUM FLEX, конструкция: 4 х 2,5 мм², оболочка: PVC 9,1 мм, цвет:  серый","м",4.58,320.93892]
["700-0056-0715","Кабель силовой мультикор SC-ATRIUM FLEX, конструкция: 7 х 1,5 мм², оболочка: PVC 9,1 мм, цвет:  серый","м",4.9000000000000004,343.36260000000004]
["700-0056-1415","Кабель силовой мультикор SC-ATRIUM FLEX, конструкция: 14 х 1,5 мм², оболочка: PVC 12,9 мм, цвет:  серый","м",10.45,732.27329999999995]
["700-0056-1815","Кабель силовой мультикор SC-ATRIUM FLEX, конструкция: 18 х 1,5 мм², оболочка: PVC 14,7 мм, цвет:  серый","м",13.21,925.67754000000002]
["700-0101-03100","Кабель силовой H07RN-F SC-RUBBERFLEX негорючий, конструкция: 3 х 10,0 мм², оболочка: резина 21,0 мм, цвет:  черный","м",19.399999999999999,1359.4356]
["700-0101-0315","Кабель силовой H07RN-F SC-RUBBERFLEX негорючий, конструкция: 3 х 1,5 мм², оболочка: резина 10,0 мм, цвет:  черный","м",3.65,255.77010000000001]
["700-0101-0315TI","Кабель силовой H07RN-F SC-RUBBERFLEX TITANEX негорючий, конструкция: 3 х 1,5 мм², оболочка: резина 10,0 мм, цвет:  черный","м",3.65,255.77010000000001]
["700-0101-0325","Кабель силовой H07RN-F SC-RUBBERFLEX негорючий, конструкция: 3 х 2,5 мм², оболочка: резина 12,5 мм, цвет:  черный","м",5.9,413.43660000000006]
["700-0101-0325TI","Кабель силовой H07RN-F SC-RUBBERFLEX TITANEX негорючий, конструкция: 3 х 2,5 мм², оболочка: резина 12,5 мм, цвет:  черный","м",5.9,413.43660000000006]
["700-0101-0340","Кабель силовой H07RN-F SC-RUBBERFLEX негорючий, конструкция: 3 х 4,0 мм², оболочка: резина 14,0 мм, цвет:  черный","м",9.68,678.31632000000002]
["700-0101-05160TI","Кабель силовой H07RN-F SC-RUBBERFLEX TITANEX негорючий, конструкция: 5 х 16,0 мм², оболочка: резина 30,5 мм, цвет:  черный","м",41.6,2915.0784000000003]
["700-0101-0525","Кабель силовой H07RN-F SC-RUBBERFLEX негорючий, конструкция: 5 х 2,5 мм², оболочка: резина 15,0 мм, цвет:  черный","м",7.97,558.48978]
["700-0101-05250","Кабель силовой H07RN-F SC-RUBBERFLEX негорючий, конструкция: 5 х 25,0 мм², оболочка: резина 36,0 мм, цвет:  черный","м",63.11,4422.37014]
["700-0101-0525TI","Кабель силовой H07RN-F SC-RUBBERFLEX TITANEX негорючий, конструкция: 5 х 2,5 мм², оболочка: резина 15,0 мм, цвет:  черный","м",8.31,582.31494000000009]
["700-0101-0560","Кабель силовой H07RN-F SC-RUBBERFLEX негорючий, конструкция: 5 х 6,0 мм², оболочка: резина 19,5 мм, цвет:  черный","м",16.079999999999998,1126.7899199999999]
["700-0101-0560TI","Кабель силовой H07RN-F SC-RUBBERFLEX TITANEX негорючий, конструкция: 5 х 6,0 мм², оболочка: резина 19,5 мм, цвет:  черный","м",17.13,1200.36762]
["700-0241-0325AQ","Кабель силовой водонепроницаемый SC-AQUA MARINEX POWER 325, конструкция: 3 х 2,5 мм², оболочка: PUR-SR 9,4 мм, цвет:  черный","м",10.63,744.88662000000011]
["720-0016-01015","Кабель силовой NYM-J негорючий, конструкция: 1 х 1,5 мм², оболочка: PVC 5,3 мм, цвет:  серый","м",1.1299999999999999,79.183620000000005]
["720-0016-01025","Кабель силовой NYM-J негорючий, конструкция: 1 х 2,5 мм², оболочка: PVC 5,85 мм, цвет:  серый","м","По запросу","По запросу"]
["720-0016-01040","Кабель силовой NYM-J негорючий, конструкция: 1 х 4,0 мм², оболочка: PVC 6,6 мм, цвет:  серый","м","По запросу","По запросу"]
["720-0016-01060","Кабель силовой NYM-J негорючий, конструкция: 1 х 6,0 мм², оболочка: PVC 7,0 мм, цвет:  серый","м",2.95,206.71830000000003]
["720-0016-01100","Кабель силовой NYM-J негорючий, конструкция: 1 х 10,0 мм², оболочка: PVC 8,2 мм, цвет:  серый","м","По запросу","По запросу"]
["720-0016-01160","Кабель силовой NYM-J негорючий, конструкция: 1 х 16,0 мм², оболочка: PVC 9,7 мм, цвет:  серый","м","По запросу","По запросу"]
["720-0016-03015","Кабель силовой NYM-J негорючий, конструкция: 3 х 1,5 мм², оболочка: PVC 8,2 мм, цвет:  серый","м",2.5,175.185]
["720-0016-03025","Кабель силовой NYM-J негорючий, конструкция: 3 х 2,5 мм², оболочка: PVC 9,7 мм, цвет:  серый","м",3.85,269.78489999999999]
["720-0016-03040","Кабель силовой NYM-J негорючий, конструкция: 3 х 4,0 мм², оболочка: PVC 11,1 мм, цвет:  серый","м","По запросу","По запросу"]
["720-0016-03060","Кабель силовой NYM-J негорючий, конструкция: 3 х 6,0 мм², оболочка: PVC 12,65 мм, цвет:  серый","м","По запросу","По запросу"]
["720-0016-04015","Кабель силовой NYM-J негорючий, конструкция: 4 х 1,5 мм², оболочка: PVC 9,0 мм, цвет:  серый","м",3.27,229.14198000000002]
["720-0016-04025","Кабель силовой NYM-J негорючий, конструкция: 4 х 2,5 мм², оболочка: PVC 10,45 мм, цвет:  серый","м","По запросу","По запросу"]
["720-0016-04040","Кабель силовой NYM-J негорючий, конструкция: 4 х 4,0 мм², оболочка: PVC 12,5 мм, цвет:  серый","м","По запросу","По запросу"]
["720-0016-04060","Кабель силовой NYM-J негорючий, конструкция: 4 х 6,0 мм², оболочка: PVC 13,7 мм, цвет:  серый","м","По запросу","По запросу"]
["720-0016-04100","Кабель силовой NYM-J негорючий, конструкция: 4 х 10,0 мм², оболочка: PVC 16,7 мм, цвет:  серый","м","По запросу","По запросу"]
["720-0016-04160","Кабель силовой NYM-J негорючий, конструкция: 4 х 16,0 мм², оболочка: PVC 20,0 мм, цвет:  серый","м","По запросу","По запросу"]
["720-0016-04250","Кабель силовой NYM-J негорючий, конструкция: 4 х 25,0 мм², оболочка: PVC 24,9 мм, цвет:  серый","м","По запросу","По запросу"]
["720-0016-04350","Кабель силовой NYM-J негорючий, конструкция: 4 х 35,0 мм², оболочка: PVC 27,80 мм, цвет:  серый","м","По запросу","По запросу"]
["720-0016-05015","Кабель силовой NYM-J негорючий, конструкция: 5 х 1,5 мм², оболочка: PVC 9,8 мм, цвет:  серый","м","По запросу","По запросу"]
["720-0016-05025","Кабель силовой NYM-J негорючий, конструкция: 5 х 2,5 мм², оболочка: PVC 11,25 мм, цвет:  серый","м","По запросу","По запросу"]
["720-0016-05040","Кабель силовой NYM-J негорючий, конструкция: 5 х 4,0 мм², оболочка: PVC 13,6 мм, цвет:  серый","м","По запросу","По запросу"]
["720-0016-05060","Кабель силовой NYM-J негорючий, конструкция: 5 х 6,0 мм², оболочка: PVC 15,0 мм, цвет:  серый","м",14.31,1002.7589400000002]
["720-0016-05100","Кабель силовой NYM-J негорючий, конструкция: 5 х 10,0 мм², оболочка: PVC 18,3 мм, цвет:  серый","м","По запросу","По запросу"]
["720-0016-05160","Кабель силовой NYM-J негорючий, конструкция: 5 х 16,0 мм², оболочка: PVC 22,7 мм, цвет:  серый","м","По запросу","По запросу"]
["720-0016-05250","Кабель силовой NYM-J негорючий, конструкция: 5 х 25,0 мм², оболочка: PVC 27,5 мм, цвет:  серый","м","По запросу","По запросу"]
["720-0016-07015","Кабель силовой NYM-J негорючий, конструкция: 7 х 1,5 мм², оболочка: PVC 10,7 мм, цвет:  серый","м",5.58,391.01292000000001]
["720-0016-07025","Кабель силовой NYM-J негорючий, конструкция: 7 х 2,5 мм², оболочка: PVC 12,75 мм, цвет:  серый","м","По запросу","По запросу"]
["720-0036-01015","Кабель силовой NYM-O негорючий, конструкция: 1 х 1,5 мм², оболочка: PVC 5,3 мм, цвет:  серый","м","По запросу","По запросу"]
["720-0036-01060","Кабель силовой NYM-O негорючий, конструкция: 1 х 6,0 мм², оболочка: PVC 7,0 мм, цвет:  серый","м","По запросу","По запросу"]
["720-0036-02015","Кабель силовой NYM-O негорючий, конструкция: 2 х 1,5 мм², оболочка: PVC 8,0 мм, цвет:  серый","м",2.2400000000000002,156.96576000000005]
["720-0036-03015","Кабель силовой NYM-O негорючий, конструкция: 3 х 1,5 мм², оболочка: PVC 8,2 мм, цвет:  серый","м","По запросу","По запросу"]
["720-0036-04100","Кабель силовой NYM-O негорючий, конструкция: 4 х 10,0 мм², оболочка: PVC 16,7 мм, цвет:  серый","м","По запросу","По запросу"]
["720-0036-04160","Кабель силовой NYM-O негорючий, конструкция: 4 х 16,0 мм², оболочка: PVC 20,0 мм, цвет:  серый","м","По запросу","По запросу"]
["720-0036-07015","Кабель силовой NYM-O негорючий, конструкция: 7 х 1,5 мм², оболочка: PVC 10,7 мм, цвет:  серый","м","По запросу","По запросу"]
["720-0056-03015","Кабель силовой (N)YM-(ST)-J негорючий, конструкция: 3 х 1,5 мм², оболочка: PVC 9,2 мм, цвет:  серый","м",3.71,259.97453999999999]
["720-0056-03025","Кабель силовой (N)YM-(ST)-J негорючий, конструкция: 3 х 2,5 мм², оболочка: PVC 10,9 мм, цвет:  серый","м",5.0999999999999996,357.37740000000002]
["720-0056-03040","Кабель силовой (N)YM-(ST)-J негорючий, конструкция: 3 х 4,0 мм², оболочка: PVC 11,8 мм, цвет:  серый","м",7.47,523.45277999999996]
["720-0056-04015","Кабель силовой (N)YM-(ST)-J негорючий, конструкция: 4 х 1,5 мм², оболочка: PVC 10,2 мм, цвет:  серый","м",4.63,324.44262000000003]
["720-0056-04025","Кабель силовой (N)YM-(ST)-J негорючий, конструкция: 4 х 2,5 мм², оболочка: PVC 11,6 мм, цвет:  серый","м",6.56,459.68543999999997]
["720-0056-04040","Кабель силовой (N)YM-(ST)-J негорючий, конструкция: 4 х 4,0 мм², оболочка: PVC 14,0 мм, цвет:  серый","м",10.45,732.27329999999995]
["720-0056-05015","Кабель силовой (N)YM-(ST)-J негорючий, конструкция: 5 х 1,5 мм², оболочка: PVC 11,4 мм, цвет:  серый","м",5.32,372.79368000000005]
["720-0056-05025","Кабель силовой (N)YM-(ST)-J негорючий, конструкция: 5 х 2,5 мм², оболочка: PVC 12,6 мм, цвет:  серый","м",7.52,526.95648000000006]
["720-0056-05040","Кабель силовой (N)YM-(ST)-J негорючий, конструкция: 5 х 4,0 мм², оболочка: PVC 14,9 мм, цвет:  серый","м",11.74,822.66876000000002]
["720-0056-05060","Кабель силовой (N)YM-(ST)-J негорючий, конструкция: 5 х 6,0 мм², оболочка: PVC 16,2 мм, цвет:  серый","м",16.079999999999998,1126.7899199999999]
["720-0056-05100","Кабель силовой (N)YM-(ST)-J негорючий, конструкция: 5 х 10,0 мм², оболочка: PVC 19,5 мм, цвет:  серый","м",25.81,{"$f":"IF(D589=\"По запросу\",D589,D589*$B$6*(1+0.02))","v":1808.6099400000001}]
["720-0056-07015","Кабель силовой (N)YM-(ST)-J негорючий, конструкция: 7 х 1,5 мм², оболочка: PVC 11,7 мм, цвет:  серый","м",6.66,466.69284000000005]
["770-0401","Кабель для фотогальванических электрических установок TEMPOFLEX SOLAR негорючий, конструкция: 1 х 4,0 мм², оболочка: HEPR / высококачественный этилен-пропиленвый каучук (этиленпропиленовая резина) 5,7 мм, цвет:  черный","м",2.19,153.46206000000001]
["770-0601","Кабель для фотогальванических электрических установок TEMPOFLEX SOLAR негорючий, конструкция: 1 х 6,0 мм², оболочка: HEPR / высококачественный этилен-пропиленвый каучук (этиленпропиленовая резина) 6,6 мм, цвет:  черный","м",2.9,203.21459999999999]
["800-0056","Кабель межблочный HiFi SC-STRATOS, конструкция: 1 х 0,34 мм², оболочка: PVC 8,5 мм, цвет:  антрацит","м",13.66,957.21084000000008]
["800-0079","Кабель межблочный HiFi SC-CORONA, конструкция: 1 х 0,50 мм², оболочка: PVC 6,7 мм, цвет:  прозрачный","м",4.92,344.76408000000004]
["800-0104","Кабель межблочный HiFi SC-ALBEDO MKII, конструкция: 2 х 0,20 мм², оболочка: PVC 5,9 мм, цвет:  зеленый","м",6.3,441.46620000000001]
["800-0152","Кабель комбинированный межблочный SC-AQUILA CONTROL, конструкция: 4х0,14 мм² (Аудио) + 2х0,14 мм² (Управление), оболочка: PVC, цвет:  синий","м",4.55,318.83670000000001]
["ANT-FW","Разъем HICON антенный TV угловой 90° BASIC версия, гнездо на кабель диаметром до 6,8 мм, никелированные контакты , центральный контакт с винтовым зажимом, количество контактов: 2, металлический матово хромированный корпус, пластиковый белый колпачек под байонетный замок","шт","По запросу","По запросу"]
["ANT-MW","Разъем HICON антенный TV угловой 90° BASIC версия, штекер на кабель диаметром до 6,8 мм, никелированные контакты , центральный контакт с винтовым зажимом, количество контактов: 2, металлический матово хромированный корпус, пластиковый белый колпачек под байонетный замок","шт","По запросу","По запросу"]
["BD11","SOMMER CABLE кабельный чулок с петлей проволочный на кабель диаметром 18 - 22 мм","шт",29.84,2091.0081600000003]
["BD13","SOMMER CABLE кабельный чулок с петлей проволочный на кабель диаметром 22 - 26 мм","шт",30.58,2142.86292]
["BD15","SOMMER CABLE кабельный чулок с петлей проволочный на кабель диаметром 26 - 31 мм","шт",33.25,2329.9605000000001]
["BD7","SOMMER CABLE кабельный чулок с петлей проволочный на кабель диаметром 6 - 10 мм","шт",19.84,1390.2681600000001]
["BD9","SOMMER CABLE кабельный чулок с петлей проволочный на кабель диаметром 10 - 18 мм","шт",23.99,1681.0752600000001]
["BNC-FP-HD","Адаптер HICON BNC гнездо / BNC гнездо версия HDTV 75 Ом на панель, количество контактов: 2/2, металлический корпус, изоляция массы","шт",5.12,358.77888000000002]
["BNC-FP50","Адаптер HICON BNC гнездо / BNC гнездо 50 Ом на панель, количество контактов: 2/2, металлический корпус, изоляция массы","шт","По запросу","По запросу"]
["BNC-FP50D","Адаптер HICON BNC гнездо / BNC гнездо 50 Ом на панель, количество контактов: 2/2, металлический корпус, фланец D-типа, крепежные отверстия с резьбой M3, изоляция массы","шт",8.65,606.14009999999996]
["BNC-FPD-HD","Адаптер HICON BNC гнездо / BNC гнездо версия HDTV 75 Ом на панель, количество контактов: 2/2, металлический корпус, фланец D-типа, изоляция массы","шт",8.66,606.84084000000007]
["BNC0.3/1.8","Разъем HICON BNC 0.3/1.8 75 Ом, штекер на кабель, позолоченный центральный контакт, контакты под обжим, количество контактов: 2, металлический корпус","шт",2.64,184.99536000000003]
["BNC0.3/1.8FK","Разъем HICON BNC 0.3/1.8 75 Ом, гнездо на кабель, позолоченный центральный контакт, контакты под обжим, количество контактов: 2, металлический корпус","шт",2.64,184.99536000000003]
["BNC0.3/1.8M90","Разъем HICON BNC 0.3/1.8 угловой 90° 75 Ом, штекер на кабель, позолоченный центральный контакт, контакты под обжим, количество контактов: 2, металлический корпус","шт",6.16,431.65584000000001]
["BNC0.6/2.8FDH","Разъем HICON BNC 0.6/2.8 3G-SDI 75 Ом, гнездо на панель, позолоченные контакты под обжим, количество контактов: 2, металлический корпус, фланец D-типа, крепежные отверстия с резьбой M3, изоляция массы","шт",7.99,559.89125999999999]
["BNC0.6/2.8FEH","Разъем HICON BNC 0.6/2.8 3G-SDI 75 Ом, гнездо на панель, позолоченные контакты под обжим, количество контактов: 2, металлический корпус, изоляция массы","шт",5.86,410.63364000000007]
["BNC0.6/2.8FK","Разъем HICON BNC 0.6/2.8 75 Ом, гнездо на кабель, позолоченный центральный контакт, контакты под обжим, количество контактов: 2, металлический корпус","шт",2.1800000000000002,152.76132000000001]
["BNC0.6/2.8HD","Разъем HICON BNC 0.6/2.8 3G-SDI 75 Ом, штекер на кабель, позолоченные контакты под обжим, количество контактов: 2, металлический корпус","шт",2.29,160.46946]
["BNC0.6/3.7","Разъем HICON BNC 0.6/3.7 75 Ом, штекер на кабель, позолоченный центральный контакт, контакты под обжим, количество контактов: 2, металлический корпус","шт",2.29,160.46946]
["BNC0.66/3.2","Разъем HICON BNC 0.66/3.2 75 Ом, штекер на кабель, позолоченный центральный контакт, контакты под обжим, количество контактов: 2, металлический корпус","шт",2.88,201.81312]
["BNC0.8/3.7-6G","Разъем HICON BNC 0.8/3.7 6G-SDI 75 Ом, штекер на кабель, позолоченные контакты под обжим, количество контактов: 2, металлический корпус","шт",4.0999999999999996,287.30339999999995]
["BNC0.8/3.7FDH","Разъем HICON BNC 0.8/3.7 3G-SDI 75 Ом, гнездо на панель, позолоченные контакты под обжим, количество контактов: 2, металлический корпус, фланец D-типа, крепежные отверстия с резьбой M3, изоляция массы","шт",9.43,660.79782]
["BNC0.8/3.7FEH","Разъем HICON BNC 0.8/3.7 3G-SDI 75 Ом, гнездо на панель, позолоченные контакты под обжим, количество контактов: 2, металлический корпус, изоляция массы","шт",7.31,512.24094000000002]
["BNC0.8/3.7HD","Разъем HICON BNC 0.8/3.7 3G-SDI 75 Ом, штекер на кабель, позолоченные контакты под обжим, количество контактов: 2, металлический корпус","шт",2.91,203.91534000000004]
["BNC1.2/5.0-6G","Разъем HICON BNC 1.2/5.0 6G-SDI 75 Ом, штекер на кабель, позолоченные контакты под обжим, количество контактов: 2, металлический корпус","шт",4.12,288.70488000000006]
["BNC1.2/5.0FDH","Разъем HICON BNC 1.2/5.0 3G-SDI 75 Ом, гнездо на панель, позолоченные контакты под обжим, количество контактов: 2, металлический корпус, фланец D-типа, крепежные отверстия с резьбой M3, изоляция массы","шт",14.4,1009.0656000000001]
["BNC1.2/5.0FEH","Разъем HICON BNC 1.2/5.0 3G-SDI 75 Ом, гнездо на панель, позолоченные контакты под обжим, количество контактов: 2, металлический корпус, изоляция массы","шт",12.77,894.84497999999996]
["BNC1.2/5.0HD","Разъем HICON BNC 1.2/5.0 3G-SDI 75 Ом, штекер на кабель, позолоченные контакты под обжим, количество контактов: 2, металлический корпус","шт",2.96,207.41904]
["BNC1.6/7.3-6G","Разъем HICON BNC 1.6/7.3 6G-SDI 75 Ом, штекер на кабель, позолоченные контакты под обжим, количество контактов: 2, металлический корпус","шт",4.79,335.65446000000003]
["BNC1.6/7.3FDH","Разъем HICON BNC 1.6/7.3 3G-SDI 75 Ом, гнездо на панель, позолоченные контакты под обжим, количество контактов: 2, металлический корпус, фланец D-типа, крепежные отверстия с резьбой M3, изоляция массы","шт",9.43,660.79782]
["BNC1.6/7.3FEH","Разъем HICON BNC 1.6/7.3 3G-SDI 75 Ом, гнездо на панель, позолоченные контакты под обжим, количество контактов: 2, металлический корпус, изоляция массы","шт",7.83,548.67942000000005]
["BNC1.6/7.3HD","Разъем HICON BNC 1.6/7.3 3G-SDI 75 Ом, штекер на кабель, позолоченные контакты под обжим, количество контактов: 2, металлический корпус","шт",4.57,320.23818000000006]
["BNC174","Разъем HICON BNC 0.6/1.7 50 Ом, штекер на кабель, позолоченный центральный контакт, контакты под обжим, количество контактов: 2, металлический корпус","шт",1.86,130.33764000000002]
["BNC174M90","Разъем HICON BNC 0.6/1.7 угловой 90° 50 Ом, штекер на кабель, позолоченный центральный контакт под пайку, контакт заземления под обжим, количество контактов: 2, металлический корпус","шт",2.81,196.90794000000002]
["BNC213","Разъем HICON BNC 2.2/7.3 50 Ом, штекер на кабель, позолоченный центральный контакт, контакты под обжим, количество контактов: 2, металлический корпус","шт",4.12,288.70488000000006]
["BNC58","Разъем HICON BNC 1.0/3.2 (на многопроволочную центральную жилу) 50 Ом, штекер на кабель, позолоченный центральный контакт, контакты под обжим, количество контактов: 2, металлический корпус","шт",1.97,138.04578000000001]
["BNC58FD","Разъем HICON BNC 1.0/3.2 50 Ом, гнездо на панель, позолоченный центральный контакт, контакты, количество контактов: 2, металлический корпус, фланец D-типа, крепежные отверстия с резьбой M3","шт",6.69,468.79506000000009]
["BNC58FEM","Разъем HICON BNC 1.0/3.2 50 Ом, гнездо на панель, количество контактов: 2, металлический корпус, внешняя резъба Ø 12,7 мм (1/2\"), изоляция массы","шт",5.04,353.17295999999999]
["BNC58FEO","Разъем HICON BNC 1.0/3.2 50 Ом, гнездо на панель под обжим, количество контактов: 2, металлический корпус, внешняя резъба Ø 12,7 мм (1/2\"), без изоляции массы","шт",3.22,225.63828000000004]
["BNC58FK","Разъем HICON BNC 1.0/3.2 50 Ом, гнездо на кабель, позолоченный центральный контакт, контакты под обжим, количество контактов: 2, металлический корпус","шт",2.64,184.99536000000003]
["BNC58KOM","Разъем HICON BNC 1.0/3.2 компрессионный 50 Ом, штекер на кабель, позолоченный центральный контакт под пайку, количество контактов: 2, металлический корпус","шт",4.97,348.26778000000002]
["BNC58LL","Разъем HICON BNC 1.0/3.2 (на монолитную центральную жилу) 50 Ом, штекер на кабель, позолоченный центральный контакт, контакты под обжим, количество контактов: 2, металлический корпус","шт",2.08,145.75392000000002]
["BNC58M90","Разъем HICON BNC 1.0/3.2 угловой 90° 50 Ом, штекер на кабель, позолоченный центральный контакт под пайку, контакт заземления под обжим, количество контактов: 2, металлический корпус","шт",3.71,259.97453999999999]
["BNC59","Разъем HICON BNC 0.6/3.7 75 Ом, штекер на кабель, позолоченный центральный контакт, контакты под обжим, количество контактов: 2, металлический корпус","шт",1.84,128.93616000000003]
["BNC59FD","Разъем HICON BNC 0.8/3.7 75 Ом, гнездо на панель, позолоченный центральный контакт, контакты под обжим, количество контактов: 2, металлический корпус, фланец D-типа, крепежные отверстия с резьбой M3","шт",7.95,557.08830000000012]
["BNC59FEM","Разъем HICON BNC 0.8/3.7 75 Ом, гнездо на панель, позолоченный центральный контакт, контакты под обжим, количество контактов: 2, металлический корпус, внешняя резъба Ø 12,7 мм (1/2\"), изоляция массы","шт",6.16,431.65584000000001]
["BNC59FEO","Разъем HICON BNC 0.8/3.7 75 Ом, гнездо на панель, позолоченный центральный контакт, контакты под обжим, количество контактов: 2, металлический корпус, внешняя резъба Ø 12,7 мм (1/2\"), без изоляции массы","шт",3.05,213.72569999999999]
["BNC59FK","Разъем HICON BNC 0.8/3.7 75 Ом, гнездо на кабель, позолоченный центральный контакт, контакты под обжим, количество контактов: 2, металлический корпус","шт",2.99,209.52126000000001]
["BNC59KOM","Разъем HICON BNC 0.8/3.7 компрессионный 75 Ом, штекер на кабель, позолоченный центральный контакт под пайку, количество контактов: 2, металлический корпус","шт",5.27,369.28997999999996]
["BNC59M90","Разъем HICON BNC 0.8/3.7 угловой 90° 75 Ом, штекер на кабель, позолоченный центральный контакт под пайку, контакт заземления под обжим, количество контактов: 2, металлический корпус","шт",3.52,246.66048000000001]
["BNC6","Разъем HICON BNC 1.2/5.0 75 Ом, штекер на кабель, позолоченный центральный контакт, контакты под обжим, количество контактов: 2, металлический корпус","шт",1.97,138.04578000000001]
["BNC6M90","Разъем HICON BNC 1.2/5.0 угловой 90° 75 Ом, штекер на кабель, позолоченный центральный контакт под пайку, контакт заземления под обжим, количество контактов: 2, металлический корпус","шт",3.27,229.14198000000002]
["CAP-19MM","HICON пылезащитный колпачек из термопластичной резины (TPG) со шнуром для фиксации для XLR разъемов HICON и NEUTRIK, цвет : черный","шт",2.4900000000000002,174.48426000000001]
["CIKL-FM","Адаптер HICON JACK 6,3 штекер / RCA гнездо BASIC версия, никелированные контакты, количество контактов: 2/2, пластиковый черный корпус","шт",0.87,60.964380000000006]
["CIKL-MF","Адаптер HICON RCA штекер / JACK 6,3 мм гнездо BASIC версия, никелированные контакты, количество контактов: 2/2, пластиковый черный корпус","шт",1.17,81.986580000000004]
["CZ-HI-HD-MSK","HICON обжимные клещи для HDMI разъема HICON HI-HD-MSK","шт","По запросу","По запросу"]
["DPDP-FF","Адаптер HICON DisplayPort гнездо / DisplayPort штекер, пластиковый черный корпус, винтовое крепление","шт",18.260000000000002,{"$f":"IF(D653=\"По запросу\",D653,D653*$B$6*(1+0.02))","v":1279.5512400000002}]
["DPDV-MF","Адаптер HICON DisplayPort штекер / DVI гнездо, пластиковый черный корпус","шт",15.97,1119.0817800000002]
["DPHD-MF","Адаптер HICON DisplayPort штекер / HDMI гнездо, пластиковый черный корпус","шт",14.38,1007.66412]
["DVFF-0015","Адаптер HICON DVI гнездо / DVI гнездо длина кабеля 0,15 м, количество контактов: 24 + 5, винтовое крепление, металлические матово хромированные корпуса разъемов, цвет кабеля: черный","шт",19.71,1381.1585400000004]
["DVHD-FF","Адаптер HICON DVI гнездо / HDMI гнездо BASIC версия, пластиковый черный корпус, винтовое крепление","шт",18.12,1269.7408800000001]
["DVHD-FM","Адаптер HICON DVI гнездо / HDMI штекер BASIC версия, пластиковый черный корпус, винтовое крепление","шт",12.06,845.09244000000001]
["DVHD-MF","Адаптер HICON DVI штекер / HDMI гнездо BASIC версия, пластиковый черный корпус, винтовое крепление","шт",10.97,768.71178000000009]
["DVI01","Разъем HICON DVI, штекер на кабель, позолоченные контакты под пайку, количество контактов: 24 + 1, металлический матово хромированный корпус, резиновый конический хвостовик","шт",14.06,985.24044000000004]
["DVS2-FM","Адаптер HICON DVI гнездо / SUB-D DE15 штекер, пластиковый серый корпус, винтовое крепление","шт",6.03,422.54622000000001]
["DVS2-MF","Адаптер HICON DVI штекер / SUB-D DE15 гнездо, пластиковый черный корпус, винтовое крепление","шт",6,420.44400000000007]
["FIBERCLEAN","SOMMER CABLE ручка-очиститель для оптических портов и разъемов","шт",119.8,8394.8652000000002]
["FIBERWIPES","SOMMER CABLE 200 салфеток в картонной коробке для чистки оптических разъемов","шт",84.05,5889.7196999999996]
["FMC-3.7","Разъем HICON антенный серии F компрессионный, штекер на кабель, металлический хромированный корпус, растягивающее усилие: до 200 Н","шт",1.57,110.01618000000001]
["FMC-5.0","Разъем HICON антенный серии F компрессионный, штекер на кабель, металлический хромированный корпус, растягивающее усилие: до 200 Н","шт",1.56,109.31544000000001]
["FMC-5.0W","Разъем HICON антенный серии F компрессионный пыленепроницаемый и водостойкий (IP67), штекер на кабель, металлический хромированный корпус, растягивающее усилие: до 200 Н","шт",1.82,127.53468000000001]
["FMC-SEAL","HICON уплотнительная пластиковая манжета для компрессионного пыленепроницаемого и водостойкого (IP67) антенного F разъема HICON FMC-5.0W","шт",0.75,52.555500000000009]
["GF-LC4LC4-FF","Адаптер SOMMER CABLE 4 x LC гнездо / 4 x LC гнездо на панель, металлический корпус, винтовое крепление, на лицевую панель SYFB21-GF системы SYSBOXX","шт",22.84,1600.4901600000001]
["GF-SC2SC2-FF","Адаптер SOMMER CABLE 2 x SC Duplex гнездо / 2 x SC Duplex гнездо на панель, металлический корпус, винтовое крепление, на лицевую панель SYFB21-GF системы SYSBOXX","шт",8.31,582.31494000000009]
["HD-T","HICON тестер HDMI кабелей, проверка прохождения сигналов, проверка правильности распайки, функция SWEEP, в комлекте батаррея 9 Вольт типа \"Крона\"","шт","По запросу","По запросу"]
["HDHD-MF90H","Адаптер HICON HDMI штекер / HDMI гнездо угловой 90° (горизонтальный угол), пластиковый серебряный корпус","шт",6.05,423.9477]
["HDHD-MF90V","Адаптер HICON HDMI штекер / HDMI гнездо угловой 90° (вертикальный угол), пластиковый серебряный корпус","шт",6.38,447.07211999999998]
["HDHM-FM","Адаптер HICON HDMI гнездо / MINI HDMI штекер, пластиковый черный корпус","шт",7.95,557.08830000000012]
["HDMM-FM","Адаптер HICON HDMI гнездо / MICRO HDMI, пластиковый черный корпус","шт",11.52,807.25247999999999]
["HDMU-FM1","Адаптер HICON HDMI гнездо / MICRO USB штекер с поддержкой интерфейса MHL для соединения мобильных устройств с монитором длина кабеля 6,0 см, количество контактов: 11, цвет пластиковых корпусов разъемов и кабеля: черный, совместим со смартфонами SAMSUNG модельного ряда S3 и выше","шт",21.56,1510.7954400000001]
["HDMU-FM2","Адаптер HICON HDMI гнездо / MICRO USB штекер с поддержкой интерфейса MHL для соединения мобильных устройств с монитором длина кабеля 6,0 см, количество контактов: 11, цвет пластиковых корпусов разъемов и кабеля: черный","шт","По запросу","По запросу"]
["HDSV-MF","Адаптер HICON HDMI штекер / SUB-D DE15 гнездо, цвет пластиковых корпусов разъемов и кабеля: белый","шт",30.49,2136.5562599999998]
["HDUC-FM","Адаптер HICON HDMI гнездо / USB-C 3.1 штекер кабельный, цвет пластиковых корпусов разъемов и кабеля: белый","шт","По запросу","По запросу"]
["HI-ANCF01","Разъем HICON антенный TV, гнездо на кабель диаметром 7,0 - 8,2 мм, позолоченные контакты под пайку, количество контактов: 2, металлический серый лакированный корпус, диэлектрик PTFE","шт",7.16,501.72984000000008]
["HI-ANCF02","Разъем HICON антенный TV, гнездо на кабель диаметром до 8,0 мм, позолоченные контакты под пайку/винтовой зажим, количество контактов: 2, металлический черный корпус, диэлектрик PTFE","шт",8.9499999999999993,627.16230000000007]
["HI-ANCM01","Разъем HICON антенный TV, штекер на кабель диаметром 7,0 - 8,2 мм, позолоченные контакты под пайку, количество контактов: 2, металлический серый лакированный корпус, диэлектрик PTFE","шт",7.16,501.72984000000008]
["HI-ANCM02","Разъем HICON антенный TV, штекер на кабель диаметром до 8,0 мм, позолоченные контакты под пайку/винтовой зажим, количество контактов: 2, металлический черный корпус, диэлектрик PTFE","шт",8.9499999999999993,627.16230000000007]
["HI-ANEFP01","Адаптер HICON антенное TV гнездо / антенное TV гнездо на панель, позолоченный центральный контакт, количество контактов: 2, металлический корпус, внешняя резъба Ø 12,7 мм (1/2\")","шт",4.57,320.23818000000006]
["HI-ANEFPD","Адаптер HICON антенное TV гнездо / антенное TV гнездо на панель, позолоченный центральный контакт, количество контактов: 2, металлический корпус, фланец D-типа","шт",6.05,423.9477]
["HI-ANT-F","Разъем HICON антенный TV, гнездо на кабель, никелированные контакты, количество контактов: 2, металлический никелированный корпус","шт",1.97,138.04578000000001]
["HI-ANT-M","Разъем HICON антенный TV, штекер на кабель, никелированные контакты, металлический никелированный корпус","шт",1.97,138.04578000000001]
["HI-BM01-BLK","Разъем HICON акустический BANANA (\"банан\"), штекер на кабель диаметром до 4,2 мм, позолоченный контакт под винтовой зажим, количество контактов: 1, пластиковый черный корпус","шт",2.52,176.58647999999999]
["HI-BM01-RED","Разъем HICON акустический BANANA (\"банан\"), штекер на кабель диаметром до 4,2 мм, позолоченный контакт под винтовой зажим, количество контактов: 1, пластиковый красный корпус","шт",2.52,176.58647999999999]
["HI-BM04-RED","Разъем HICON акустический BANANA (\"банан\"), штекер на кабель диаметром до 4,2 мм, позолоченный контакт под винтовой зажим, количество контактов: 1, металлический серый лакированный корпус, цвет маркировки: красный","шт",3.82,267.68268]
["HI-BM04-WHT","Разъем HICON акустический BANANA (\"банан\"), штекер на кабель диаметром до 4,2 мм, позолоченный контакт под винтовой зажим, количество контактов: 1, металлический серый лакированный корпус, цвет маркировки: белый (нейтральный)","шт",3.82,267.68268]
["HI-BM05-RED","Разъем HICON акустический BANANA (\"банан\") Screw & Play, штекер на кабель диаметром до 4,0 мм, позолоченный ламельный контакт под винтовой зажим, количество контактов: 1, металлический черный корпус, цвет маркировки: красный","шт",5.32,372.79368000000005]
["HI-BM05-WHT","Разъем HICON акустический BANANA (\"банан\") Screw & Play, штекер на кабель диаметром до 4,0 мм, позолоченный ламельный контакт под винтовой зажим, количество контактов: 1, металлический черный корпус, цвет маркировки: белый","шт",5.32,372.79368000000005]
["HI-BM06-BLK","Разъем HICON акустический BANANA (\"банан\"), штекер на кабель диаметром до 7,2 мм, позолоченный контакт под винтовой зажим, количество контактов: 1, металлический серый лакированный корпус, цвет маркировки: черный","шт",3.49,244.55826000000005]
["HI-BM06-RED","Разъем HICON акустический BANANA (\"банан\"), штекер на кабель диаметром до 7,2 мм, позолоченный контакт под винтовой зажим, количество контактов: 1, металлический серый лакированный корпус, цвет маркировки: красный","шт",3.58,250.86492000000004]
["HI-BM07-RED","Разъем HICON акустический BANANA (\"банан\") Screw & Play, штекер на кабель диаметром до 4,2 мм, позолоченный контакт под винтовой зажим, количество контактов: 1, металлический черный корпус, цвет маркировки: красный","шт",3.9,273.28860000000003]
["HI-BM07-WHT","Разъем HICON акустический BANANA (\"банан\") Screw & Play, штекер на кабель диаметром до 4,2 мм, позолоченный контакт под винтовой зажим, количество контактов: 1, металлический черный корпус, цвет маркировки: белый (нейтральный)","шт",3.9,273.28860000000003]
["HI-BM08-BLK","Разъем HICON акустический BANANA (\"банан\") с замком-распоркой пина, штекер на кабель диаметром до 6,9 мм, позолоченный контакт под винтовой зажим, количество контактов: 1, металлический серый лакированный корпус, цвет маркировки: черный","шт",8.36,585.81863999999996]
["HI-BM08-RED","Разъем HICON акустический BANANA (\"банан\") с замком-распоркой пина, штекер на кабель диаметром до 6,9 мм, позолоченный контакт под винтовой зажим, количество контактов: 1, металлический серый лакированный корпус","шт",8.36,585.81863999999996]
["HI-BM13-RED","Разъем HICON акустический BANANA (\"банан\"), штекер на кабель диаметром до 8,5 мм сечением 1,5 - 6,0 мм², универсальный ламельный позолоченный контакт под пайку/зажим/обжим, количество контактов: 1, металлический черный корпус, цвет маркировки: красный","шт",4.75,332.85149999999999]
["HI-BM13-WHT","Разъем HICON акустический BANANA (\"банан\"), штекер на кабель диаметром до 8,5 мм сечением 1,5 - 6,0 мм², универсальный ламельный позолоченный контакт под пайку/зажим/обжим, количество контактов: 1, металлический черный корпус, цвет маркировки: белый (нейтральный)","шт",4.75,332.85149999999999]
["HI-BNAN-FM","Адаптер HICON BNC гнездо / антенный TV штекер, количество контактов: 2, металлический никелированный корпус","шт",2.16,151.35984000000002]
["HI-BNBN-FF","Адаптер HICON BNC гнездо / BNC гнездо, количество контактов: 2, металлический никелированный корпус","шт",2.38,166.77611999999999]
["HI-BNBN-MF90","Адаптер HICON BNC гнездо / BNC штекер угловой 90°, количество контактов: 2, металлический никелированный корпус","шт",5.16,361.58184]
["HI-BNC59FG","Разъем HICON BNC 0.8/3.7, гнездо на кабель, позолоченные контакты под пайку, количество контактов: 2, металлический серый лакированный корпус, PTFE изоляция","шт",5.49,384.70626000000004]
["HI-BNC59MG","Разъем HICON BNC 0.8/3.7, штекер на кабель, позолоченные контакты под пайку, количество контактов: 2, металлический серый лакированный корпус, PTFE изоляция","шт",5.52,386.80847999999997]
["HI-BNCI-FF","Адаптер HICON BNC гнездо / RCA гнездо, количество контактов: 2, металлический никелированный корпус","шт",3.44,241.05456000000001]
["HI-BNCI-FM","Адаптер HICON BNC гнездо / RCA штекер, количество контактов: 2, металлический никелированный корпус","шт",2.52,176.58647999999999]
["HI-BNCI-MF","Адаптер HICON BNC штекер / RCA гнездо, количество контактов: 2, металлический никелированный корпус","шт",2.4,168.17760000000001]
["HI-C6XL-HD","HICON защитный металлический черный кожух в формате XLR для сетевого разъема RJ45C6-XL HICON","шт",3.28,229.84271999999999]
["HI-CEF01-BLK","Разъем HICON RCA, гнездо на панель, позолоченные контакты под пайку, количество контактов: 2, металлический позолоченный корпус, внешняя резъба Ø 8,0 мм, цвет маркировки: черный, PTFE изоляция","шт",3.38,236.85012]
["HI-CEF01-RED","Разъем HICON RCA, гнездо на панель, позолоченные контакты под пайку, количество контактов: 2, металлический позолоченный корпус, внешняя резъба Ø 8,0 мм, цвет маркировки: красный, PTFE изоляция","шт",3.38,236.85012]
["HI-CEF01-WHT","Разъем HICON RCA, гнездо на панель, позолоченные контакты под пайку, количество контактов: 2, металлический позолоченный корпус, внешняя резъба Ø 8,0 мм, цвет маркировки: белый, PTFE изоляция","шт",3.38,236.85012]
["HI-CEF02","Разъем HICON RCA, гнездо на панель, никелированные контакты под пайку, количество контактов: 2, металлический корпус, внешняя резъба Ø 12,7 мм (1/2\"), совместин с фланцем D-типа HI-DET HICON","шт",3.62,253.66788000000003]
["HI-CEFD-BLU","Разъем HICON RCA, гнездо на панель, никелированные контакты под пайку, количество контактов: 2, металлический корпус, фланец D-типа, цвет маркировки: синий","шт",4.78,334.95372000000003]
["HI-CEFD-GRN","Разъем HICON RCA, гнездо на панель, никелированные контакты под пайку, количество контактов: 2, металлический корпус, фланец D-типа, цвет маркировки: зеленый","шт",4.78,334.95372000000003]
["HI-CEFD-NTL","Разъем HICON RCA, гнездо на панель, никелированные контакты под пайку, количество контактов: 2, металлический корпус, фланец D-типа, цвет маркировки: черный (нейтральный)","шт",4.78,{"$f":"IF(D717=\"По запросу\",D717,D717*$B$6*(1+0.02))","v":334.95372000000003}]
["HI-CEFD-RED","Разъем HICON RCA, гнездо на панель, никелированные контакты под пайку, количество контактов: 2, металлический корпус, фланец D-типа, цвет маркировки: красный","шт",4.78,334.95372000000003]
["HI-CEFD-WHT","Разъем HICON RCA, гнездо на панель, никелированные контакты под пайку, количество контактов: 2, металлический корпус, фланец D-типа, цвет маркировки: белый","шт",4.78,334.95372000000003]
["HI-CEFD-YEL","Разъем HICON RCA, гнездо на панель, никелированные контакты под пайку, количество контактов: 2, металлический корпус, фланец D-типа, цвет маркировки: желтый","шт",4.78,334.95372000000003]
["HI-CEFP01-NTL","Разъем HICON RCA удлинитель патч версия, гнездо на панель, никелированные контакты, количество контактов: 2, металлический корпус, внешняя резъба Ø 12,7 мм (1/2\"), совместин с фланцем D-типа HI-DET HICON","шт",4.6399999999999997,325.14335999999997]
["HI-CF08-BLU","Разъем HICON RCA, гнездо на кабель диаметром 6,0 - 8,0 мм, позолоченные контакты под пайку, количество контактов: 2, металлический хромированный корпус, цвет маркировки: синий","шт",4.12,288.70488000000006]
["HI-CF08-RED","Разъем HICON RCA, гнездо на кабель диаметром 6,0 - 8,0 мм, позолоченные контакты под пайку, количество контактов: 2, металлический хромированный корпус, цвет маркировки: красный","шт",4.12,288.70488000000006]
["HI-CF08-WHT","Разъем HICON RCA, гнездо на кабель диаметром 6,0 - 8,0 мм, позолоченные контакты под пайку, металлический хромированный корпус, цвет маркировки: белый","шт",4.12,288.70488000000006]
["HI-CI-MF90","Адаптер HICON RCA штекер / RCA гнездо угловой 90°, позолоченные контакты, количество контактов: 2/2, металлический позолоченный корпус","шт",5.34,374.19515999999999]
["HI-CICI-FF","Адаптер HICON RCA гнездо / RCA гнездо, никелированные контакты, количество контактов: 2/2, металлический черный корпус","шт",9.32,653.08968000000004]
["HI-CIJM3-MF","Адаптер HICON RCA штекер / MINI JACK 3,5 мм гнездо, никелированные контакты, количество контактов: 3/2, металлический никелированный корпус","шт",1.91,133.84134]
["HI-CM-SM","Разъем HICON RCA Screw & Play (для самостоятельного монтажа без пайки), штекер на кабель диаметром 4,0 - 6,8 мм, монолитный пин, позолоченные контакты , центральный контакт с винтовым зажимом, количество контактов: 2, металлический цанговый кабельный зажим, металлический позолоченный корпус, металлический черный резьбовой колпачек, изоляция из высокомолекулярного термопластика, цвет маркировки: белый / красный, в комплекте 2 маркировочных пластиковых кольца белого и красного цвета","шт",12.71,890.6405400000001]
["HI-CM01C","Разъем HICON RCA RG59 версия, штекер на кабель, монолитный пин, позолоченные контакты под обжим, количество контактов: 2, металлический хромированный корпус","шт",7.22,505.93428]
["HI-CM03-NTL","Разъем HICON RCA, штекер на кабель диаметром до 7,5 мм, монолитный пин, позолоченные контакты под пайку, количество контактов: 2, пластиковый цанговый кабельный зажим, металлический черный корпус, металлический пружинный хвостовик на кабель диаметром до 6,4 мм, цвет маркировки: белый (нейтральный)","шт",2.7,189.19980000000001]
["HI-CM03-RED","Разъем HICON RCA, штекер на кабель диаметром до 7,5 мм, монолитный пин, позолоченные контакты под пайку, количество контактов: 2, пластиковый цанговый кабельный зажим, металлический черный корпус, металлический пружинный хвостовик на кабель диаметром до 6,4 мм, цвет маркировки: красный","шт",2.7,189.19980000000001]
["HI-CM06-BLU","Разъем HICON RCA, штекер на кабель диаметром до 7,0 мм, монолитный пин, позолоченные контакты под пайку, количество контактов: 2, клеммный кабельный зажим, металлический черный корпус, резиновый конический хвостовик, черный пластиковый кабельный ввод на кабель диаметром до 5,0 мм, цвет маркировки: синий","шт",3.05,213.72569999999999]
["HI-CM06-GRN","Разъем HICON RCA, штекер на кабель диаметром до 7,0 мм, монолитный пин, позолоченные контакты под пайку, количество контактов: 2, клеммный кабельный зажим, металлический черный корпус, резиновый конический хвостовик, черный пластиковый кабельный ввод на кабель диаметром до 5,0 мм, цвет маркировки: зеленый","шт",3.05,213.72569999999999]
["HI-CM06-NTL","Разъем HICON RCA, штекер на кабель диаметром до 7,0 мм, монолитный пин, позолоченные контакты под пайку, количество контактов: 2, клеммный кабельный зажим, металлический черный корпус, резиновый конический хвостовик, черный пластиковый кабельный ввод на кабель диаметром до 5,0 мм, цвет маркировки: белый (нейтральный)","шт",3.05,213.72569999999999]
["HI-CM06-RED","Разъем HICON RCA, штекер на кабель диаметром до 7,0 мм, монолитный пин, позолоченные контакты под пайку, количество контактов: 2, клеммный кабельный зажим, металлический черный корпус, резиновый конический хвостовик, черный пластиковый кабельный ввод на кабель диаметром до 5,0 мм, цвет маркировки: красный","шт",3.05,213.72569999999999]
["HI-CM06-YEL","Разъем HICON RCA, штекер на кабель диаметром до 7,0 мм, монолитный пин, позолоченные контакты под пайку, количество контактов: 2, клеммный кабельный зажим, металлический черный корпус, резиновый конический хвостовик, черный пластиковый кабельный ввод на кабель диаметром до 5,0 мм, цвет маркировки: желтый","шт",3.05,213.72569999999999]
["HI-CM07-NTL","Разъем HICON RCA, штекер на кабель диаметром 6,0 - 8,0 мм, монолитный пин, позолоченные контакты под пайку, количество контактов: 2, клеммный кабельный зажим, металлический хромированный корпус, цвет маркировки: белый (нейтральный)","шт",5.04,353.17295999999999]
["HI-CM07-RED","Разъем HICON RCA, штекер на кабель диаметром 6,0 - 8,0 мм, монолитный пин, позолоченные контакты под пайку, количество контактов: 2, клеммный кабельный зажим, металлический хромированный корпус, цвет маркировки: красный","шт",5.04,353.17295999999999]
["HI-CM09-NTL","Разъем HICON RCA с цанговым механизмом фиксации штекера в гнезде, штекер на кабель диаметром 6,0 - 8,0 мм, монолитный пин, позолоченные контакты под пайку, количество контактов: 2, винтовой кабельный зажим, металлический хромированный корпус, цвет маркировки: белый (нейтральный)","шт",13,910.96199999999999]
["HI-CM09-RED","Разъем HICON RCA с цанговым механизмом фиксации штекера в гнезде, штекер на кабель диаметром 6,0 - 8,0 мм, монолитный пин, позолоченные контакты под пайку, количество контактов: 2, винтовой кабельный зажим, металлический хромированный корпус, цвет маркировки: красный","шт",13,910.96199999999999]
["HI-CM13-BLK","Разъем HICON RCA с цанговым механизмом фиксации штекера в гнезде, штекер на кабель диаметром 6,0 - 9,0 мм, монолитный пин, позолоченные контакты под пайку, количество контактов: 2, винтовой кабельный зажим, металлический матово хромированный корпус, цвет маркировки: черный","шт",6.84,479.30616000000003]
["HI-CM13-RED","Разъем HICON RCA с цанговым механизмом фиксации штекера в гнезде, штекер на кабель диаметром 6,0 - 9,0 мм, монолитный пин, позолоченные контакты под пайку, количество контактов: 2, винтовой кабельный зажим, металлический матово хромированный корпус, цвет маркировки: красный","шт",6.84,479.30616000000003]
["HI-CM18-NTL","Разъем HICON RCA с цанговым механизмом фиксации штекера в гнезде, штекер на кабель диаметром 6,0 - 8,0 мм, монолитный пин, позолоченные контакты под пайку, количество контактов: 2, винтовой кабельный зажим, металлический хромированный корпус, цвет маркировки: белый (нейтральный)","шт",9.0399999999999991,633.46896000000004]
["HI-CM18-RED","Разъем HICON RCA с цанговым механизмом фиксации штекера в гнезде, штекер на кабель диаметром 6,0 - 8,0 мм, монолитный пин, позолоченные контакты под пайку, количество контактов: 2, винтовой кабельный зажим, металлический хромированный корпус, цвет маркировки: красный","шт",9.0399999999999991,633.46896000000004]
["HI-CMA01-BLK","Разъем HICON RCA угловой 90°, штекер на кабель диаметром до 7,0 мм, монолитный пин, позолоченные контакты , центральный контакт с винтовым зажимом, количество контактов: 2, металлический цанговый кабельный зажим, металлический хромированный корпус","шт",12.12,849.29687999999999]
["HI-CMA01-RED","Разъем HICON RCA угловой 90°, штекер на кабель диаметром до 7,0 мм, монолитный пин, позолоченные контакты , центральный контакт с винтовым зажимом, количество контактов: 2, металлический цанговый кабельный зажим, металлический хромированный корпус, цвет маркировки: красный","шт",12.12,849.29687999999999]
["HI-CMA02-NTL","Разъем HICON RCA угловой 90°, штекер на кабель диаметром до 7,0 мм, монолитный пин, позолоченные контакты , центральный контакт с винтовым зажимом, количество контактов: 2, металлический цанговый кабельный зажим, металлический черный корпус, цвет маркировки: белый (нейтральный)","шт",12.01,841.58874000000003]
["HI-CMA02-RED","Разъем HICON RCA угловой 90°, штекер на кабель диаметром до 7,0 мм, монолитный пин, позолоченные контакты , центральный контакт с винтовым зажимом, количество контактов: 2, металлический цанговый кабельный зажим, металлический черный корпус, цвет маркировки: красный","шт",12.01,841.58874000000003]
["HI-CT05-BLK","Разъем HICON акустический \"лопатка\" на кабель диаметром до 3,8 мм сечением 4,0 - 6,0 мм², позолоченный контакт, количество контактов: 1, винтовой кабельный зажим, металлический позолоченный корпус, металлический черный резьбовой кабельный ввод, разлет лопатки: 6,0 мм, цвет маркировки: черный","шт",3.36,235.44864000000001]
["HI-CT05-RED","Разъем HICON акустический \"лопатка\" на кабель диаметром до 3,8 мм сечением 4,0 - 6,0 мм², позолоченный контакт, количество контактов: 1, винтовой кабельный зажим, металлический позолоченный корпус, металлический черный резьбовой кабельный ввод, разлет лопатки: 6,0 мм, цвет маркировки: красный","шт",3.36,235.44864000000001]
["HI-CT12-BLK","Разъем HICON акустический \"лопатка\" на кабель диаметром до 7,5 мм сечением 4,0 - 25,0 мм², позолоченный контакт, винтовой кабельный зажим, металлический позолоченный корпус, разлет лопатки: 7,7 мм, цвет маркировки: черный","шт",6.29,440.76546000000008]
["HI-CT12-RED","Разъем HICON акустический \"лопатка\" на кабель диаметром до 7,5 мм сечением 4,0 - 25,0 мм², позолоченный контакт, винтовой кабельный зажим, металлический позолоченный корпус, разлет лопатки: 7,7 мм, цвет маркировки: красный","шт",6.29,440.76546000000008]
["HI-CTA01","Разъем HICON акустический \"лопатка\" угловой 30° на кабель диаметром до 6,0 мм сечением 1,5 - 8,0 мм², позолоченный контакт, количество контактов: 1, клеммный кабельный зажим, металлический позолоченный корпус, разлет лопатки: 7,7 мм","шт",2.0099999999999998,140.84873999999999]
["HI-CTA02","Разъем HICON акустический \"лопатка\" угловой 25° на кабель диаметром до 6,0 мм сечением 1,5 - 8,0 мм², позолоченный контакт, клеммный кабельный зажим, металлический позолоченный корпус, разлет лопатки: 7,7 мм","шт",2.25,157.66650000000001]
["HI-DAE","HICON пластиковый фланец D типа с отверстием \"D\" формы, цвет : черный","шт",0.94,65.869560000000007]
["HI-DAH1","HICON глухой пластиковый фланец D типа без логотипа и без выступа, цвет : черный","шт",0.7,49.0518]
["HI-DAH2","HICON глухой пластиковый фланец D типа с логотипом HICON на выступе, цвет : черный","шт",0.71,49.752540000000003]
["HI-DAM16","HICON пластиковый фланец D типа с отверстием M16, цвет : черный","шт",0.94,65.869560000000007]
["HI-DAPG13","HICON пластиковый фланец D типа с отверстием PG13, цвет : черный","шт",2.34,163.97316000000001]
["HI-DAS","HICON глухой пластиковый фланец D типа с логотипом SOMMER CABLE на выступе, цвет : черный","шт",0.71,49.752540000000003]
["HI-DET","HICON универсальный пластиковый фланец D-типа, углубленный, с отверстием 12,5 мм, цвет : черный","шт",1.4,98.1036]
["HI-DET-M","HICON универсальный металлический фланец D-типа, углубленный, с отверстием 12,5 мм, крепежные отверстия с резьбой M3, цвет : черный","шт",2.06,144.35244000000003]
["HI-DPFF-0015-SW","Адаптер HICON DisplayPort гнездо / DisplayPort гнездо длина кабеля 0,15 м, цвет пластиковых корпусов разъемов и кабеля: черный, винтовое крепление","шт",13.55,949.50270000000012]
["HI-DR-BL","HICON пластиковое маркировочное кольцо для фланцев типа D версий FDH и FPD, цвет : синий","шт",0.17,11.912580000000002]
["HI-DR-BR","HICON пластиковое маркировочное кольцо для фланцев типа D версий FDH и FPD, цвет : коричневый","шт",0.17,11.912580000000002]
["HI-DR-GE","HICON пластиковое маркировочное кольцо для фланцев типа D версий FDH и FPD, цвет : желтый","шт",0.17,11.912580000000002]
["HI-DR-GN","HICON пластиковое маркировочное кольцо для фланцев типа D версий FDH и FPD, цвет : зеленый","шт",0.17,11.912580000000002]
["HI-DR-GR","HICON пластиковое маркировочное кольцо для фланцев типа D версий FDH и FPD, цвет : серый","шт",0.17,11.912580000000002]
["HI-DR-MN","HICON пластиковое маркировочное кольцо для фланцев типа D версий FDH и FPD, цвет : мятный","шт",0.17,11.912580000000002]
["HI-DR-OR","HICON пластиковое маркировочное кольцо для фланцев типа D версий FDH и FPD, цвет : оранжевый","шт",0.17,11.912580000000002]
["HI-DR-PN","HICON пластиковое маркировочное кольцо для фланцев типа D версий FDH и FPD, цвет : розовый","шт",0.17,11.912580000000002]
["HI-DR-RT","HICON пластиковое маркировочное кольцо для фланцев типа D версий FDH и FPD, цвет : красный","шт",0.17,11.912580000000002]
["HI-DR-VI","HICON пластиковое маркировочное кольцо для фланцев типа D версий FDH и FPD, цвет : фиолетовый","шт",0.17,11.912580000000002]
["HI-DR-WS","HICON пластиковое маркировочное кольцо для фланцев типа D версий FDH и FPD, цвет : белый","шт",0.17,11.912580000000002]
["HI-DVDV-FF","Адаптер HICON DVI гнездо / DVI гнездо, количество контактов: 24 + 5, пластиковый серый корпус, винтовое крепление","шт",13.96,978.23304000000019]
["HI-DVDV-FFL","Адаптер HICON DVI гнездо / DVI гнездо длина корпуса 61 мм, количество контактов: 24 + 5, пластиковый черный корпус, винтовое крепление","шт",7.17,502.43058000000002]
["HI-F-MF90","Адаптер HICON антенное F гнездо / антенный F штекер угловой 90°, никелированные контакты, количество контактов: 2, металлический никелированный корпус","шт",1.25,87.592500000000001]
["HI-FAN-FF90","Адаптер HICON антенное F гнездо / антенное TV гнездо угловой 90°, никелированные контакты, количество контактов: 2, металлический никелированный корпус","шт",1.44,100.90656]
["HI-FAN-FM90","Адаптер HICON антенное F гнездо / антенный TV штекер угловой 90°, никелированные контакты, количество контактов: 2, металлический никелированный корпус","шт",1.44,100.90656]
["HI-FC-BL","HICON 10 маркировочных самоклеящихся полосок на одном листе для разъема HI-FIBER4-MC, цвет : синий","шт",1.56,109.31544000000001]
["HI-FC-GE","HICON 10 маркировочных самоклеящихся полосок на одном листе для разъема HI-FIBER4-MC, цвет : желтый","шт",1.56,{"$f":"IF(D781=\"По запросу\",D781,D781*$B$6*(1+0.02))","v":109.31544000000001}]
["HI-FC-GN","HICON 10 маркировочных самоклеящихся полосок на одном листе для разъема HI-FIBER4-MC, цвет : зеленый","шт",1.56,109.31544000000001]
["HI-FC-RT","HICON 10 маркировочных самоклеящихся полосок на одном листе для разъема HI-FIBER4-MC, цвет : красный","шт",1.56,109.31544000000001]
["HI-FC-SW","HICON 10 маркировочных самоклеящихся полосок на одном листе для разъема HI-FIBER4-MC, цвет : черный","шт",1.56,109.31544000000001]
["HI-FC-WS","HICON 10 маркировочных самоклеящихся полосок на одном листе для разъема HI-FIBER4-MC, цвет : белый","шт",1.56,109.31544000000001]
["HI-FEEP01","Адаптер HICON антенное F гнездо / антенное F гнездо, никелированные контакты, количество контактов: 2, металлический никелированный корпус, внешняя резъба Ø 12,7 мм (1/2\"), совместим с D фланцем HICON HI-DET","шт",4.0599999999999996,284.50043999999997]
["HI-FEFP","Адаптер HICON антенное F гнездо / антенное F гнездо, никелированные контакты, количество контактов: 2, металлический никелированный корпус","шт",1.1200000000000001,78.482880000000023]
["HI-FIBER4-FCAP","HICON защитный металлический колпачек на тросике для панельного адаптера HI-FIBER4-FD","шт",13.96,978.23304000000019]
["HI-FIBER4-FD","Адаптер HICON 4 x LC гнездо / 4 x LC гнездо на панель, металлический черный корпус, фланец D-типа, крепежные отверстия с резьбой M3, ответная часть: разъем HI-FIBER-MC HICON","шт",52.47,3676.78278]
["HI-FIBER4-MC","Разъем HICON кожух для 4 х LC кабельных разъемов (без разъемов) пыленепроницаемый и водостойкий (IP67), штекер на кабель диаметром 5,0 - 9,0 мм, металлический темно-серебряный корпус, резиновый конический хвостовик, в комплекте металлический защитный колпачок на тросике, ответная часть: разъем HI-FIBER-FD HICON","шт",193.56,13563.523440000001]
["HI-FM07","Разъем HICON антенный серии F, штекер на кабель диаметром до 8,2 мм, позолоченный центральный контакт , центральный контакт с винтовым зажимом, количество контактов: 2, 4-х лепестковый металлический цанговый кабельный зажим, металлический черный матовый корпус, диэлектрик PTFE","шт",4.99,349.66926000000007]
["HI-FM08","Разъем HICON антенный серии F, штекер на кабель диаметром до 7,3 мм, позолоченный центральный контакт под пайку, количество контактов: 2, клеммный кабельный зажим, металлический серый лакированный корпус","шт",6.75,472.99950000000001]
["HI-HD-M","Разъем HICON HDMI для самостоятельного монтажа, штекер на кабель, позолоченные контакты под пайку, количество контактов: 19, металлический черный лакированный корпус, резиновый гофрированный конический хвостовик, рекомендуемый кабель: SC-TRANSIT High Speed HDMI + Ethernet / арт. номер: 612-0251","шт",9.4700000000000006,663.6007800000001]
["HI-HD-MSK","Разъем HICON HDMI для самостоятельного монтажа, штекер на кабель, позолоченные контакты под обжим, количество контактов: 19, металлический матово хромированный корпус, рекомендуемый кабель: SC-TRANSIT High Speed HDMI + Ethernet / арт. номер: 612-0251","шт",10.27,719.65998000000002]
["HI-HDFF-0015-SW","Адаптер HICON HDMI гнездо с винтовым креплением / HDMI гнездо длина кабеля 0,15 м, цвет пластиковых корпусов разъемов и кабеля: черный","шт",13.55,949.50270000000012]
["HI-HDFM-0030-SW","Адаптер HICON HDMI гнездо с винтовым креплением / HDMI штекер длина кабеля 0,30 м, цвет пластиковых корпусов разъемов и кабеля: черный","шт",14.55,1019.5767000000001]
["HI-HDFM-0050-SW","Адаптер HICON HDMI гнездо с винтовым креплением / HDMI штекер длина кабеля 0,50 м, цвет пластиковых корпусов разъемов и кабеля: черный","шт","По запросу","По запросу"]
["HI-HDFM-0100-SW","Адаптер HICON HDMI гнездо с винтовым креплением / HDMI штекер длина кабеля 1,00 м, цвет пластиковых корпусов разъемов и кабеля: черный","шт","По запросу","По запросу"]
["HI-HDHD-FF","Адаптер HICON HDMI гнездо / HDMI гнездо, пластиковый черный корпус, винтовое крепление","шт",21.52,1507.9924800000001]
["HI-HDHD-FFDN","Адаптер HICON HDMI гнездо / HDMI гнездо на панель, позолоченные контакты, количество контактов: 19, металлический матово хромированный корпус, тип D","шт",14.53,1018.1752200000001]
["HI-HDHD-RPT","Репитер HICON HDMI пассивный, пластиковый черный корпус, опционально возможно подключение блока юитания 5 Вольт, общая максимальная длина HDMI соединения - 40 м (5 м до репитера, 35 м - после)","шт",35.74,2504.4447600000003]
["HI-HOUSING","HICON универсальный металлический прямoугольный корпус для фланцев D типа, длина: 100 мм, в комплекте винты TORX, цвет : черный","шт",14.29,1001.3574599999999]
["HI-J25SEF","Разъем HICON MICRO JACK 2,5 мм, гнездо на панель, никелированные контакты под пайку, количество контактов: 3, металлический хромированный корпус","шт",2.48,173.78352000000001]
["HI-J25SEFD","Разъем HICON MICRO JACK 2,5 мм, гнездо на панель, никелированные контакты под пайку, количество контактов: 3, металлический корпус, фланец D-типа","шт",3.95,276.79230000000001]
["HI-J3563S","Разъем HICON MINI JACK 3,5 мм (стерео) в комплекете: адаптер MINI JACK 3,5 мм / JACK 6,3 мм на резьбовом соединениии с позолоченными контактами, штекер на кабель диаметром до 5,8 мм, позолоченные контакты под пайку, количество контактов: 3, клеммный кабельный зажим, металлический черный корпус","шт",5.35,374.89590000000004]
["HI-J35M04","Разъем HICON MINI JACK 3,5 мм (моно), штекер на кабель диаметром 4,0 - 6,8 мм, позолоченные контакты под пайку, количество контактов: 2, пластиковый цанговый кабельный зажим, металлический черный корпус","шт",6.04,423.24696000000006]
["HI-J35S-SCREW-F","Разъем HICON MINI JACK 3,5 мм (стерео) резьбовое соединение с ответной частью, гнездо на кабель диаметром до 5,8 мм, позолоченные контакты под пайку, количество контактов: 3, клеммный кабельный зажим, металлический черный корпус","шт",3.49,244.55826000000005]
["HI-J35S-SCREW-M","Разъем HICON MINI JACK 3,5 мм (стерео) резьбовое соединение с ответной частью, штекер на кабель диаметром до 5,8 мм, позолоченные контакты под пайку, количество контактов: 3, клеммный кабельный зажим, металлический черный корпус, накидная резьбовая гильза","шт",3.7,259.27380000000005]
["HI-J35S02","Разъем HICON MINI JACK 3,5 мм (стерео), штекер на кабель диаметром до 8,4 мм, позолоченные контакты под пайку, количество контактов: 3, клеммный кабельный зажим, металлический черный корпус, резиновый конический хвостовик, черный пластиковый кабельный ввод на кабель диаметром до 5,0 мм","шт",4.3,301.31820000000005]
["HI-J35S03","Разъем HICON MINI JACK 3,5 мм (стерео) компактная версия, штекер на кабель диаметром до 6,5 мм, позолоченные контакты под пайку, количество контактов: 3, клеммный кабельный зажим, металлический черный корпус","шт",3.32,232.64568]
["HI-J35S04","Разъем HICON MINI JACK 3,5 мм (стерео), штекер на кабель диаметром 4,0 - 6,8 мм, позолоченные контакты под пайку, количество контактов: 3, пластиковый цанговый кабельный зажим, металлический черный корпус","шт",6.38,447.07211999999998]
["HI-J35SA","Разъем HICON MINI JACK 3,5 мм угловой 90° (стерео), штекер на кабель диаметром до 5,8 мм, позолоченные контакты под пайку, количество контактов: 3, клеммный кабельный зажим, алюминиевый черный корпус","шт",4.75,332.85149999999999]
["HI-J35SEF","Разъем HICON MINI JACK 3,5 мм (стерео), гнездо на панель, никелированные контакты под пайку, количество контактов: 3, металлический хромированный корпус","шт",2.4300000000000002,170.27982000000003]
["HI-J35SEFD","Разъем HICON MINI JACK 3,5 мм (стерео), гнездо на панель, никелированные контакты под пайку, количество контактов: 3, металлический корпус, фланец D-типа","шт",3.88,271.88711999999998]
["HI-J35SEFD-S","Разъем HICON MINI JACK 3,5 мм (стерео), гнездо на панель, никелированные контакты под винтовой зажим, количество контактов: 3, фланец D-типа","шт",26.04,1824.7269600000002]
["HI-J35T02","Разъем HICON MINI JACK 3,5 мм, штекер на кабель диаметром до 8,4 мм, позолоченные контакты под пайку, количество контактов: 4, клеммный кабельный зажим, металлический черный корпус, резиновый конический хвостовик, черный пластиковый кабельный ввод на кабель диаметром до 5,0 мм","шт",5.62,393.81588000000005]
["HI-J63M","Разъем HICON JACK 6,3 мм (моно) с защитой центрального пина от прокручивания, штекер на кабель диаметром до 7,8 мм, монолитный позолоченный TIP контакт, контакты под пайку, количество контактов: 2, 4-х лепестковый пластиковый цанговый кабельный зажим, металлический корпус, металлический черный резьбовой колпачек, резиновый гофрированный конический хвостовик, пластиковое прозрачное кольцо для нанесения индивидуальной маркировки","шт",3.7,259.27380000000005]
["HI-J63M-PH","Разъем HICON JACK 6,3 мм (моно) PCB версия, гнездо на панель в плату (горизонтальная установка), луженые контакты под пайку, количество контактов: 2, пластиковый черный корпус, пластиковая накидная гайка с контргайкой и шайбой","шт",0.62,43.445880000000002]
["HI-J63M-PHM","Разъем HICON JACK 6,3 мм (моно) PCB версия, гнездо на панель в плату (горизонтальная установка), луженые контакты под пайку, количество контактов: 2, пластиковый черный корпус, металлическая накидная гайка с контргайкой и шайбой","шт",0.78,54.657720000000005]
["HI-J63M-PVM","Разъем HICON JACK 6,3 мм (моно) PCB версия, гнездо на панель в плату (вертикальная установка), луженые контакты под пайку, количество контактов: 2, пластиковый черный корпус, металлическая накидная гайка с контргайкой и шайбой","шт",0.91,63.767340000000004]
["HI-J63M01","Разъем HICON JACK 6,3 мм (моно), штекер на кабель диаметром до 6,0 мм, позолоченный TIP контакт, контакты под пайку, количество контактов: 2, металлический матово хромированный корпус, резиновый конический хвостовик","шт",2.2999999999999998,161.17019999999999]
["HI-J63M03","Разъем HICON JACK 6,3 мм (моно) PRO версия, штекер на кабель диаметром до 7,8 мм, монолитный TIP контакт, никелированные контакты под пайку, количество контактов: 2, 4-х лепестковый пластиковый цанговый кабельный зажим, металлический черный корпус, металлический черный резьбовой колпачек, резиновый гофрированный конический хвостовик","шт",3.45,241.75530000000001]
["HI-J63M03-G","Разъем HICON JACK 6,3 мм (моно) PRO версия, штекер на кабель диаметром до 7,8 мм, монолитный TIP контакт, позолоченные контакты под пайку, количество контактов: 2, 4-х лепестковый пластиковый цанговый кабельный зажим, металлический черный корпус, металлический черный резьбовой колпачек, резиновый гофрированный конический хвостовик","шт",3.81,266.98194000000001]
["HI-J63M04","Разъем HICON JACK 6,3 мм (моно) CLASSIC версия, штекер на кабель диаметром до 7,0 мм, монолитный позолоченный TIP контакт, контакты под пайку, количество контактов: 2, клеммный кабельный зажим, металлический черный корпус","шт",3.18,222.83532000000002]
["HI-J63M07","Разъем HICON JACK 6,3 мм (моно), штекер на кабель, позолоченный TIP контакт, контакты под пайку, количество контактов: 2, клеммный кабельный зажим, металлический черный корпус, резиновый конический хвостовик на кабель диаметром до 5,0 мм","шт",2.95,206.71830000000003]
["HI-J63M14","Разъем HICON JACK 6,3 мм (моно) NOISEFREE (бесшумное подключение), штекер на кабель диаметром до 7,0 мм, монолитный позолоченный TIP контакт, контакты под пайку, количество контактов: 2, клеммный кабельный зажим, металлический черный корпус","шт",4.25,297.81450000000001]
["HI-J63MA01","Разъем HICON JACK 6,3 мм угловой 90° (моно), штекер на кабель диаметром до 6,0 мм, позолоченный TIP контакт, контакты под пайку, количество контактов: 2, металлический матово хромированный корпус, резиновый конический хвостовик","шт",3.55,248.7627]
["HI-J63MA04","Разъем HICON JACK 6,3 мм угловой 90° (моно) CLASSIC версия, штекер на кабель диаметром до 7,0 мм, монолитный позолоченный TIP контакт, контакты под пайку, количество контактов: 2, клеммный кабельный зажим, металлический черный корпус","шт",4.03,282.39822000000004]
["HI-J63MA05","Разъем HICON JACK 6,3 мм угловой 90° (моно) плоский (\"таблетка\"), штекер на кабель диаметром 4,0 - 6,4 мм, монолитный позолоченный TIP контакт, контакты под пайку, количество контактов: 2, клеммный кабельный зажим, металлический черный/металлический корпус","шт",2.2599999999999998,158.36724000000001]
["HI-J63MA06","Разъем HICON JACK 6,3 мм угловой 90° (моно), штекер на кабель диаметром до 8,0 мм, позолоченный TIP контакт, контакты под пайку, количество контактов: 2, 3-х лепестковый пластиковый цанговый кабельный зажим, металлический черный корпус, пластиковый черный резьбовой колпачек, резиновый конический хвостовик","шт",1.84,128.93616000000003]
["HI-J63MA07","Разъем HICON JACK 6,3 мм угловой 90° (моно), штекер на кабель диаметром до 7,5 мм, позолоченный TIP контакт, контакты под пайку, количество контактов: 2, клеммный кабельный зажим, металлический черный корпус, пластиковый черный резьбовой колпачек, резиновый конический хвостовик на кабель диаметром до 5,0 мм, черный пластиковый кабельный ввод на кабель диаметром до 5,0 мм","шт",3.84,269.08416]
["HI-J63MA14","Разъем HICON JACK 6,3 мм угловой 90° (моно) NOISEFREE (бесшумное подключение), штекер на кабель диаметром до 7,0 мм, монолитный позолоченный TIP контакт, контакты под пайку, количество контактов: 2, клеммный кабельный зажим, металлический черный корпус","шт",4.95,346.86630000000008]
["HI-J63MP","Разъем HICON JACK 6,3 мм (моно) BASIC версия, штекер на кабель диаметром до 7,0 мм, монолитный TIP контакт, никелированные контакты под пайку, количество контактов: 2, 3-х лепестковый пластиковый цанговый кабельный зажим, металлический матово никелированный корпус, пластиковый черный резьбовой колпачек, резиновый конический хвостовик, пластиковое прозрачное кольцо для нанесения индивидуальной маркировки","шт",2.78,194.80571999999998]
["HI-J63MP-B","Разъем HICON JACK 6,3 мм (моно) BASIC версия, штекер на кабель диаметром до 7,0 мм, монолитный TIP контакт, никелированные контакты под пайку, количество контактов: 2, 3-х лепестковый пластиковый цанговый кабельный зажим, металлический черный корпус, пластиковый черный резьбовой колпачек, резиновый конический хвостовик, не проводящая поверхность, пластиковое прозрачное кольцо для нанесения индивидуальной маркировки","шт",2.86,200.41164000000001]
["HI-J63S","Разъем HICON JACK 6,3 мм (стерео) с защитой центрального пина от прокручивания, штекер на кабель диаметром до 7,8 мм, монолитный позолоченный TIP контакт, контакты под пайку, количество контактов: 3, 4-х лепестковый пластиковый цанговый кабельный зажим, металлический матово хромированный корпус, металлический черный резьбовой колпачек, резиновый гофрированный конический хвостовик, пластиковое прозрачное кольцо для нанесения индивидуальной маркировки","шт",4.4800000000000004,313.93152000000009]
["HI-J63S-PH","Разъем HICON JACK 6,3 мм (стерео) PCB версия, гнездо на панель в плату (горизонтальная установка), луженые контакты под пайку, количество контактов: 3, пластиковый черный корпус, пластиковая накидная гайка с контргайкой и шайбой","шт",0.71,49.752540000000003]
["HI-J63S-PHM","Разъем HICON JACK 6,3 мм (стерео) PCB версия, гнездо на панель в плату (горизонтальная установка), луженые контакты под пайку, количество контактов: 3, пластиковый черный корпус, металлическая накидная гайка с контргайкой и шайбой","шт",0.86,60.263640000000002]
["HI-J63S-PVM","Разъем HICON JACK 6,3 мм (стерео) PCB версия, гнездо на панель в плату (вертикальная установка), луженые контакты под пайку, количество контактов: 3, пластиковый черный корпус, металлическая накидная гайка с контргайкой и шайбой","шт",1.08,75.67992000000001]
["HI-J63S01","Разъем HICON JACK 6,3 мм (стерео), штекер на кабель диаметром до 6,0 мм, позолоченный TIP контакт, контакты под пайку, количество контактов: 3, клеммный кабельный зажим, металлический матово хромированный корпус, резиновый конический хвостовик","шт",2.62,183.59388000000004]
["HI-J63S02","Разъем HICON JACK 6,3 мм (стерео), штекер на кабель под пайку, количество контактов: 3, металлический корпус","шт",2.2999999999999998,161.17019999999999]
["HI-J63S03","Разъем HICON JACK 6,3 мм (стерео) PRO версия, штекер на кабель диаметром до 7,8 мм, монолитный TIP контакт, никелированные контакты под пайку, количество контактов: 3, 4-х лепестковый пластиковый цанговый кабельный зажим, металлический черный корпус, металлический черный резьбовой колпачек, резиновый гофрированный конический хвостовик","шт",4.12,288.70488000000006]
["HI-J63S03-G","Разъем HICON JACK 6,3 мм (стерео) PRO версия, штекер на кабель диаметром до 7,8 мм, монолитный TIP контакт, позолоченные контакты под пайку, количество контактов: 3, 4-х лепестковый пластиковый цанговый кабельный зажим, металлический черный корпус, металлический черный резьбовой колпачек, резиновый гофрированный конический хвостовик","шт",4.5999999999999996,322.34039999999999]
["HI-J63S04","Разъем HICON JACK 6,3 мм (стерео) CLASSIC версия, штекер на кабель диаметром до 7,0 мм, монолитный позолоченный TIP контакт, контакты под пайку, количество контактов: 3, клеммный кабельный зажим, металлический черный корпус","шт",3.7,259.27380000000005]
["HI-J63SA04","Разъем HICON JACK 6,3 мм угловой 90° (стерео) CLASSIC версия, штекер на кабель диаметром до 7,0 мм, монолитный позолоченный TIP контакт, контакты под пайку, количество контактов: 3, клеммный кабельный зажим, металлический черный корпус","шт",4.74,332.15076000000005]
["HI-J63SA05","Разъем HICON JACK 6,3 мм угловой 90° (стерео) плоский (\"таблетка\"), штекер на кабель диаметром 4,0 - 6,4 мм, монолитный позолоченный TIP контакт, контакты под пайку, количество контактов: 3, клеммный кабельный зажим, металлический черный корпус, влагоотталкивающая изоляция","шт",2.65,{"$f":"IF(D845=\"По запросу\",D845,D845*$B$6*(1+0.02))","v":185.6961}]
["HI-J63SA06","Разъем HICON JACK 6,3 мм угловой 90° (стерео), штекер на кабель диаметром до 8,0 мм, позолоченный TIP контакт, контакты под пайку, количество контактов: 3, 3-х лепестковый пластиковый цанговый кабельный зажим, металлический черный корпус, пластиковый черный резьбовой колпачек, резиновый конический хвостовик","шт",2.31,161.87094000000002]
["HI-J63SP","Разъем HICON JACK 6,3 мм (стерео) BASIC версия, штекер на кабель диаметром до 7,0 мм, монолитный TIP контакт, никелированные контакты под пайку, количество контактов: 3, 3-х лепестковый пластиковый цанговый кабельный зажим, металлический матово никелированный корпус, пластиковый черный резьбовой колпачек, резиновый конический хвостовик, пластиковое прозрачное кольцо для нанесения индивидуальной маркировки","шт",3.38,236.85012]
["HI-J63SP-B","Разъем HICON JACK 6,3 мм (стерео) BASIC версия, штекер на кабель диаметром до 7,0 мм, монолитный TIP контакт, никелированные контакты под пайку, количество контактов: 3, 3-х лепестковый пластиковый цанговый кабельный зажим, металлический черный корпус, пластиковый черный резьбовой колпачек, резиновый конический хвостовик, не проводящая поверхность, пластиковое прозрачное кольцо для нанесения индивидуальной маркировки","шт",3.42,239.65308000000002]
["HI-J63TC-SM","Разъем HICON JACK 6,3 мм (моно) для быстрого самостоятельного монтажа без пайки на кабель SC-TRICONE XXL (арт. номер: 300-027#), штекер на кабель, монолитный позолоченный TIP контакт,, количество контактов: 2, пластиковый (полиамид, армированный стекловолокном) корпус, выступ для закрутки пина под гаечный ключ 8 мм","шт",3.7,259.27380000000005]
["HI-JC-BL","HICON пластиковое маркировочное кольцо 1/2 стандартной ширины для прямых разъемов JACK 6,3 мм HICON, оснащенных прозрачным кольцом для индивид. маркировки, цвет : синий","шт",0.23,16.117020000000004]
["HI-JC-BL6","HICON пластиковое маркировочное кольцо стандартной ширины для прямых разъемов JACK 6,3 мм HICON, оснащенных прозрачным кольцом для индивид. маркировки, цвет : синий","шт",0.23,16.117020000000004]
["HI-JC-GE","HICON пластиковое маркировочное кольцо 1/2 стандартной ширины для прямых разъемов JACK 6,3 мм HICON, оснащенных прозрачным кольцом для индивид. маркировки, цвет : желтый","шт",0.23,16.117020000000004]
["HI-JC-GN","HICON пластиковое маркировочное кольцо 1/2 стандартной ширины для прямых разъемов JACK 6,3 мм HICON, оснащенных прозрачным кольцом для индивид. маркировки, цвет : зеленый","шт",0.23,16.117020000000004]
["HI-JC-OR","HICON пластиковое маркировочное кольцо 1/2 стандартной ширины для прямых разъемов JACK 6,3 мм HICON, оснащенных прозрачным кольцом для индивид. маркировки, цвет : оранжевый","шт",0.23,16.117020000000004]
["HI-JC-RT","HICON пластиковое маркировочное кольцо 1/2 стандартной ширины для прямых разъемов JACK 6,3 мм HICON, оснащенных прозрачным кольцом для индивид. маркировки, цвет : красный","шт",0.23,16.117020000000004]
["HI-JC-RT6","HICON пластиковое маркировочное кольцо стандартной ширины для прямых разъемов JACK 6,3 мм HICON, оснащенных прозрачным кольцом для индивид. маркировки, цвет : красный","шт",0.23,16.117020000000004]
["HI-JC-SW","HICON пластиковое маркировочное кольцо 1/2 стандартной ширины для прямых разъемов JACK 6,3 мм HICON, оснащенных прозрачным кольцом для индивид. маркировки, цвет : черный","шт",0.23,16.117020000000004]
["HI-JC-SW6","HICON пластиковое маркировочное кольцо стандартной ширины для прямых разъемов JACK 6,3 мм HICON, оснащенных прозрачным кольцом для индивид. маркировки, цвет : черный","шт",0.23,16.117020000000004]
["HI-JC-TR6","HICON пластиковое маркировочное кольцо стандартной ширины для прямых разъемов JACK 6,3 мм HICON, оснащенных прозрачным кольцом для индивид. маркировки, цвет : прозрачный","шт",0.23,16.117020000000004]
["HI-JM3CI-MF","Адаптер HICON MINI JACK (3,5 мм) штекер / RCA гнездо, никелированные контакты, количество контактов: 2/2, металлический никелированный корпус","шт",2.08,145.75392000000002]
["HI-JM6CI-MF","Адаптер HICON JACK 6,3 мм штекер / RCA гнездо, никелированные контакты, количество контактов: 2/2, металлический никелированный корпус","шт",2.83,198.30942000000002]
["HI-JS3JS6-MF","Адаптер HICON MINI JACK 3,5 мм штекер / JACK 6,3 мм гнездо, никелированные контакты, количество контактов: 3/3, металлический никелированный корпус","шт",2.69,188.49906000000001]
["HI-JS6JS3-MF","Адаптер HICON JACK 6,3 мм штекер / MINI JACK 3,5 мм гнездо, никелированные контакты, количество контактов: 3/3, металлический никелированный корпус","шт",3.31,231.94494000000003]
["HI-KS38","HICON резиновый черный хвостовик для разъемов MINI JACK 3,5 мм HI-J35S-SCREW-M и HI-J3563S на кабель диаметром до 3,8 мм","шт",0.34,23.825160000000004]
["HI-LC01","Разъем HICON оптический LC на многомодовое оптоволокно всех классов, штекер на кабель под обжим, пластиковый бежевый корпус","шт",11.91,834.58134000000007]
["HI-LC02","Разъем HICON оптический LC на одномодовое оптоволокно всех классов, штекер на кабель под обжим, пластиковый голубой корпус","шт",13.92,975.43008000000009]
["HI-LK008FP","Разъем HICON LK (круглый) модификация CA-COM, гнездо на панель, количество контактов: 8 (без контактов, контакты заказываются отдельно), металлический черный корпус, байонетное соединение","шт",49.72,3484.0792800000004]
["HI-LK008FV","Разъем HICON LK (круглый) модификация CA-COM, гнездо на кабель, количество контактов: 8 (без контактов, контакты заказываются отдельно), металлический черный корпус, резьба для кабельного ввода M32, с накидной резьбовой гильзой, байонетное соединение","шт",57.6,4036.2624000000005]
["HI-LK008FVR","Разъем HICON LK (круглый) модификация CA-COM, гнездо на кабель, количество контактов: 8 (без контактов, контакты заказываются отдельно), металлический черный корпус, без накидной резьбовой гильзы, байонетное соединение","шт",43.24,3029.9997600000002]
["HI-LK008MP","Разъем HICON LK (круглый) модификация CA-COM, штекер на панель, количество контактов: 8 (без контактов, контакты заказываются отдельно), металлический черный корпус, байонетное соединение","шт",25.43,1781.98182]
["HI-LK008MV","Разъем HICON LK (круглый) модификация CA-COM, штекер на кабель, количество контактов: 8 (без контактов, контакты заказываются отдельно), металлический черный корпус, резьба для кабельного ввода M32, без накидной резьбовой гильзы, байонетное соединение","шт",42.87,3004.0723800000001]
["HI-LK008MVR","Разъем HICON LK (круглый) модификация CA-COM, штекер на кабель, количество контактов: 8 (без контактов, контакты заказываются отдельно), металлический черный корпус, резьба для кабельного ввода M32, с накидной резьбовой гильзой, байонетное соединение","шт",57.49,4028.5542600000003]
["HI-LK013FP","Разъем HICON LK (круглый), гнездо на панель, количество контактов: 13 (без контактов, контакты заказываются отдельно), металлический черный корпус, байонетное соединение","шт",58.81,4121.0519400000003]
["HI-LK013FV","Разъем HICON LK (круглый), гнездо на кабель, количество контактов: 13 (без контактов, контакты заказываются отдельно), металлический черный корпус, байонетное соединение","шт",67.17,4706.8705800000007]
["HI-LK013MP","Разъем HICON LK (круглый), штекер на панель, количество контактов: 13 (без контактов, контакты заказываются отдельно), металлический черный корпус, байонетное соединение","шт",29.97,2100.11778]
["HI-LK013MV","Разъем HICON LK (круглый), штекер на кабель, количество контактов: 13 (без контактов, контакты заказываются отдельно), металлический черный корпус, байонетное соединение","шт",57.84,4053.0801600000004]
["HI-LK025FP","Разъем HICON LK (круглый), гнездо на панель, количество контактов: 25 (без контактов, контакты заказываются отдельно), металлический черный корпус, байонетное соединение","шт",51,3573.7740000000003]
["HI-LK025FV","Разъем HICON LK (круглый), гнездо на кабель, количество контактов: 25 (без контактов, контакты заказываются отдельно), металлический черный корпус, в комплекте кабельный ввод PG16, байонетное соединение","шт",61.52,4310.9524799999999]
["HI-LK025MP","Разъем HICON LK (круглый), штекер на панель, количество контактов: 25 (без контактов, контакты заказываются отдельно), металлический черный корпус, байонетное соединение","шт",20.79,1456.8384599999999]
["HI-LK025MV","Разъем HICON LK (круглый), штекер на кабель, количество контактов: 25 (без контактов, контакты заказываются отдельно), металлический черный корпус, в комплекте кабельный ввод PG16, байонетное соединение","шт",56.41,3952.8743399999998]
["HI-LK037FP","Разъем HICON LK (круглый), гнездо на панель, количество контактов: 37 (без контактов, контакты заказываются отдельно), металлический черный корпус, байонетное соединение","шт",56.75,3976.6995000000006]
["HI-LK037FV","Разъем HICON LK (круглый), гнездо на кабель, количество контактов: 37 (без контактов, контакты заказываются отдельно), металлический черный корпус, в комплекте кабельный ввод PG21, байонетное соединение","шт",72.64,5090.1753600000002]
["HI-LK037MP","Разъем HICON LK (круглый), штекер на панель, количество контактов: 37 (без контактов, контакты заказываются отдельно), металлический черный корпус, байонетное соединение","шт",25.11,1759.5581400000001]
["HI-LK037MV","Разъем HICON LK (круглый), штекер на кабель, количество контактов: 37 (без контактов, контакты заказываются отдельно), металлический черный корпус, в комплекте кабельный ввод PG21, байонетное соединение","шт",65.73,4605.9640200000013]
["HI-LK054FP","Разъем HICON LK (круглый), гнездо на панель, количество контактов: 54 (без контактов, контакты заказываются отдельно), металлический черный корпус, байонетное соединение","шт",73.75,5167.9575000000004]
["HI-LK054FV","Разъем HICON LK (круглый), гнездо на кабель, количество контактов: 54 (без контактов, контакты заказываются отдельно), металлический черный корпус, байонетное соединение","шт",88.45,6198.0453000000007]
["HI-LK054MP","Разъем HICON LK (круглый), штекер на панель, количество контактов: 54 (без контактов, контакты заказываются отдельно), металлический черный корпус, байонетное соединение","шт",32.479999999999997,2276.0035199999998]
["HI-LK054MV","Разъем HICON LK (круглый), штекер на кабель, количество контактов: 54 (без контактов, контакты заказываются отдельно), металлический черный корпус, байонетное соединение","шт",74.849999999999994,5245.0388999999996]
["HI-LK085FP","Разъем HICON LK (круглый), гнездо на панель, количество контактов: 85, металлический черный корпус, байонетное соединение","шт",79.61,5578.5911400000005]
["HI-LK085FV","Разъем HICON LK (круглый), гнездо на кабель, количество контактов: 85, металлический черный корпус, в комплекте кабельный ввод PG29, байонетное соединение","шт",97.39,6824.5068600000004]
["HI-LK085MP","Разъем HICON LK (круглый), штекер на панель, количество контактов: 85, металлический черный корпус, байонетное соединение","шт",36.799999999999997,2578.7231999999999]
["HI-LK085MV","Разъем HICON LK (круглый), штекер на кабель, количество контактов: 85, металлический черный корпус, в комплекте кабельный ввод PG29, байонетное соединение","шт",80.760000000000005,5659.1762400000007]
["HI-LK150FP","Разъем HICON LK (круглый), гнездо на панель, количество контактов: 150 (без контактов, контакты заказываются отдельно), металлический черный корпус, байонетное соединение","шт",78.790000000000006,5521.1304600000003]
["HI-LK150FV","Разъем HICON LK (круглый), гнездо на кабель, количество контактов: 150 (без контактов, контакты заказываются отдельно), металлический черный корпус, в комплекте кабельный ввод PG29, байонетное соединение","шт",97.41,6825.90834]
["HI-LK150MP","Разъем HICON LK (круглый), штекер на панель, количество контактов: 150 (без контактов, контакты заказываются отдельно), металлический черный корпус, байонетное соединение","шт",36.76,2575.9202399999999]
["HI-LK150MV","Разъем HICON LK (круглый), штекер на кабель, количество контактов: 150 (без контактов, контакты заказываются отдельно), металлический черный корпус, в комплекте кабельный ввод PG29, байонетное соединение","шт",83.68,5863.7923200000005]
["HI-LKBODY-PG36","HICON PG36 корпус металлический черный для LK разъема, размер: 40","шт",49.35,3458.1519000000003]
["HI-LKCAP-F25","HICON гнездовая защитная крышка металлическая черная для 25-контактного LK разъема байонетное соединение","шт",31.12,2180.7028799999998]
["HI-LKCAP-F37","HICON гнездовая защитная крышка металлическая черная для 37-контактного LK разъема байонетное соединение","шт",33.270000000000003,2331.3619800000006]
["HI-LKCAP-F85","HICON гнездовая защитная крышка металлическая черная для 85-контактного LK разъема байонетное соединение","шт",43.68,3060.8323200000004]
["HI-LKCAP-M25","HICON штекерная защитная крышка металлическая черная для 25-контактного LK разъема байонетное соединение","шт",30.04,2105.0229600000002]
["HI-LKCAP-M37","HICON штекерная защитная крышка металлическая черная для 37-контактного LK разъема байонетное соединение","шт",38.28,2682.4327200000002]
["HI-LKCAP-M85","HICON штекерная защитная крышка металлическая черная для 85-контактного LK разъема байонетное соединение","шт",38.369999999999997,2688.73938]
["HI-LKPIN-F12GL","HICON позолоченный гнездовой контакт под обжим для 8-контактного CA-COM (арт. номер: HI-LK008F#) разъема на проводник сечением 2,5 - 4,0 мм²","шт",3.25,227.7405]
["HI-LKPIN-F12S","HICON посеребренный гнездовой контакт под обжим для 8-контактного CA-COM (арт. номер: HI-LK008F#) разъема на проводник сечением 1,5 - 2,5 мм²","шт",1.45,101.6073]
["HI-LKPIN-F16G","HICON позолоченный гнездовой контакт под обжим для 25-/37-/85-контактного LK разъема на проводник сечением 1,0 - 1,5 мм²","шт",1.53,107.21322000000001]
["HI-LKPIN-F16GS","HICON позолоченный гнездовой контакт под обжим для 25-/37-/85-контактного LK разъема на проводник сечением 0,15 - 0,6 мм²","шт",1.55,108.61470000000001]
["HI-LKPIN-F16S","HICON посеребренный гнездовой контакт под обжим для 25-/37-/85-контактного LK разъема на проводник сечением 0,15 - 0,6 мм²","шт",1.24,86.891760000000005]
["HI-LKPIN-F18G","HICON позолоченный гнездовой контакт под обжим для 100-/150-контактного LK разъема на проводник сечением 0,15 - 0,6 мм²","шт",1.95,{"$f":"IF(D909=\"По запросу\",D909,D909*$B$6*(1+0.02))","v":136.64430000000002}]
["HI-LKPIN-M12GL","HICON позолоченный штекерный контакт под обжим для 8-контактного CA-COM (арт. номер: HI-LK008M#) разъема на проводник сечением 2,5 - 4,0 мм²","шт",2.37,166.07538000000002]
["HI-LKPIN-M12S","HICON посеребренный штекерный контакт под обжим для 8-контактного CA-COM (арт. номер: HI-LK008M#) разъема на проводник сечением 1,5 - 2,5 мм²","шт",0.77,53.956980000000001]
["HI-LKPIN-M16G","HICON позолоченный штекерный контакт под обжим для 25-/37-/85-контактного LK разъема на проводник сечением 1,0 - 1,5 мм²","шт",0.83,58.16142]
["HI-LKPIN-M16GS","HICON позолоченный штекерный контакт под обжим для 25-/37-/85-контактного LK разъема на проводник сечением 0,15 - 0,6 мм²","шт",0.83,58.16142]
["HI-LKPIN-M16S","HICON посеребренный штекерный контакт под обжим для 25-/37-/85-контактного LK разъема на проводник сечением 0,15 - 0,6 мм²","шт",0.61,42.745140000000006]
["HI-LKPIN-M18G","HICON позолоченный штекерный контакт под обжим для 100-/150-контактного LK разъема на проводник сечением 0,15 - 0,6 мм²","шт",0.84,58.862160000000003]
["HI-LKPING-16","HICON вспомогательный металлический штыревой инструмент для установки гнездовых контактов 16 размера в разъемы LK HICON","шт",5.36,375.59664000000004]
["HI-RC-BL","HICON маркировочный резиновый конический хвостовик для защитных металлических корпусов в формате XLR для разъемов RJ45 (HI-RJ45-HD и HI-C6XL-HD), цвет : синий","шт",1.05,73.577700000000007]
["HI-RC-GE","HICON маркировочный резиновый конический хвостовик для защитных металлических корпусов в формате XLR для разъемов RJ45 (HI-RJ45-HD и HI-C6XL-HD), цвет : желтый","шт",1.05,73.577700000000007]
["HI-RC-GN","HICON маркировочный резиновый конический хвостовик для защитных металлических корпусов в формате XLR для разъемов RJ45 (HI-RJ45-HD и HI-C6XL-HD), цвет : зеленый","шт",1.05,73.577700000000007]
["HI-RC-GR","HICON маркировочный резиновый конический хвостовик для защитных металлических корпусов в формате XLR для разъемов RJ45 (HI-RJ45-HD и HI-C6XL-HD), цвет : серый","шт",1.05,73.577700000000007]
["HI-RC-RT","HICON маркировочный резиновый конический хвостовик для защитных металлических корпусов в формате XLR для разъемов RJ45 (HI-RJ45-HD и HI-C6XL-HD), цвет : красный","шт",1.05,73.577700000000007]
["HI-RJ45-HD","HICON защитный металлический черный кожух в формате XLR для стандартных сетевых разъемов RJ45","шт",3.48,243.85752000000002]
["HI-SCART-M","Разъем HICON SCART, штекер на кабель диаметром 6,5 - 11,0 мм, позолоченные контакты, количество контактов: 21, металлический черный корпус","шт",14.14,990.84636000000012]
["HI-SCSVCI","Адаптер HICON SCART штекер / 1 x S-VHS гнездо + 3 x RCA гнездо, позолоченные контакты, количество контактов: 21, металлический серый корпус, с переключателем вход/выход","шт",21.92,1536.0220800000002]
["HI-SOCA19-FP","Разъем HICON LK (круглый) модификация HI-SOCA, гнездо на панель, количество контактов: 19 (без контактов, контакты заказываются отдельно), металлический черный корпус, резьбовое соединение, совместим с разъемами SOCAPEX 419","шт",24.43,1711.9078200000001]
["HI-SOCA19-FV","Разъем HICON LK (круглый) модификация HI-SOCA, гнездо на кабель, количество контактов: 19 (без контактов, контакты заказываются отдельно), металлический черный корпус, резьба для кабельного ввода M40, резьбовое соединение, совместим с разъемами SOCAPEX 419","шт",47.32,3315.9016799999999]
["HI-SOCA19-FV-SP","Разъем HICON LK (круглый) модификация HI-SOCA, гнездо на кабель, количество контактов: 19 (без контактов, контакты заказываются отдельно), металлический черный корпус, резьба для кабельного ввода M40, специальная маркировка контактных отверстий под распайку акустических систем, резьбовое соединение, совместим с разъемами SOCAPEX 419","шт",48.56,3402.7934400000004]
["HI-SOCA19-MP","Разъем HICON LK (круглый) модификация HI-SOCA, штекер на панель, количество контактов: 19 (без контактов, контакты заказываются отдельно), металлический черный корпус, резьбовое соединение, совместим с разъемами SOCAPEX 419","шт",32.159999999999997,2253.5798399999999]
["HI-SOCA19-MV","Разъем HICON LK (круглый) модификация HI-SOCA, штекер на кабель, количество контактов: 19 (без контактов, контакты заказываются отдельно), металлический черный корпус, резьба для кабельного ввода M40, резьбовое соединение, совместим с разъемами SOCAPEX 419","шт",56.84,3983.0061600000004]
["HI-SOCA19-MV-SP","Разъем HICON LK (круглый) модификация HI-SOCA, штекер на кабель, количество контактов: 19 (без контактов, контакты заказываются отдельно), металлический черный корпус, резьба для кабельного ввода M40, специальная маркировка контактных отверстий под распайку акустических систем, резьбовое соединение, совместим с разъемами SOCAPEX 419","шт",58.12,4072.7008800000003]
["HI-SOCAPIN-FGL","HICON позолоченный гнездовой контакт под обжим для 19-контактного HI-SOCA (арт. номер: HI-SOCA19F#) разъема на проводник сечением 2,5 - 4,0 мм²","шт",2.4900000000000002,174.48426000000001]
["HI-SOCAPIN-FIL","HICON пластиковая заглушка для неиспользуемых контактных отверстий для 19-контактного разъема HI-SOCA (арт. номер: HI-SOCA19#)","шт",0.56000000000000005,39.241440000000011]
["HI-SOCAPIN-FS","HICON посеребренный гнездовой контакт под обжим для 19-контактного HI-SOCA (арт. номер: HI-SOCA19F#) разъема на проводник сечением 1,5 - 2,5 мм²","шт",1.36,95.300640000000016]
["HI-SOCAPIN-MGL","HICON позолоченный штекерный контакт под обжим для 19-контактного HI-SOCA (арт. номер: HI-SOCA19M#) разъема на проводник сечением 2,5 - 4,0 мм²","шт",1.55,108.61470000000001]
["HI-SOCAPIN-MS","HICON посеребренный штекерный контакт под обжим для 19-контактного HI-SOCA (арт. номер: HI-SOCA19M#) разъема на проводник сечением 1,5 - 2,5 мм²","шт",0.84,58.862160000000003]
["HI-SVCM02","Разъем HICON S-VHS, штекер на кабель диаметром до 8,2 мм, позолоченные контакты под пайку, количество контактов: 4, клеммный кабельный зажим, металлический серый лакированный корпус, диэлектрик PTFE","шт",4.9000000000000004,343.36260000000004]
["HI-TL01","Разъем HICON TOSLINK Screw & Play (для самостоятельного монтажа), штекер на кабель диаметром до 8,0 мм, металлический черный корпус, рекомендуемый кабель: SC-OCTOPUS / арт. номер: 590-0092","шт",8.4499999999999993,592.12530000000004]
["HI-UC-BL","HICON набор цветных эластичных силиконовых маркировочных колец для разъемов HICON с гофрированым хвостовиком, 10 шт., цвет : синий","набор",1.01,70.774740000000008]
["HI-UC-GE","HICON набор цветных эластичных силиконовых маркировочных колец для разъемов HICON с гофрированым хвостовиком, 10 шт., цвет : желтый","набор",1.01,70.774740000000008]
["HI-UC-GN","HICON набор цветных эластичных силиконовых маркировочных колец для разъемов HICON с гофрированым хвостовиком, 10 шт., цвет : зеленый","набор",1.01,70.774740000000008]
["HI-UC-RT","HICON набор цветных эластичных силиконовых маркировочных колец для разъемов HICON с гофрированым хвостовиком, 10 шт., цвет : красный","набор",1.06,74.278440000000003]
["HI-UC-WS","HICON набор цветных эластичных силиконовых маркировочных колец для разъемов HICON с гофрированым хвостовиком, 10 шт., цвет : белый","набор",1.01,70.774740000000008]
["HI-WLC-SET","HICON профессиональный набор инструментов в чемоданчике для монтажа оптических разъемов","шт","По запросу","По запросу"]
["HI-X3AF","Разъем HICON XLR3 для горизонтальной установки, гнездо на панель, позолоченные контакты под пайку, количество контактов: 3, пластиковый черный корпус, тип А","шт",1.49,104.41026000000001]
["HI-X3AF-PV","Разъем HICON XLR3 с пружинным механизмом фиксации, гнездо на панель, позолоченные контакты под пайку, количество контактов: 3, пластиковый черный корпус, тип А, PCB версия","шт",1.01,70.774740000000008]
["HI-X3AM","Разъем HICON XLR3 для горизонтальной установки, штекер на панель, позолоченные контакты под пайку, количество контактов: 3, пластиковый черный корпус, тип А","шт",1.48,103.70952]
["HI-X3AM-PV","Разъем HICON XLR3 для вертикальной установки, штекер на панель, позолоченные контакты под пайку, количество контактов: 3, пластиковый черный корпус, тип А, PCB версия","шт",0.99,69.373260000000002]
["HI-X3CF","Разъем HICON XLR3, штекер на кабель диаметром 4,0 - 8,5 мм, посеребренные контакты, количество контактов: 3, 6-и лепестковый пластиковый цанговый кабельный зажим, металлический матово серебряный корпус, пластиковый черный резьбовой колпачек, резиновый гофрированный конический хвостовик","шт",2.77,194.10498000000001]
["HI-X3CF-B","Разъем HICON XLR3, гнездо на кабель диаметром 4,0 - 8,5 мм, посеребренные контакты под пайку, количество контактов: 3, 6-и лепестковый пластиковый цанговый кабельный зажим, металлический черный корпус, пластиковый черный резьбовой колпачек, резиновый гофрированный конический хвостовик","шт",2.95,206.71830000000003]
["HI-X3CF-BLK","Разъем HICON XLR3, гнездо на кабель диаметром 3,5 - 7,0 мм, посеребренные контакты под пайку, количество контактов: 3, 3-х лепестковый пластиковый цанговый кабельный зажим, металлический черный корпус, пластиковый черный резьбовой колпачек, резиновый конический хвостовик","шт",2.31,161.87094000000002]
["HI-X3CF-G","Разъем HICON XLR3, гнездо на кабель диаметром 4,0 - 8,5 мм, позолоченные контакты, количество контактов: 3, 6-и лепестковый пластиковый цанговый кабельный зажим, металлический черный корпус, металлический черный резьбовой колпачек, резиновый гофрированный конический хвостовик, в комплекте - дополнительный пластиковый цанговый зажим HI-XSR40 на кабель диаметром 2,0 - 5,0 мм","шт",3.77,264.17898000000002]
["HI-X3CF-HD","Разъем HICON XLR3 пыленепроницаемый и водостойкий (IP67), гнездо на кабель диаметром 4,6 - 6,5 мм, посеребренные контакты под пайку, количество контактов: 3, стандартный пластиковый цанговый кабельный зажим, металлический матово никелированный корпус, металлический никелированный резьбовой колпачек, резиновый конический хвостовик","шт",4.2699999999999996,299.21598]
["HI-X3CF-HD-B","Разъем HICON XLR3 пыленепроницаемый и водостойкий (IP67), гнездо на кабель диаметром 4,6 - 6,5 мм, позолоченные контакты под пайку, количество контактов: 3, стандартный пластиковый цанговый кабельный зажим, металлический черный корпус, металлический черный резьбовой колпачек, резиновый конический хвостовик","шт",4.7,329.34780000000006]
["HI-X3CF-M","Разъем HICON XLR3, гнездо на кабель диаметром 4,0 - 8,5 мм, посеребренные контакты под пайку, количество контактов: 3, 6-и лепестковый пластиковый цанговый кабельный зажим, металлический черный корпус, металлический черный резьбовой колпачек, резиновый гофрированный конический хвостовик","шт",3.42,239.65308000000002]
["HI-X3CF-V","Разъем HICON XLR3, гнездо на кабель диаметром 3,5 - 7,0 мм, посеребренные контакты под пайку, количество контактов: 3, 3-х лепестковый пластиковый цанговый кабельный зажим, металлический никелированный корпус, пластиковый черный резьбовой колпачек, резиновый конический хвостовик","шт",2.31,161.87094000000002]
["HI-X3CI-FF","Адаптер HICON XLR3 гнездо / RCA гнездо, никелированные контакты, количество контактов: 3/2, металлический черный корпус","шт",5.27,369.28997999999996]
["HI-X3CI-MF","Адаптер HICON XLR3 штекер / RCA гнездо, никелированные контакты, количество контактов: 3/2, металлический черный корпус","шт",5.22,365.78627999999998]
["HI-X3CM","Разъем HICON XLR3, штекер на кабель диаметром 4,0 - 8,5 мм, посеребренные контакты под пайку, количество контактов: 3, 6-и лепестковый пластиковый цанговый кабельный зажим, металлический матово серебряный корпус, пластиковый черный резьбовой колпачек, резиновый гофрированный конический хвостовик","шт",2.39,167.47686000000002]
["HI-X3CM-B","Разъем HICON XLR3, штекер на кабель диаметром 4,0 - 8,5 мм, посеребренные контакты под пайку, количество контактов: 3, 6-и лепестковый пластиковый цанговый кабельный зажим, металлический черный корпус, пластиковый черный резьбовой колпачек, резиновый гофрированный конический хвостовик","шт",2.5099999999999998,175.88574]
["HI-X3CM-BLK","Разъем HICON XLR3, штекер на кабель диаметром 3,5 - 7,0 мм, посеребренные контакты под пайку, количество контактов: 3, 3-х лепестковый пластиковый цанговый кабельный зажим, металлический черный корпус, пластиковый черный резьбовой колпачек, резиновый конический хвостовик","шт",2.0299999999999998,142.25021999999998]
["HI-X3CM-G","Разъем HICON XLR3, штекер на кабель диаметром 4,0 - 8,5 мм, позолоченные контакты под пайку, количество контактов: 3, 6-и лепестковый пластиковый цанговый кабельный зажим, металлический черный корпус, металлический черный резьбовой колпачек, резиновый гофрированный конический хвостовик, в комплекте - дополнительный пластиковый цанговый зажим HI-XSR40 на кабель диаметром 2,0 - 5,0 мм","шт",3.49,244.55826000000005]
["HI-X3CM-HD","Разъем HICON XLR3 пыленепроницаемый и водостойкий (IP67), штекер на кабель диаметром 4,6 - 6,5 мм, посеребренные контакты под пайку, количество контактов: 3, стандартный пластиковый цанговый кабельный зажим, металлический матово хромированный корпус, металлический никелированный резьбовой колпачек, резиновый конический хвостовик","шт",3.82,267.68268]
["HI-X3CM-HD-B","Разъем HICON XLR3 пыленепроницаемый и водостойкий (IP67), штекер на кабель диаметром 4,6 - 6,5 мм, позолоченные контакты под пайку, количество контактов: 3, стандартный пластиковый цанговый кабельный зажим, металлический черный корпус, металлический черный резьбовой колпачек, резиновый конический хвостовик","шт",4.25,297.81450000000001]
["HI-X3CM-M","Разъем HICON XLR3, штекер на кабель диаметром 4,0 - 8,5 мм, посеребренные контакты под пайку, количество контактов: 3, 6-и лепестковый пластиковый цанговый кабельный зажим, металлический черный корпус, металлический черный резьбовой колпачек, резиновый гофрированный конический хвостовик","шт",3.03,212.32422]
["HI-X3CM-V","Разъем HICON XLR3, штекер на кабель диаметром 3,5 - 7,0 мм, посеребренные контакты под пайку, количество контактов: 3, 3-х лепестковый пластиковый цанговый кабельный зажим, металлический никелированный корпус, пластиковый черный резьбовой колпачек, резиновый конический хвостовик","шт",2.04,142.95096000000001]
["HI-X3DF","Разъем HICON XLR3 с пружинным механизмом фиксации, гнездо на панель, никелированные контакты под пайку, количество контактов: 3, металлический никелированный корпус, фланец D-типа","шт",2.48,173.78352000000001]
["HI-X3DF-G","Разъем HICON XLR3 с пружинным механизмом фиксации, гнездо на панель, позолоченные контакты под пайку, количество контактов: 3, металлический черный корпус, фланец D-типа","шт",2.83,198.30942000000002]
["HI-X3DF-G-M3","Разъем HICON XLR3 с пружинным механизмом фиксации, гнездо на панель, позолоченные контакты под пайку, количество контактов: 3, металлический черный корпус, фланец D-типа, крепежные отверстия с резьбой M3","шт",3.17,222.13458]
["HI-X3DF-HD-B","Разъем HICON XLR3 пылезащищенный и водостойкий (IP54), гнездо на панель, позолоченные контакты под пайку, количество контактов: 3, металлический черный корпус, фланец D-типа","шт",4.3899999999999997,307.62486000000001]
["HI-X3DF-M","Разъем HICON XLR3 с пружинным механизмом фиксации, гнездо на панель, посеребренные контакты под пайку, количество контактов: 3, металлический черный корпус, фланец D-типа","шт",2.61,182.89313999999999]
["HI-X3DF-M3","Разъем HICON XLR3 с пружинным механизмом фиксации, гнездо на панель, посеребренные контакты под пайку, количество контактов: 3, металлический черный корпус, фланец D-типа, крепежные отверстия с резьбой M3","шт",2.81,196.90794000000002]
["HI-X3DF-P","Разъем HICON XLR3, гнездо на панель, посеребренные контакты под пайку, количество контактов: 3, пластиковый черный корпус, фланец D-типа","шт",1.62,113.51988000000001]
["HI-X3DM","Разъем HICON XLR3, штекер на панель, никелированные контакты под пайку, количество контактов: 3, металлический никелированный корпус, фланец D-типа","шт",1.99,{"$f":"IF(D973=\"По запросу\",D973,D973*$B$6*(1+0.02))","v":139.44726}]
["HI-X3DM-G","Разъем HICON XLR3, штекер на панель, позолоченные контакты под пайку, количество контактов: 3, металлический черный корпус, фланец D-типа","шт",2.36,165.37464]
["HI-X3DM-G-M3","Разъем HICON XLR3, штекер на панель, позолоченные контакты под пайку, количество контактов: 3, металлический черный корпус, фланец D-типа, крепежные отверстия с резьбой M3","шт",2.65,185.6961]
["HI-X3DM-HD-B","Разъем HICON XLR3 пыленепроницаемый и водостойкий (IP67), штекер на панель, позолоченные контакты под пайку, количество контактов: 3, металлический черный корпус, фланец D-типа","шт",4.78,334.95372000000003]
["HI-X3DM-M","Разъем HICON XLR3, штекер на панель, посеребренные контакты под пайку, количество контактов: 3, металлический черный корпус, фланец D-типа","шт",2.25,157.66650000000001]
["HI-X3DM-M3","Разъем HICON XLR3, штекер на панель, посеребренные контакты под пайку, количество контактов: 3, металлический черный корпус, фланец D-типа, крепежные отверстия с резьбой M3","шт",2.48,173.78352000000001]
["HI-X3DM-P","Разъем HICON XLR3, штекер на панель, посеребренные контакты под пайку, количество контактов: 3, пластиковый черный корпус, фланец D-типа","шт",1.57,110.01618000000001]
["HI-X3FT","Адаптер HICON XLR3 DMX терминатор 120 Ом, гнездо на кабель, никелированные контакты под пайку, количество контактов: 3, металлический черный корпус, пластиковый черный резьбовой колпачек, резиновый гофрированный конический хвостовик","шт",10.95,767.31029999999998]
["HI-X3MT","Адаптер HICON XLR3 DMX терминатор 120 Ом, штекер на кабель, никелированные контакты под пайку, количество контактов: 3, металлический черный корпус, пластиковый черный резьбовой колпачек, резиновый гофрированный конический хвостовик","шт",10.95,767.31029999999998]
["HI-X3MX3-FM","Адаптер HICON XLR3 гнездо / MINI XLR3 штекер, никелированные контакты, количество контактов: 3/3, металлический черный корпус","шт",6.13,429.55362000000002]
["HI-X3MX3-MM","Адаптер HICON XLR3 штекер / MINI XLR3 штекер, никелированные контакты, количество контактов: 3/3, металлический черный корпус","шт",6.04,423.24696000000006]
["HI-X3RF-M","Разъем HICON XLR3 угловой 90°, гнездо на кабель диаметром 6,0 - 8,0 мм, посеребренные контакты под пайку, количество контактов: 3, металлический черный корпус, резиновый конический хвостовик","шт",5.23,366.48702000000003]
["HI-X3RM-M","Разъем HICON XLR3 угловой 90°, штекер на кабель диаметром 6,0 - 8,0 мм, посеребренные контакты под пайку, количество контактов: 3, металлический черный корпус, резиновый конический хвостовик","шт",4.84,339.15816000000001]
["HI-X3X3-20-200","Адаптер HICON XLR3 штекер / XLR3 гнездо с демпфером -20 дБ при импендансе 200 Ом, никелированные контакты, количество контактов: 3/3, металлический черный корпус","шт",30.55,2140.7607000000003]
["HI-X3X3-FF","Адаптер HICON XLR3 гнездо / XLR3 гнездо, никелированные контакты, количество контактов: 3/3, металлический черный корпус","шт",5.9,413.43660000000006]
["HI-X3X3-FM","Адаптер HICON XLR3 гнездо / XLR3 штекер, никелированные контакты, количество контактов: 3/3, металлический черный корпус","шт",5.48,384.00552000000005]
["HI-X3X3-MM","Адаптер HICON XLR3 штекер / XLR3 штекер, никелированные контакты, количество контактов: 3/3, металлический черный корпус","шт",5.35,374.89590000000004]
["HI-X3X5-FM","Адаптер HICON XLR3 гнездо / XLR5 штекер, никелированные контакты, количество контактов: 3/5, металлический черный корпус","шт",6,420.44400000000007]
["HI-X3X5-MF","Адаптер HICON XLR3 штекер / XLR5 гнездо, никелированные контакты, количество контактов: 3/5, металлический черный корпус","шт",6,420.44400000000007]
["HI-X4CF-G","Разъем HICON XLR4, гнездо на кабель диаметром 4,0 - 8,5 мм, позолоченные контакты под пайку, количество контактов: 4, 6-и лепестковый пластиковый цанговый кабельный зажим, металлический черный корпус, металлический черный резьбовой колпачек, резиновый гофрированный конический хвостовик","шт",4.05,283.79970000000003]
["HI-X4CM-G","Разъем HICON XLR4, штекер на кабель диаметром 4,0 - 8,5 мм, позолоченные контакты под пайку, количество контактов: 4, 6-и лепестковый пластиковый цанговый кабельный зажим, металлический черный корпус, металлический черный резьбовой колпачек, резиновый гофрированный конический хвостовик","шт",3.77,264.17898000000002]
["HI-X4DF-G","Разъем HICON XLR4 с пружинным механизмом фиксации, гнездо на панель, позолоченные контакты под пайку, количество контактов: 4, металлический черный корпус, фланец D-типа","шт",3.32,232.64568]
["HI-X4DM-G","Разъем HICON XLR4, штекер на панель, позолоченные контакты под пайку, количество контактов: 4, металлический черный корпус, фланец D-типа","шт",3.19,223.53605999999999]
["HI-X5CF-B","Разъем HICON XLR5, гнездо на кабель диаметром 4,0 - 8,5 мм, посеребренные контакты под пайку, количество контактов: 5, 6-и лепестковый пластиковый цанговый кабельный зажим, металлический черный корпус, пластиковый черный резьбовой колпачек, резиновый гофрированный конический хвостовик","шт",3.29,230.54346000000004]
["HI-X5CF-G","Разъем HICON XLR5, гнездо на кабель диаметром 4,0 - 8,5 мм, позолоченные контакты под пайку, количество контактов: 5, 6-и лепестковый пластиковый цанговый кабельный зажим, металлический черный корпус, металлический черный резьбовой колпачек, резиновый гофрированный конический хвостовик","шт",4.12,288.70488000000006]
["HI-X5CF-HD","Разъем HICON XLR5 пыленепроницаемый и водостойкий (IP67), гнездо на кабель диаметром 4,6 - 6,5 мм, посеребренные контакты под пайку, количество контактов: 5, стандартный пластиковый цанговый кабельный зажим, металлический матово никелированный корпус, металлический никелированный резьбовой колпачек, резиновый конический хвостовик","шт",6.03,422.54622000000001]
["HI-X5CF-HD-B","Разъем HICON XLR5 пыленепроницаемый и водостойкий (IP67), гнездо на кабель диаметром 4,6 - 6,5 мм, позолоченные контакты под пайку, количество контактов: 5, стандартный пластиковый цанговый кабельный зажим, металлический черный корпус, металлический черный резьбовой колпачек, резиновый конический хвостовик","шт",6.61,463.18914000000001]
["HI-X5CF-M","Разъем HICON XLR5, гнездо на кабель диаметром 4,0 - 8,5 мм, посеребренные контакты под пайку, количество контактов: 5, 6-и лепестковый пластиковый цанговый кабельный зажим, металлический черный корпус, металлический черный резьбовой колпачек, резиновый гофрированный конический хвостовик","шт",3.94,276.09156000000002]
["HI-X5CM-B","Разъем HICON XLR5, штекер на кабель диаметром 4,0 - 8,5 мм, посеребренные контакты под пайку, количество контактов: 5, 6-и лепестковый пластиковый цанговый кабельный зажим, металлический черный корпус, пластиковый черный резьбовой колпачек, резиновый гофрированный конический хвостовик","шт",3,210.22200000000004]
["HI-X5CM-G","Разъем HICON XLR5, штекер на кабель диаметром 4,0 - 8,5 мм, позолоченные контакты под пайку, количество контактов: 5, 6-и лепестковый пластиковый цанговый кабельный зажим, металлический черный корпус, металлический черный резьбовой колпачек, резиновый гофрированный конический хвостовик","шт",3.87,271.18638000000004]
["HI-X5CM-HD","Разъем HICON XLR5 пыленепроницаемый и водостойкий (IP67), штекер на кабель диаметром 4,6 - 6,5 мм, посеребренные контакты под пайку, количество контактов: 5, стандартный пластиковый цанговый кабельный зажим, металлический матово никелированный корпус, металлический никелированный резьбовой колпачек, резиновый конический хвостовик","шт",4.96,347.56704000000002]
["HI-X5CM-HD-B","Разъем HICON XLR5 пыленепроницаемый и водостойкий (IP67), штекер на кабель диаметром 4,6 - 6,5 мм, позолоченные контакты под пайку, количество контактов: 5, стандартный пластиковый цанговый кабельный зажим, металлический черный корпус, металлический черный резьбовой колпачек, резиновый конический хвостовик","шт",5.38,376.99812000000003]
["HI-X5CM-M","Разъем HICON XLR5, штекер на кабель диаметром 4,0 - 8,5 мм, посеребренные контакты под пайку, количество контактов: 5, 6-и лепестковый пластиковый цанговый кабельный зажим, металлический черный корпус, металлический черный резьбовой колпачек, резиновый гофрированный конический хвостовик","шт",3.75,262.77750000000003]
["HI-X5DF-G","Разъем HICON XLR5 с пружинным механизмом фиксации, гнездо на панель, позолоченные контакты под пайку, количество контактов: 5, металлический черный корпус, фланец D-типа","шт",3.36,235.44864000000001]
["HI-X5DF-M","Разъем HICON XLR5 с пружинным механизмом фиксации, гнездо на панель, посеребренные контакты под пайку, количество контактов: 5, металлический черный корпус, фланец D-типа","шт",3.32,232.64568]
["HI-X5DF-M3","Разъем HICON XLR5 с пружинным механизмом фиксации, гнездо на панель, позолоченные контакты под пайку, количество контактов: 5, металлический черный корпус, фланец D-типа","шт",3.42,239.65308000000002]
["HI-X5DM-G","Разъем HICON XLR5, штекер на панель, позолоченные контакты под пайку, количество контактов: 5, металлический черный корпус, фланец D-типа","шт",3.18,222.83532000000002]
["HI-X5DM-M","Разъем HICON XLR5, штекер на панель, посеребренные контакты под пайку, количество контактов: 5, металлический черный корпус, фланец D-типа","шт",2.71,189.90054000000001]
["HI-X5DM-M3","Разъем HICON XLR5, штекер на панель, позолоченные контакты под пайку, количество контактов: 5, металлический черный корпус, фланец D-типа, крепежные отверстия с резьбой M3","шт",3.12,218.63088000000002]
["HI-X5FT","Адаптер HICON XLR5 DMX терминатор 120 Ом на кабель, никелированные контакты под пайку, количество контактов: 5, металлический черный корпус, пластиковый черный резьбовой колпачек, резиновый гофрированный конический хвостовик","шт",13.56,950.20344000000011]
["HI-X5MT","Адаптер HICON XLR5 DMX терминатор 120 Ом на кабель, никелированные контакты под пайку, количество контактов: 5, металлический черный корпус, пластиковый черный резьбовой колпачек, резиновый гофрированный конический хвостовик","шт",13.3,931.9842000000001]
["HI-XC-00-WS","HICON набор пластиковых маркировочных колец с номером \"0\" для XLR разъемов HICON, защита от прокручивания, 1/2 стандартной ширины, 10 шт., цвет : белый","набор",2.3199999999999998,162.57167999999999]
["HI-XC-05-RT","HICON набор пластиковых маркиров. колец с номером \"0\" (5 шт.) и номером \"1\" (5 шт.) для XLR разъемов HICON, защита от прокручивания, 1/2 стандартной ширины, цвет : красный","набор",2.3199999999999998,162.57167999999999]
["HI-XC-09-RT","HICON набор пластиковых маркировочных колец с номерами от \"0\" до \"9\" для XLR разъемов HICON, защита от прокручивания, 1/2 стандартной ширины, 10 шт., цвет : красный","набор",2.3199999999999998,162.57167999999999]
["HI-XC-09-WS","HICON набор пластиковых маркировочных колец с номерами от \"0\" до \"9\" для XLR разъемов HICON, защита от прокручивания, 1/2 стандартной ширины, 10 шт., цвет : белый","набор",2.3199999999999998,162.57167999999999]
["HI-XC-10-WS","HICON набор пластиковых маркировочных колец с номером \"1\" для XLR разъемов HICON, защита от прокручивания, 1/2 стандартной ширины, 10 шт., цвет : белый","набор",2.3199999999999998,162.57167999999999]
["HI-XC-20-WS","HICON набор пластиковых маркировочных колец с номером \"2\" для XLR разъемов HICON, защита от прокручивания, 1/2 стандартной ширины, 10 шт., цвет : белый","набор",2.3199999999999998,162.57167999999999]
["HI-XC-30-WS","HICON набор пластиковых маркировочных колец с номером \"3\" для XLR разъемов HICON, защита от прокручивания, 1/2 стандартной ширины, 10 шт., цвет : белый","набор",2.3199999999999998,162.57167999999999]
["HI-XC-40-WS","HICON набор пластиковых маркировочных колец с номером \"4\" для XLR разъемов HICON, защита от прокручивания, 1/2 стандартной ширины, 10 шт., цвет : белый","набор",2.3199999999999998,162.57167999999999]
["HI-XC-BL","HICON маркировочное пластиковое кольцо для XLR разъемов HICON, цвет : синий","шт",0.23,16.117020000000004]
["HI-XC-BR","HICON маркировочное пластиковое кольцо для XLR разъемов HICON, цвет : коричневый","шт",0.23,16.117020000000004]
["HI-XC-CAP-P","HICON защитный металлический колпачек для всех XLR разъемов HICON","шт","По запросу","По запросу"]
["HI-XC-GE","HICON маркировочное пластиковое кольцо для XLR разъемов HICON, цвет : желтый","шт",0.23,16.117020000000004]
["HI-XC-GN","HICON маркировочное пластиковое кольцо для XLR разъемов HICON, цвет : зеленый","шт",0.23,16.117020000000004]
["HI-XC-GR","HICON маркировочное пластиковое кольцо для XLR разъемов HICON, цвет : серый","шт",0.23,16.117020000000004]
["HI-XC-OR","HICON маркировочное пластиковое кольцо для XLR разъемов HICON, цвет : оранжевый","шт",0.23,16.117020000000004]
["HI-XC-RT","HICON маркировочное пластиковое кольцо для XLR разъемов HICON, цвет : красный","шт",0.23,16.117020000000004]
["HI-XC-SW","HICON маркировочное пластиковое кольцо для XLR разъемов HICON, цвет : черный","шт",0.23,16.117020000000004]
["HI-XC-TR","HICON маркировочное пластиковое кольцо для XLR разъемов HICON, цвет : прозрачный","шт",0.23,16.117020000000004]
["HI-XC-VI","HICON маркировочное пластиковое кольцо для XLR разъемов HICON, цвет : фиолетовый","шт",0.23,16.117020000000004]
["HI-XC-WS","HICON маркировочное пластиковое кольцо для XLR разъемов HICON, цвет : белый","шт",0.23,16.117020000000004]
["HI-XJEF6S","Разъем HICON комбинированный XLR/JACK с пружинным механизмом фиксации, гнездо/гнездо на панель, позолоченные контакты под пайку, количество контактов: 3/3, пластиковый черный корпус, для фланца D-типа","шт",3.27,229.14198000000002]
["HI-XMCF3","Разъем HICON MINI XLR3, гнездо на кабель диаметром до 3,2 мм, позолоченные контакты под пайку, количество контактов: 3, металлический никелированный корпус, пластиковый черный резьбовой колпачек, резиновый конический хвостовик","шт",2.83,198.30942000000002]
["HI-XMCF3-HD","Разъем HICON MINI XLR3 пыленепроницаемый и водостойкий (IP67), гнездо на кабель диаметром до 4,9 мм, позолоченные контакты под пайку, количество контактов: 3, металлический никелированный корпус","шт",8.26,578.81124]
["HI-XMCF3-HD-B","Разъем HICON MINI XLR3 пыленепроницаемый и водостойкий (IP67), гнездо на кабель диаметром до 4,9 мм, позолоченные контакты под пайку, количество контактов: 3, металлический черный корпус","шт",8.4,{"$f":"IF(D1037=\"По запросу\",D1037,D1037*$B$6*(1+0.02))","v":588.62160000000006}]
["HI-XMCF4","Разъем HICON MINI XLR4, гнездо на кабель диаметром до 3,2 мм, позолоченные контакты под пайку, количество контактов: 4, металлический никелированный корпус, пластиковый черный резьбовой колпачек, резиновый конический хвостовик","шт",2.87,201.11238]
["HI-XMCF4-HD","Разъем HICON MINI XLR4 пыленепроницаемый и водостойкий (IP67), гнездо на кабель диаметром до 4,9 мм, позолоченные контакты под пайку, количество контактов: 4, металлический никелированный корпус","шт",8.4700000000000006,593.52678000000014]
["HI-XMCF4-HD-B","Разъем HICON MINI XLR4 пыленепроницаемый и водостойкий (IP67), гнездо на кабель диаметром до 4,9 мм, позолоченные контакты под пайку, количество контактов: 4, металлический черный корпус","шт",8.6199999999999992,604.03787999999997]
["HI-XMCF5","Разъем HICON MINI XLR5, гнездо на кабель диаметром до 3,2 мм, позолоченные контакты под пайку, количество контактов: 5, металлический никелированный корпус, пластиковый черный резьбовой колпачек, резиновый конический хвостовик","шт",2.96,207.41904]
["HI-XMCF5-HD","Разъем HICON MINI XLR5 пыленепроницаемый и водостойкий (IP67), гнездо на кабель диаметром до 4,9 мм, позолоченные контакты под пайку, количество контактов: 5, металлический никелированный корпус","шт",8.66,606.84084000000007]
["HI-XMCF5-HD-B","Разъем HICON MINI XLR5 пыленепроницаемый и водостойкий (IP67), гнездо на кабель диаметром до 4,9 мм, позолоченные контакты под пайку, количество контактов: 5, металлический черный корпус","шт",8.83,618.75342000000001]
["HI-XMCM3","Разъем HICON MINI XLR3, штекер на кабель диаметром до 3,2 мм, позолоченные контакты под пайку, количество контактов: 3, металлический никелированный корпус, пластиковый черный резьбовой колпачек, резиновый конический хвостовик","шт",3.01,210.92274]
["HI-XMCM3-HD","Разъем HICON MINI XLR3 пыленепроницаемый и водостойкий (IP67), штекер на кабель диаметром до 4,9 мм, позолоченные контакты под пайку, количество контактов: 3, металлический никелированный корпус, накидная резьбовая гильза","шт",8.2899999999999991,580.91345999999987]
["HI-XMCM3-HD-B","Разъем HICON MINI XLR3 пыленепроницаемый и водостойкий (IP67), штекер на кабель диаметром до 4,9 мм, позолоченные контакты под пайку, количество контактов: 3, металлический черный корпус, накидная резьбовая гильза","шт",8.44,591.42455999999993]
["HI-XMCM4","Разъем HICON MINI XLR4, штекер на кабель, позолоченные контакты под пайку, количество контактов: 4, металлический никелированный корпус, пластиковый черный резьбовой колпачек, резиновый конический хвостовик","шт",3.18,222.83532000000002]
["HI-XMCM4-HD","Разъем HICON MINI XLR4 пыленепроницаемый и водостойкий (IP67), штекер на кабель диаметром до 4,9 мм, позолоченные контакты под пайку, количество контактов: 4, металлический никелированный корпус, накидная резьбовая гильза","шт",8.49,594.92826000000002]
["HI-XMCM4-HD-B","Разъем HICON MINI XLR4 пыленепроницаемый и водостойкий (IP67), штекер на кабель диаметром до 4,9 мм, позолоченные контакты под пайку, количество контактов: 4, металлический черный корпус, накидная резьбовая гильза","шт",8.66,606.84084000000007]
["HI-XMCM5","Разъем HICON MINI XLR5, штекер на кабель диаметром до 3,2 мм, позолоченные контакты под пайку, количество контактов: 5, металлический никелированный корпус, пластиковый черный резьбовой колпачек, резиновый конический хвостовик","шт",3.22,225.63828000000004]
["HI-XMCM5-HD","Разъем HICON MINI XLR5 пыленепроницаемый и водостойкий (IP67), штекер на кабель диаметром до 4,9 мм, позолоченные контакты под пайку, количество контактов: 5, металлический никелированный корпус, накидная резьбовая гильза","шт",8.6999999999999993,609.64379999999994]
["HI-XMCM5-HD-B","Разъем HICON MINI XLR5 пыленепроницаемый и водостойкий (IP67), штекер на кабель диаметром до 4,9 мм, позолоченные контакты под пайку, количество контактов: 5, металлический черный корпус, накидная резьбовая гильза","шт",8.86,620.85563999999999]
["HI-XMDM3","Разъем HICON MINI XLR3, штекер на панель, позолоченные контакты под пайку, количество контактов: 3, металлический никелированный корпус, фланец D-типа, внешняя резьба Ø 10,9 мм","шт",5.57,390.31218000000007]
["HI-XMDM4","Разъем HICON MINI XLR4, штекер на панель, позолоченные контакты под пайку, количество контактов: 4, металлический никелированный корпус, фланец D-типа, внешняя резьба Ø 10,9 мм","шт",5.62,393.81588000000005]
["HI-XMDM5","Разъем HICON MINI XLR5, штекер на панель, позолоченные контакты под пайку, количество контактов: 5, металлический никелированный корпус, фланец D-типа, внешняя резьба Ø 10,9 мм","шт",5.74,402.22476]
["HI-XMEF3","Разъем HICON MINI XLR3 с пружинным механизмом фиксации, гнездо на панель, позолоченные контакты под пайку, количество контактов: 3, металлический никелированный корпус, размер отверстий: 17,1 х 11,4 мм (Ø 2,8 мм), фланец: 24,4 х 18,8 мм (В х Ш)","шт",3.58,250.86492000000004]
["HI-XMEF3-HD","Разъем HICON MINI XLR3 пыленепроницаемый и водостойкий (IP67), гнездо на панель, позолоченные контакты под пайку, количество контактов: 3, металлический никелированный корпус, внешняя резьба Ø 10,9 мм","шт",7.56,529.75943999999993]
["HI-XMEF3-HD-B","Разъем HICON MINI XLR3 пыленепроницаемый и водостойкий (IP67), гнездо на панель, позолоченные контакты под пайку, количество контактов: 3, металлический черный корпус, внешняя резьба Ø 10,9 мм","шт",7.74,542.37276000000008]
["HI-XMEF4","Разъем HICON MINI XLR4 с пружинным механизмом фиксации, гнездо на панель, позолоченные контакты под пайку, количество контактов: 4, металлический никелированный корпус, размер отверстий: 17,1 х 11,4 мм (Ø 2,8 мм), фланец: 24,4 х 18,8 мм (В х Ш)","шт",3.69,258.57306]
["HI-XMEF4-HD","Разъем HICON MINI XLR4 пыленепроницаемый и водостойкий (IP67), гнездо на панель, позолоченные контакты под пайку, количество контактов: 4, металлический никелированный корпус, внешняя резьба Ø 10,9 мм","шт",7.77,544.47497999999996]
["HI-XMEF4-HD-B","Разъем HICON MINI XLR4 пыленепроницаемый и водостойкий (IP67), гнездо на панель, позолоченные контакты под пайку, количество контактов: 4, металлический черный корпус, внешняя резьба Ø 10,9 мм","шт",7.97,558.48978]
["HI-XMEF5","Разъем HICON MINI XLR5 с пружинным механизмом фиксации, гнездо на панель, позолоченные контакты под пайку, количество контактов: 5, металлический никелированный корпус, размер отверстий: 17,1 х 11,4 мм (Ø 2,8 мм), фланец: 24,4 х 18,8 мм (В х Ш)","шт",3.84,269.08416]
["HI-XMEF5-HD","Разъем HICON MINI XLR5 пыленепроницаемый и водостойкий (IP67), гнездо на панель, позолоченные контакты под пайку, количество контактов: 5, металлический никелированный корпус, внешняя резьба Ø 10,9 мм","шт",7.97,558.48978]
["HI-XMEF5-HD-B","Разъем HICON MINI XLR5 пыленепроницаемый и водостойкий (IP67), гнездо на панель, позолоченные контакты под пайку, количество контактов: 5, металлический черный корпус, внешняя резьба Ø 10,9 мм","шт",8.19,573.90606000000002]
["HI-XMEM3","Разъем HICON MINI XLR3, штекер на панель, позолоченные контакты под пайку, количество контактов: 3, металлический никелированный корпус, внешняя резьба Ø 10,9 мм","шт",3.14,220.03236000000001]
["HI-XMEM3-HD","Разъем HICON MINI XLR3 пыленепроницаемый и водостойкий (IP67), штекер на панель, позолоченные контакты под пайку, количество контактов: 3, металлический никелированный корпус, внешняя резьба Ø 10,9 мм","шт",7.52,526.95648000000006]
["HI-XMEM3-HD-B","Разъем HICON MINI XLR3 пыленепроницаемый и водостойкий (IP67), штекер на панель, позолоченные контакты под пайку, количество контактов: 3, металлический черный корпус, внешняя резьба Ø 10,9 мм","шт",7.73,541.67202000000009]
["HI-XMEM4","Разъем HICON MINI XLR4, штекер на панель, позолоченные контакты под пайку, количество контактов: 4, металлический никелированный корпус, внешняя резьба Ø 10,9 мм","шт",3.22,225.63828000000004]
["HI-XMEM4-HD","Разъем HICON MINI XLR4 пыленепроницаемый и водостойкий (IP67), штекер на панель, позолоченные контакты под пайку, количество контактов: 4, металлический никелированный корпус, внешняя резьба Ø 10,9 мм","шт",7.71,540.27053999999998]
["HI-XMEM4-HD-B","Разъем HICON MINI XLR4 пыленепроницаемый и водостойкий (IP67), штекер на панель, позолоченные контакты под пайку, количество контактов: 4, металлический черный корпус, внешняя резьба Ø 10,9 мм","шт",7.94,556.38756000000012]
["HI-XMEM5","Разъем HICON MINI XLR5, штекер на панель, позолоченные контакты под пайку, количество контактов: 5, металлический никелированный корпус, внешняя резьба Ø 10,9 мм","шт",3.3,231.24420000000001]
["HI-XMEM5-HD","Разъем HICON MINI XLR5 пыленепроницаемый и водостойкий (IP67), штекер на панель, позолоченные контакты под пайку, количество контактов: 5, металлический никелированный корпус, внешняя резьба Ø 10,9 мм","шт",7.92,554.98608000000002]
["HI-XMEM5-HD-B","Разъем HICON MINI XLR5 пыленепроницаемый и водостойкий (IP67), штекер на панель, позолоченные контакты под пайку, количество контактов: 5, металлический черный корпус, внешняя резьба Ø 10,9 мм","шт",8.16,571.80384000000004]
["HI-XSR40","HICON пластиковый цанговый зажим на кабель диаметром 2,0 - 5,00 мм для прямых XLR разъемов HICON, цвет : белый","шт",0.16,11.21184]
["HT-CRIMPSET","HICON набор инструментов в пластиковом чемодане 680x450x480 мм для монтажа BNC разъемов HICON,  (обжимные клещи с набором насадок, инструмент для снятия изоляции)","набор","По запросу","По запросу"]
["HT-CRIMPTOOL","HICON запасные обжимные клещи (без насадок) к набору инструментов HT-CRIMPSET для монтажа BNC разъемов HICON","шт","По запросу","По запросу"]
["KIT-99-011","HICON инструмент для демонтажа контактов в 150-контактных LK разъемах HICON","шт",173.07,12127.707179999999]
["KMS13","SOMMER CABLE кабельный ввод PG13, с защитным металлическим рукавом для кабеля и раструбным вводом на противоположном конце, общая длина: 27 см","шт",38.409999999999997,2691.54234]
["KS1250-BL","HICON резиновый хвостовик для разъемa BNC1.2/5.0 HICON, цвет : синий","шт",0.93,65.168820000000011]
["KS1250-BR","HICON резиновый хвостовик для разъемa BNC1.2/5.0 HICON, цвет : коричневый","шт",0.93,65.168820000000011]
["KS1250-CY","HICON резиновый хвостовик для разъемa BNC1.2/5.0 HICON, цвет : бирюзовый","шт",0.93,65.168820000000011]
["KS1250-GE","HICON резиновый хвостовик для разъемa BNC1.2/5.0 HICON, цвет : желтый","шт",0.93,65.168820000000011]
["KS1250-GN","HICON резиновый хвостовик для разъемa BNC1.2/5.0 HICON, цвет : зеленый","шт",0.93,65.168820000000011]
["KS1250-GR","HICON резиновый хвостовик для разъемa BNC1.2/5.0 HICON, цвет : серый","шт",0.93,65.168820000000011]
["KS1250-OR","HICON резиновый хвостовик для разъемa BNC1.2/5.0 HICON, цвет : оранжевый","шт",0.93,65.168820000000011]
["KS1250-RT","HICON резиновый хвостовик для разъемa BNC1.2/5.0 HICON, цвет : красный","шт",0.93,65.168820000000011]
["KS1250-SW","HICON резиновый хвостовик для разъемa BNC1.2/5.0 HICON, цвет : черный","шт",0.93,65.168820000000011]
["KS1250-VI","HICON резиновый хвостовик для разъемa BNC1.2/5.0 HICON, цвет : фиолетовый","шт",0.93,65.168820000000011]
["KS1250-WS","HICON резиновый хвостовик для разъемa BNC1.2/5.0 HICON, цвет : белый","шт",0.93,65.168820000000011]
["KS1673-BL","HICON резиновый хвостовик для разъемa BNC1.6/7.3 HICON, цвет : синий","шт",1.37,96.001380000000012]
["KS1673-BR","HICON резиновый хвостовик для разъемa BNC1.6/7.3 HICON, цвет : коричневый","шт",1.37,96.001380000000012]
["KS1673-CY","HICON резиновый хвостовик для разъемa BNC1.6/7.3 HICON, цвет : бирюзовый","шт",1.37,96.001380000000012]
["KS1673-GE","HICON резиновый хвостовик для разъемa BNC1.6/7.3 HICON, цвет : желтый","шт",1.37,96.001380000000012]
["KS1673-GN","HICON резиновый хвостовик для разъемa BNC1.6/7.3 HICON, цвет : зеленый","шт",1.37,96.001380000000012]
["KS1673-GR","HICON резиновый хвостовик для разъемa BNC1.6/7.3 HICON, цвет : серый","шт",1.37,96.001380000000012]
["KS1673-OR","HICON резиновый хвостовик для разъемa BNC1.6/7.3 HICON, цвет : оранжевый","шт",1.37,96.001380000000012]
["KS1673-RT","HICON резиновый хвостовик для разъемa BNC1.6/7.3 HICON, цвет : красный","шт",1.37,96.001380000000012]
["KS1673-SW","HICON резиновый хвостовик для разъемa BNC1.6/7.3 HICON, цвет : черный","шт",1.37,96.001380000000012]
["KS1673-VI","HICON резиновый хвостовик для разъемa BNC1.6/7.3 HICON, цвет : фиолетовый","шт",1.37,96.001380000000012]
["KS1673-WS","HICON резиновый хвостовик для разъемa BNC1.6/7.3 HICON, цвет : белый","шт",1.37,96.001380000000012]
["KS174-BL","HICON резиновый хвостовик для разъемов BNC174, BNC0.3/1.8, BNC0.4/2.5 HICON, цвет : синий","шт",0.66,{"$f":"IF(D1101=\"По запросу\",D1101,D1101*$B$6*(1+0.02))","v":46.248840000000008}]
["KS174-GN","HICON резиновый хвостовик для разъемов BNC174, BNC0.3/1.8, BNC0.4/2.5 HICON, цвет : зеленый","шт",0.66,46.248840000000008]
["KS174-RT","HICON резиновый хвостовик для разъемов BNC174, BNC0.3/1.8, BNC0.4/2.5 HICON, цвет : красный","шт",0.66,46.248840000000008]
["KS174-SW","HICON резиновый хвостовик для разъемов BNC174, BNC0.3/1.8, BNC0.4/2.5 HICON, цвет : черный","шт",0.66,46.248840000000008]
["KS174-WS","HICON резиновый хвостовик для разъемов BNC174, BNC0.3/1.8, BNC0.4/2.5 HICON, цвет : белый","шт",0.66,46.248840000000008]
["KS58-BL","HICON резиновый хвостовик для разъемов BNC58, BNC0.6/2,8 HICON, цвет : синий","шт",0.65,45.548100000000005]
["KS58-BR","HICON резиновый хвостовик для разъемов BNC58, BNC0.6/2,8 HICON, цвет : коричневый","шт",0.65,45.548100000000005]
["KS58-GE","HICON резиновый хвостовик для разъемов BNC58, BNC0.6/2,8 HICON, цвет : желтый","шт",0.65,45.548100000000005]
["KS58-GN","HICON резиновый хвостовик для разъемов BNC58, BNC0.6/2,8 HICON, цвет : зеленый","шт",0.65,45.548100000000005]
["KS58-OR","HICON резиновый хвостовик для разъемов BNC58, BNC0.6/2,8 HICON, цвет : оранжевый","шт",0.65,45.548100000000005]
["KS58-RT","HICON резиновый хвостовик для разъемов BNC58, BNC0.6/2,8 HICON, цвет : красный","шт",0.65,45.548100000000005]
["KS58-SW","HICON резиновый хвостовик для разъемов BNC58, BNC0.6/2,8 HICON, цвет : черный","шт",0.65,45.548100000000005]
["KS58-VI","HICON резиновый хвостовик для разъемов BNC58, BNC0.6/2,8 HICON, цвет : фиолетовый","шт",0.65,45.548100000000005]
["KS58-WS","HICON резиновый хвостовик для разъемов BNC58, BNC0.6/2,8 HICON, цвет : белый","шт",0.65,45.548100000000005]
["KS59-BL","HICON резиновый хвостовик для разъемов BNC59, BNC0.6/3,7, BNC0.8/3.8, BNC0.66/3.2, HI-CM01C HICON, цвет : синий","шт",0.65,45.548100000000005]
["KS59-BR","HICON резиновый хвостовик для разъемов BNC59, BNC0.6/3,7, BNC0.8/3.8, BNC0.66/3.2, HI-CM01C HICON, цвет : коричневый","шт",0.65,45.548100000000005]
["KS59-GE","HICON резиновый хвостовик для разъемов BNC59, BNC0.6/3,7, BNC0.8/3.8, BNC0.66/3.2, HI-CM01C HICON, цвет : желтый","шт",0.65,45.548100000000005]
["KS59-GN","HICON резиновый хвостовик для разъемов BNC59, BNC0.6/3,7, BNC0.8/3.8, BNC0.66/3.2, HI-CM01C HICON, цвет : зеленый","шт",0.65,45.548100000000005]
["KS59-GR","HICON резиновый хвостовик для разъемов BNC59, BNC0.6/3,7, BNC0.8/3.8, BNC0.66/3.2, HI-CM01C HICON, цвет : серый","шт",0.65,45.548100000000005]
["KS59-OR","HICON резиновый хвостовик для разъемов BNC59, BNC0.6/3,7, BNC0.8/3.8, BNC0.66/3.2, HI-CM01C HICON, цвет : оранжевый","шт",0.65,45.548100000000005]
["KS59-RT","HICON резиновый хвостовик для разъемов BNC59, BNC0.6/3,7, BNC0.8/3.8, BNC0.66/3.2, HI-CM01C HICON, цвет : красный","шт",0.65,45.548100000000005]
["KS59-SW","HICON резиновый хвостовик для разъемов BNC59, BNC0.6/3,7, BNC0.8/3.8, BNC0.66/3.2, HI-CM01C HICON, цвет : черный","шт",0.65,45.548100000000005]
["KS59-VI","HICON резиновый хвостовик для разъемов BNC59, BNC0.6/3,7, BNC0.8/3.8, BNC0.66/3.2, HI-CM01C HICON, цвет : фиолетовый","шт",0.65,45.548100000000005]
["KS59-WS","HICON резиновый хвостовик для разъемов BNC59, BNC0.6/3,7, BNC0.8/3.8, BNC0.66/3.2, HI-CM01C HICON, цвет : белый","шт",0.65,45.548100000000005]
["KST-RJ45C6-P","Адаптер SOMMER CABLE RJ45 гнездо / RJ45 гнездо ONESIZE CAT.6 на панель, позолоченные контакты, количество контактов: 8, металлический корпус, Keystone Clip in","шт",8.08,566.19792000000007]
["KST-RJ45C6A-P","Адаптер SOMMER CABLE RJ45 гнездо / RJ45 гнездо ONESIZE CAT.6a на панель, позолоченные контакты, количество контактов: 8, металлический корпус, Keystone Clip in","шт",10.53,737.87921999999992]
["KVM16","SOMMER CABLE кабельный ввод из никелированной латуни PG16 на кабель диаметром 12 - 16 мм, с уплотнительным кольцом","шт",6.93,485.61282]
["KVM21","SOMMER CABLE кабельный ввод из никелированной латуни PG21 <---> PG29 на кабель диаметром 15 - 20 мм, с уплотнительным кольцом","шт",9.31,652.38894000000016]
["KVM29","SOMMER CABLE кабельный ввод из никелированной латуни PG29 на кабель диаметром 21 - 28 мм, с уплотнительным кольцом","шт",18.190000000000001,1274.6460600000003]
["M225201/1-01","SOMMER CABLE обжимные клещи для контактов к 8 - 150-контактным LK разъемам HICON","шт",627.07000000000005,43941.303180000003]
["M225201/1-02","SOMMER CABLE устройство для центровки контактов к 8 - 85-контактным LK разъемам HICON (устройство следует заказывать вместе с обжимными клещами)","шт",311.57,21832.956180000001]
["M225201/1-03","SOMMER CABLE устройство для центровки контактов к 150-контактным LK разъемам HICON (устройство следует заказывать вместе с обжимными клещами)","шт",300.60000000000002,21064.244400000003]
["M225201/1A01","SOMMER CABLE обжимные клещи для контактов к 8 - 19-контактным LK разъемам HICON","шт",950.16,66581.511840000006]
["MDDP-FM","Адаптер HICON MINI DisplayPort гнездо / DisplayPort штекер, цвет пластиковых корпусов разъемов и кабеля: белый","шт",23.19,1625.0160600000004]
["MDDP-MF","Адаптер HICON MINI DisplayPort штекер / DisplayPort гнездо, цвет пластиковых корпусов разъемов и кабеля: белый","шт",23.2,1625.7167999999999]
["MDDV-MF","Адаптер HICON MINI DisplayPort штекер / DVI-D 24+5 Single Link гнездо, цвет пластиковых корпусов разъемов и кабеля: белый","шт",15.4,1079.1396]
["MDHD-MF","Адаптер HICON MINI DisplayPort штекер / HDMI гнездо, цвет пластиковых корпусов разъемов и кабеля: белый","шт",18.82,1318.79268]
["MDSV-MF","Адаптер HICON MINI DisplayPort штекер / SUB-D DE15 гнездо, цвет пластиковых корпусов разъемов и кабеля: белый","шт",43.47,3046.1167800000003]
["MDXX-MF","Адаптер HICON MINI DisplayPort штекер / HDMI гнездо + DVI гнездо + DisplayPort гнездо, цвет пластиковых корпусов разъемов и кабеля: белый","шт",29.86,2092.4096400000003]
["PGA16","SOMMER CABLE заглушка пластиковая черная PG16","шт",0.28999999999999998,20.321459999999998]
["PGA21","SOMMER CABLE заглушка пластиковая черная PG21","шт",0.4,28.029600000000006]
["PGA29","SOMMER CABLE заглушка пластиковая черная PG29","шт",0.84,58.862160000000003]
["PGM16","SOMMER CABLE контргайка шестигранная из никелированной латуни PG16","шт",0.48,33.63552]
["PGM21","SOMMER CABLE контргайка шестигранная из никелированной латуни PG21","шт",0.55000000000000004,38.540700000000001]
["PGM29","SOMMER CABLE контргайка шестигранная из никелированной латуни PG29","шт",0.88,61.665120000000002]
["PGV16-SW","SOMMER CABLE кабельный ввод пластиковый черный водонепроницаемый PG16 на кабель диаметром 10 - 14 мм","шт",1.48,103.70952]
["PGV16K-SW","SOMMER CABLE кабельный ввод с хвостовиком пластиковый черный водонепроницаемый PG16 на кабель диаметром 10 - 14 мм","шт",3.28,229.84271999999999]
["PGV21-SW","SOMMER CABLE кабельный ввод пластиковый черный водонепроницаемый PG21 на кабель диаметром 13 - 18 мм","шт",2.08,145.75392000000002]
["PGV21K-GR","SOMMER CABLE кабельный ввод с хвостовиком пластиковый серый водонепроницаемый PG21 на кабель диаметром 13 - 18 мм","шт",6.39,447.77285999999998]
["PGV21K-MESH","SOMMER CABLE кабельный ввод металлический PG21 на кабель диаметром 15,9 - 19,0 мм, хвостовик из стальной проволоки","шт",63.52,4451.100480000001]
["PGV21K-SW","SOMMER CABLE кабельный ввод с хвостовиком пластиковый черный водонепроницаемый PG21 на кабель диаметром 13 - 18 мм","шт",6.43,450.57581999999996]
["PGV29-SW","SOMMER CABLE кабельный ввод пластиковый черный водонепроницаемый PG29 на кабель диаметром 18 - 25 мм","шт",3.91,273.98934000000003]
["PGV29K-MESH","SOMMER CABLE кабельный ввод металлический PG29 на кабель диаметром 19,0 - 22,2 мм, хвостовик из стальной проволоки","шт",74.13,5194.5856199999998]
["PGV36-SW","SOMMER CABLE кабельный ввод пластиковый черный водонепроницаемый PG36 на кабель диаметром 26 - 32 мм","шт",10.96,768.01104000000009]
["PGV36K-MESH","SOMMER CABLE кабельный ввод металлический PG36 на кабель диаметром 22,2 - 25,5 мм, хвостовик из стальной проволоки","шт",89.93,6301.754820000001]
["PGVM16-SW","SOMMER CABLE кабельный ввод пластиковый черный водонепроницаемый M16 x 1,5 мм на кабель диаметром 5 - 10 мм","шт",1.3,91.09620000000001]
["PGVM16K-SW","SOMMER CABLE кабельный ввод с хвостовиком пластиковый черный водонепроницаемый M16 x 1,5 мм на кабель диаметром 5 - 10 мм","шт",2.4300000000000002,170.27982000000003]
["PGVM25-SW","SOMMER CABLE кабельный ввод пластиковый черный водонепроницаемый M25 x 1,5 мм на кабель диаметром 9 - 17 мм","шт",3.63,254.36861999999999]
["PGVM25K-SW","SOMMER CABLE кабельный ввод с хвостовиком пластиковый черный водонепроницаемый M25 x 1,5 мм на кабель диаметром 9 - 17 мм","шт",5.01,351.07074]
["PGVM32-SW","SOMMER CABLE кабельный ввод пластиковый черный водонепроницаемый M32 x 1,5 мм на кабель диаметром 11 - 21 мм","шт",5.61,393.11514000000005]
["PGVM32K-SW","SOMMER CABLE кабельный ввод с хвостовиком пластиковый черный водонепроницаемый M32 x 1,5 мм на кабель диаметром 11 - 21 мм","шт",7.72,540.97128000000009]
["PGVM40-SW","SOMMER CABLE кабельный ввод пластиковый черный водонепроницаемый M40 x 1,5 мм на кабель диаметром 19 - 28 мм","шт",12.11,848.59613999999999]
["PGZ16-15","SOMMER CABLE кабельный ввод из никелированной латуни PG16 на кабель диаметром 13 - 15 мм, с резиновым хвостовиком","шт",15.81,1107.8699400000003]
["PGZ21-17","SOMMER CABLE кабельный ввод из никелированной латуни PG21 <---> PG29 на кабель диаметром 15 - 17 мм, с резиновым хвостовиком","шт",24.31,1703.4989399999999]
["PGZ21-19","SOMMER CABLE кабельный ввод из никелированной латуни PG21 <---> PG29 на кабель диаметром 17 - 19 мм, с резиновым хвостовиком","шт",21.4,{"$f":"IF(D1165=\"По запросу\",D1165,D1165*$B$6*(1+0.02))","v":1499.5836000000002}]
["PGZ29-25","SOMMER CABLE кабельный ввод из никелированной латуни PG29 на кабель диаметром 20 - 25 мм, с резиновым хвостовиком","шт",43.27,3032.1019800000004]
["POF-709","Адаптер HICON TOSLINK гнездо / TOSLINK гнездо (удлинитель), пластиковый черный корпус","шт",2.3199999999999998,162.57167999999999]
["POF-711","Адаптер HICON TOSLINK гнездо / MINI TOSLINK штекер, пластиковый черный корпус","шт",3.27,229.14198000000002]
["POF-723","Адаптер HICON TOSLINK штекер / MINI TOSLINK гнездо, пластиковый черный корпус","шт",2.4300000000000002,170.27982000000003]
["POF-732","Адаптер HICON TOSLINK гнездо / TOSLINK штекер угловой 90° с поворачивающимся штырем на 360°, пластиковый черный корпус","шт",4.2699999999999996,299.21598]
["POF-733","Адаптер HICON TOSLINK гнездо / MINI TOSLINK штекер угловой 90°, пластиковый черный корпус","шт",2.81,196.90794000000002]
["POF-740","Адаптер HICON TOSLINK гнездо / TOSLINK гнездо на панель, пластиковый черный корпус, фланец D-типа","шт",10.71,750.49254000000008]
["POF-810","Адаптер HICON TOSLINK гнездо / 2 х TOSLINK гнездо (разветвитель), пластиковый черный корпус","шт",8.74,612.44676000000004]
["POF-TOS","Разъем HICON TOSLINK, штекер на кабель диаметром до 6,0 мм, металлический черный корпус, рекомендуемый кабель: SC-OCTOPUS / арт. номер: 590-0092","шт",3.69,258.57306]
["RJ45-COUP","Адаптер SOMMER CABLE RJ45 гнездо / RJ45 гнездо диаметром 5,5 - 9,0 мм, макс. AWG26-22, металлический корпус, резиновые черные защитные колпачки с двух сторон","шт",33.840000000000003,2371.3041600000006]
["RJ45C6XL","Разъем SOMMER CABLE RJ45 ONESIZE  CAT.6a/10 Гбит / IP20 для быстрого самостоятельного монтажа без пайки и снятия изоляции, штекер на кабель диаметром 5,5 - 8,5 мм, макс. AWG22, позолоченные врезные контакты (система IDC), количество контактов: 8, металлический корпус, рекомендуемый защитный металлический кожух в формате XLR: HI-C6XL-HD HICON","шт",14.63,1025.18262]
["RJ45C6XL-A","Разъем SOMMER CABLE RJ45 ONESIZE угловой 90° CAT.6a/10 Гбит / IP20 для быстрого самостоятельного монтажа без пайки и снятия изоляции, штекер на кабель диаметром 5,5 - 10,0 мм, макс. AWG22, позолоченные врезные контакты (система IDC), количество контактов: 8, металлический корпус","шт",19.239999999999998,1348.2237600000001]
["RJ45CFXL","Разъем SOMMER CABLE RJ45 ONESIZE  CAT.6a/10 Гбит / IP20 для быстрого самостоятельного монтажа без пайки и снятия изоляции, гнездо на панель, позолоченные врезные контакты (система IDC), количество контактов: 8, металлический корпус, Keystone Snap in","шт",6.33,443.56842000000006]
["RJ45CM6-SW","Разъем SOMMER CABLE RJ45 ONESIZE  CAT.6 для быстрого самостоятельного монтажа без пайки и снятия изоляции, штекер на кабель диаметром 5,5 - 8,0 мм, макс. AWG26-23, позолоченные врезные контакты (система IDC) под зажим, количество контактов: 8, пластиковый черный корпус","шт",10.49,735.07626000000005]
["RJ45CMXL-SW","Разъем SOMMER CABLE RJ45 ONESIZE  CAT.6a/10 Гбит / IP20 для быстрого самостоятельного монтажа без пайки и снятия изоляции, штекер на кабель диаметром 4,5 - 8,0 мм, макс. AWG22, позолоченные контакты под зажим, количество контактов: 8, пластиковый черный корпус","шт",22.59,1582.9716599999999]
["RZG16-13","SOMMER CABLE резьбовой адаптер из никелированной латуни PG16 <---> PG13","шт","По запросу","По запросу"]
["RZG21-16","SOMMER CABLE резьбовой адаптер из никелированной латуни PG21 <---> PG16","шт",2.23,156.26501999999999]
["RZG21-29","SOMMER CABLE резьбовой адаптер из никелированной латуни PG21 <---> PG29","шт",6.91,484.21134000000006]
["RZG29-16","SOMMER CABLE резьбовой адаптер из никелированной латуни PG29 <---> PG16","шт",6.19,433.75806000000006]
["RZG29-21","SOMMER CABLE резьбовой адаптер из никелированной латуни PG29 <---> PG21","шт",4.93,345.46481999999997]
["RZG29-M32","SOMMER CABLE резьбовой адаптер из никелированной латуни PG29 <---> M32","шт",6.69,468.79506000000009]
["RZGM40-M32","SOMMER CABLE резьбовой адаптер из никелированной латуни M40 <---> M32","шт",8.43,590.72381999999993]
["RZGM40-M50","SOMMER CABLE резьбовой адаптер из никелированной латуни M40 <---> M50","шт",16.600000000000001,1163.2284000000002]
["T98143","SOMMER CABLE универсальные щипцы для установки контактов в LK разъемы HICON","шт",118.56,8307.9734399999998]
["WFMC11","HICON пластиковый рожковый гаечный ключ (11 мм) с устройством для зачистки кабеля для компрессионных антенных F разъемов HICON","шт","По запросу","По запросу"]
["WSW16","HICON инструмент для монтажа BNC разъемов в  углубленный фланец D типа HI-DET HICON","шт","По запросу","По запросу"]